Body Name,Body,Service Label,Service Code,Service Division Label,Service Division Code,Expenditure Category,Expenditure Code,CIPFA Detailed Expenditure Type,CIPFA Detailed Expenditure Code,Date,Transaction Number,CC 43 TBM Section,CCN 43 TBM Section,Net Amount,Capital and Revenue,Creditor
Brighton & Hove City Council,http://statistics.data.gov.uk/id/local-authority/00ML,Adult Social Care,BVASOC,ASC Learning Disabilities,ALD,Customer n Client Receipts,M,Fees n Charges,MB,02/07/2014,PAY00675979,LDIS,Learning Disabilities,-319.40,Revenue,Canterbury Oast Trust Ltd
Brighton & Hove City Council,http://statistics.data.gov.uk/id/local-authority/00ML,Adult Social Care,BVASOC,ASC Learning Disabilities,ALD,Third Party Payments,F,Other Establishments,FH,02/07/2014,PAY00675979,LDIS,Learning Disabilities,6363.00,Revenue,Canterbury Oast Trust Ltd
Brighton & Hove City Council,http://statistics.data.gov.uk/id/local-authority/00ML,Central Support and Overheads,BVACEN,Support Services (SSC),PPT,Premises Related,C,Rents Payable,CC,02/07/2014,PAY00675980,PROP,Property and Design,4475.00,Revenue,OM Property Management Ltd
Brighton & Hove City Council,http://statistics.data.gov.uk/id/local-authority/00ML,Non-BHC Organisations,BVANON,Non-Council,NNC,Supplies and Services,E,Catering,EB,02/07/2014,PAY00675981,NBHC,Non Council,895.50,Revenue,Julia Robinson Catering Ltd
Brighton & Hove City Council,http://statistics.data.gov.uk/id/local-authority/00ML,Cultural and Related Serv,BVACUL,Culture and Heritage,CHG,Direct Employees,A,Wages,AB,02/07/2014,PAY00675982,RPMU,Royal Pavilion and Museums,1000.00,Revenue,Payment to Individual
Brighton & Hove City Council,http://statistics.data.gov.uk/id/local-authority/00ML,Adult Social Care,BVASOC,ASC Memory Cognition Support,MEM,Customer n Client Receipts,M,Fees n Charges,MB,02/07/2014,PAY00675985,COGN,Memory Cognition Support,-3524.88,Revenue,Roshni Rest Home
Brighton & Hove City Council,http://statistics.data.gov.uk/id/local-authority/00ML,Adult Social Care,BVASOC,ASC Memory Cognition Support,MEM,Third Party Payments,F,Other Establishments,FH,02/07/2014,PAY00675985,COGN,Memory Cognition Support,15407.36,Revenue,Roshni Rest Home
Brighton & Hove City Council,http://statistics.data.gov.uk/id/local-authority/00ML,Children`s & Education Serv,BVAEDU,Ed Mgmt and Support Services,EMG,Supplies and Services,E,Miscellaneous Expenses,EM,02/07/2014,PAY00675986,MUSE,Music Service,371.00,Revenue,St Bartholomew`s Church
Brighton & Hove City Council,http://statistics.data.gov.uk/id/local-authority/00ML,Children`s & Education Serv,BVAEDU,Child Srvcs Leaving Care,FAL,Transfer Payments,G,Other Transfer Payments,GD,02/07/2014,PAY00675987,CHIC,Children In Care,700.00,Revenue,Greenways Guest House
Brighton & Hove City Council,http://statistics.data.gov.uk/id/local-authority/00ML,Children`s & Education Serv,BVAEDU,Child Srvcs - Other Fam Supp,FFX,Transfer Payments,G,Other Transfer Payments,GD,02/07/2014,PAY00675987,FAMP,Families\Prevention,700.00,Revenue,Greenways Guest House
Brighton & Hove City Council,http://statistics.data.gov.uk/id/local-authority/00ML,Children`s & Education Serv,BVAEDU,Child Srvcs - Othr LAC Svcs,FLX,Transfer Payments,G,Other Transfer Payments,GD,02/07/2014,PAY00675987,CHIC,Children In Care,3000.00,Revenue,Greenways Guest House
Brighton & Hove City Council,http://statistics.data.gov.uk/id/local-authority/00ML,Non-BHC Organisations,BVANON,Trusts,TRT,Supplies and Services,E,Miscellaneous Expenses,EM,02/07/2014,PAY00675994,NBHC,Non Council,4063.95,Revenue,Department for Work & Pensions
Brighton & Hove City Council,http://statistics.data.gov.uk/id/local-authority/00ML,Housing General Fund,BVAHOG,Homelessness,HML,Premises Related,C,Rents Payable,CC,02/07/2014,PAY00675995,TAAS,Temp Accom and Allocations,1000.00,Revenue,Edmonds Letting
Brighton & Hove City Council,http://statistics.data.gov.uk/id/local-authority/00ML,Central Support and Overheads,BVACEN,Support Services (SSC),PPT,Premises Related,C,Repair Maint n Alterations,CA,02/07/2014,PAY00675996,PROP,Property and Design,250.00,Revenue,D L Jones & Sons
Brighton & Hove City Council,http://statistics.data.gov.uk/id/local-authority/00ML,Housing General Fund,BVAHOG,Homelessness,HML,Premises Related,C,Rents Payable,CC,02/07/2014,PAY00675997,TAAS,Temp Accom and Allocations,900.00,Revenue,Payment to Individual
Brighton & Hove City Council,http://statistics.data.gov.uk/id/local-authority/00ML,Adult Social Care,BVASOC,ASC Mental Health Support,MHP,Customer n Client Receipts,M,Fees n Charges,MB,02/07/2014,PAY00676000,MENH,Mental Health Support,-408.00,Revenue,Payment to Individual
Brighton & Hove City Council,http://statistics.data.gov.uk/id/local-authority/00ML,Adult Social Care,BVASOC,ASC Mental Health Support,MHP,Third Party Payments,F,Other Establishments,FH,02/07/2014,PAY00676000,MENH,Mental Health Support,4435.92,Revenue,Payment to Individual
Brighton & Hove City Council,http://statistics.data.gov.uk/id/local-authority/00ML,Adult Social Care,BVASOC,ASC Learning Disabilities,ALD,Customer n Client Receipts,M,Fees n Charges,MB,02/07/2014,PAY00676001,LDIS,Learning Disabilities,-92.00,Revenue,Payment to Individual
Brighton & Hove City Council,http://statistics.data.gov.uk/id/local-authority/00ML,Adult Social Care,BVASOC,ASC Learning Disabilities,ALD,Third Party Payments,F,Other Establishments,FH,02/07/2014,PAY00676001,LDIS,Learning Disabilities,1570.76,Revenue,Payment to Individual
Brighton & Hove City Council,http://statistics.data.gov.uk/id/local-authority/00ML,Housing General Fund,BVAHOG,Homelessness,HML,Premises Related,C,Rents Payable,CC,02/07/2014,PAY00676002,TAAS,Temp Accom and Allocations,820.00,Revenue,Payment to Individual
Brighton & Hove City Council,http://statistics.data.gov.uk/id/local-authority/00ML,Adult Social Care,BVASOC,ASC Memory Cognition Support,MEM,Customer n Client Receipts,M,Fees n Charges,MB,02/07/2014,PAY00676015,COGN,Memory Cognition Support,-73.00,Revenue,Mears Care
Brighton & Hove City Council,http://statistics.data.gov.uk/id/local-authority/00ML,Adult Social Care,BVASOC,ASC Memory Cognition Support,MEM,Third Party Payments,F,Other Establishments,FH,02/07/2014,PAY00676015,COGN,Memory Cognition Support,494.95,Revenue,Mears Care
Brighton & Hove City Council,http://statistics.data.gov.uk/id/local-authority/00ML,Adult Social Care,BVASOC,ASC Mental Health Support,MHP,Third Party Payments,F,Other Establishments,FH,02/07/2014,PAY00676015,MENH,Mental Health Support,247.65,Revenue,Mears Care
Brighton & Hove City Council,http://statistics.data.gov.uk/id/local-authority/00ML,Adult Social Care,BVASOC,ASC Physical Support,PHY,Customer n Client Receipts,M,Fees n Charges,MB,02/07/2014,PAY00676015,PHYS,Physical Support,-488.00,Revenue,Mears Care
Brighton & Hove City Council,http://statistics.data.gov.uk/id/local-authority/00ML,Adult Social Care,BVASOC,ASC Physical Support,PHY,Third Party Payments,F,Other Establishments,FH,02/07/2014,PAY00676015,PHYS,Physical Support,7140.11,Revenue,Mears Care
Brighton & Hove City Council,http://statistics.data.gov.uk/id/local-authority/00ML,Children`s & Education Serv,BVAEDU,Child Srvcs - Fostering,FLF,Supplies and Services,E,Grants n Subscriptions,EK,02/07/2014,PAY00676016,CHIC,Children In Care,1150.00,Revenue,Adoption UK
Brighton & Hove City Council,http://statistics.data.gov.uk/id/local-authority/00ML,Children`s & Education Serv,BVAEDU,Ed EY PVI,ENP,Supplies and Services,E,Grants n Subscriptions,EK,02/07/2014,PAY00676017,EYRS,Early Years,15521.00,Revenue,Young Sussex (Aldrington)
Brighton & Hove City Council,http://statistics.data.gov.uk/id/local-authority/00ML,Adult Social Care,BVASOC,ASC Learning Disabilities,ALD,Customer n Client Receipts,M,Fees n Charges,MB,02/07/2014,PAY00676018,LDIS,Learning Disabilities,-596.00,Revenue,Outlook Foundation
Brighton & Hove City Council,http://statistics.data.gov.uk/id/local-authority/00ML,Adult Social Care,BVASOC,ASC Learning Disabilities,ALD,Third Party Payments,F,Other Establishments,FH,02/07/2014,PAY00676018,LDIS,Learning Disabilities,21682.08,Revenue,Outlook Foundation
Brighton & Hove City Council,http://statistics.data.gov.uk/id/local-authority/00ML,Central Support and Overheads,BVACEN,Holding Accounts,PPH,Premises Related,C,Repair Maint n Alterations,CA,02/07/2014,PAY00676019,PROP,Property and Design,37.50,Revenue,TSS Facilities Ltd
Brighton & Hove City Council,http://statistics.data.gov.uk/id/local-authority/00ML,Central Support and Overheads,BVACEN,Support Services (SSC),PPT,Premises Related,C,Repair Maint n Alterations,CA,02/07/2014,PAY00676019,PROP,Property and Design,30033.30,Revenue,TSS Facilities Ltd
Brighton & Hove City Council,http://statistics.data.gov.uk/id/local-authority/00ML,Children`s & Education Serv,BVAEDU,Ed Ed Other Other,ENF,Premises Related,C,Repair Maint n Alterations,CA,02/07/2014,PAY00676019,PROP,Property and Design,2404.81,Revenue,TSS Facilities Ltd
Brighton & Hove City Council,http://statistics.data.gov.uk/id/local-authority/00ML,Adult Social Care,BVASOC,ASC Mental Health Support,MHP,Third Party Payments,F,Other Establishments,FH,02/07/2014,PAY00676020,MENH,Mental Health Support,4435.92,Revenue,Payment to Individual
Brighton & Hove City Council,http://statistics.data.gov.uk/id/local-authority/00ML,Housing General Fund,BVAHOG,Homelessness,HML,Premises Related,C,Repair Maint n Alterations,CA,02/07/2014,PAY00676021,TAAS,Temp Accom and Allocations,2135.11,Revenue,DJ Flooring Ltd
Brighton & Hove City Council,http://statistics.data.gov.uk/id/local-authority/00ML,Children`s & Education Serv,BVAEDU,Ed EY PVI,ENP,Supplies and Services,E,Grants n Subscriptions,EK,02/07/2014,PAY00676022,EYRS,Early Years,1803.00,Revenue,Playtime Under 5`s
Brighton & Hove City Council,http://statistics.data.gov.uk/id/local-authority/00ML,Children`s & Education Serv,BVAEDU,Ed EY PVI,ENP,Supplies and Services,E,Grants n Subscriptions,EK,02/07/2014,PAY00676023,EYRS,Early Years,2607.00,Revenue,Brighton & Hove Montessori School
Brighton & Hove City Council,http://statistics.data.gov.uk/id/local-authority/00ML,Children`s & Education Serv,BVAEDU,Ed EY PVI,ENP,Supplies and Services,E,Grants n Subscriptions,EK,02/07/2014,PAY00676024,EYRS,Early Years,16357.00,Revenue,Deepdene School
Brighton & Hove City Council,http://statistics.data.gov.uk/id/local-authority/00ML,Children`s & Education Serv,BVAEDU,Ed EY PVI,ENP,Supplies and Services,E,Grants n Subscriptions,EK,02/07/2014,PAY00676025,EYRS,Early Years,5819.00,Revenue,Dolphins Pre-School
Brighton & Hove City Council,http://statistics.data.gov.uk/id/local-authority/00ML,Children`s & Education Serv,BVAEDU,Ed EY PVI,ENP,Supplies and Services,E,Grants n Subscriptions,EK,02/07/2014,PAY00676026,EYRS,Early Years,7694.00,Revenue,Dorothy Stringer Playgroup
Brighton & Hove City Council,http://statistics.data.gov.uk/id/local-authority/00ML,Children`s & Education Serv,BVAEDU,Ed EY PVI,ENP,Supplies and Services,E,Grants n Subscriptions,EK,02/07/2014,PAY00676027,EYRS,Early Years,7312.00,Revenue,Funland Pre-School
Brighton & Hove City Council,http://statistics.data.gov.uk/id/local-authority/00ML,Children`s & Education Serv,BVAEDU,Ed EY PVI,ENP,Supplies and Services,E,Grants n Subscriptions,EK,02/07/2014,PAY00676028,EYRS,Early Years,5319.00,Revenue,St Nicholas Pre-School
Brighton & Hove City Council,http://statistics.data.gov.uk/id/local-authority/00ML,Children`s & Education Serv,BVAEDU,Ed EY PVI,ENP,Supplies and Services,E,Grants n Subscriptions,EK,02/07/2014,PAY00676029,EYRS,Early Years,5896.00,Revenue,Torah Academy
Brighton & Hove City Council,http://statistics.data.gov.uk/id/local-authority/00ML,Children`s & Education Serv,BVAEDU,Ed EY PVI,ENP,Supplies and Services,E,Grants n Subscriptions,EK,02/07/2014,PAY00676030,EYRS,Early Years,2398.00,Revenue,Windlesham School Trust Ltd
Brighton & Hove City Council,http://statistics.data.gov.uk/id/local-authority/00ML,Children`s & Education Serv,BVAEDU,Ed EY PVI,ENP,Supplies and Services,E,Grants n Subscriptions,EK,02/07/2014,PAY00676031,EYRS,Early Years,6998.00,Revenue,Young Sussex
Brighton & Hove City Council,http://statistics.data.gov.uk/id/local-authority/00ML,Children`s & Education Serv,BVAEDU,Ed EY PVI,ENP,Supplies and Services,E,Grants n Subscriptions,EK,02/07/2014,PAY00676032,EYRS,Early Years,2384.00,Revenue,Preston Park Playgroup
Brighton & Hove City Council,http://statistics.data.gov.uk/id/local-authority/00ML,Children`s & Education Serv,BVAEDU,Ed EY PVI,ENP,Supplies and Services,E,Grants n Subscriptions,EK,02/07/2014,PAY00676033,EYRS,Early Years,4485.00,Revenue,Rottingdean Montessori Nursery School
Brighton & Hove City Council,http://statistics.data.gov.uk/id/local-authority/00ML,Children`s & Education Serv,BVAEDU,Child Srvcs Adoption,FAA,Supplies and Services,E,Miscellaneous Expenses,EM,02/07/2014,PAY00676034,CHIC,Children In Care,44.27,Revenue,Petty Cash
Brighton & Hove City Council,http://statistics.data.gov.uk/id/local-authority/00ML,Children`s & Education Serv,BVAEDU,Child Srvcs Adoption,FAA,Transport Related,D,Public Transport,DD,02/07/2014,PAY00676034,CHIC,Children In Care,4.70,Revenue,Petty Cash
Brighton & Hove City Council,http://statistics.data.gov.uk/id/local-authority/00ML,Children`s & Education Serv,BVAEDU,Child Srvcs - Fostering,FLF,Supplies and Services,E,Equip't Furniture n Materials,EA,02/07/2014,PAY00676034,CHIC,Children In Care,1318.36,Revenue,Petty Cash
Brighton & Hove City Council,http://statistics.data.gov.uk/id/local-authority/00ML,Children`s & Education Serv,BVAEDU,Child Srvcs - Fostering,FLF,Supplies and Services,E,Miscellaneous Expenses,EM,02/07/2014,PAY00676034,CHIC,Children In Care,388.37,Revenue,Petty Cash
Brighton & Hove City Council,http://statistics.data.gov.uk/id/local-authority/00ML,Children`s & Education Serv,BVAEDU,Child Srvcs - Fostering,FLF,Transport Related,D,Other Transport Costs,DG,02/07/2014,PAY00676034,CHIC,Children In Care,5.00,Revenue,Petty Cash
Brighton & Hove City Council,http://statistics.data.gov.uk/id/local-authority/00ML,Children`s & Education Serv,BVAEDU,Child Srvcs - Fostering,FLF,Transport Related,D,Public Transport,DD,02/07/2014,PAY00676034,CHIC,Children In Care,82.00,Revenue,Petty Cash
Brighton & Hove City Council,http://statistics.data.gov.uk/id/local-authority/00ML,Adult Social Care,BVASOC,ASC Learning Disabilities,ALD,Supplies and Services,E,Catering,EB,02/07/2014,PAY00676035,LDAS,LD Accommodation Services,760.31,Revenue,Petty Cash
Brighton & Hove City Council,http://statistics.data.gov.uk/id/local-authority/00ML,Adult Social Care,BVASOC,ASC Learning Disabilities,ALD,Supplies and Services,E,Print Stat & Gen Office Exps,ED,02/07/2014,PAY00676035,LDAS,LD Accommodation Services,18.18,Revenue,Petty Cash
Brighton & Hove City Council,http://statistics.data.gov.uk/id/local-authority/00ML,Adult Social Care,BVASOC,ASC Memory Cognition Support,MEM,Supplies and Services,E,Catering,EB,02/07/2014,PAY00676037,RCOP,Resource Centres Older People,1156.30,Revenue,Petty Cash
Brighton & Hove City Council,http://statistics.data.gov.uk/id/local-authority/00ML,Adult Social Care,BVASOC,ASC Memory Cognition Support,MEM,Supplies and Services,E,Communications n Computing,EH,02/07/2014,PAY00676037,RCOP,Resource Centres Older People,18.78,Revenue,Petty Cash
Brighton & Hove City Council,http://statistics.data.gov.uk/id/local-authority/00ML,Adult Social Care,BVASOC,ASC Memory Cognition Support,MEM,Supplies and Services,E,Equip't Furniture n Materials,EA,02/07/2014,PAY00676037,RCOP,Resource Centres Older People,163.55,Revenue,Petty Cash
Brighton & Hove City Council,http://statistics.data.gov.uk/id/local-authority/00ML,Adult Social Care,BVASOC,ASC Memory Cognition Support,MEM,Supplies and Services,E,Print Stat & Gen Office Exps,ED,02/07/2014,PAY00676037,RCOP,Resource Centres Older People,3.33,Revenue,Petty Cash
Brighton & Hove City Council,http://statistics.data.gov.uk/id/local-authority/00ML,Adult Social Care,BVASOC,ASC Memory Cognition Support,MEM,Transport Related,D,Public Transport,DD,02/07/2014,PAY00676037,RCOP,Resource Centres Older People,6.00,Revenue,Petty Cash
Brighton & Hove City Council,http://statistics.data.gov.uk/id/local-authority/00ML,Non-BHC Organisations,BVANON,Trusts,TRT,Supplies and Services,E,Miscellaneous Expenses,EM,02/07/2014,PAY00676037,NBHC,Non Council,47.00,Revenue,Petty Cash
Brighton & Hove City Council,http://statistics.data.gov.uk/id/local-authority/00ML,Non I&E,BVANON,Trusts,TRT,Supplies and Services,E,Miscellaneous Expenses,EM,02/07/2014,PAY00676037,NBHC,Non Council,43.50,Revenue,Petty Cash
Brighton & Hove City Council,http://statistics.data.gov.uk/id/local-authority/00ML,Adult Social Care,BVASOC,ASC Learning Disabilities,ALD,Premises Related,C,Cleaning n Domestic Supps,CH,02/07/2014,PAY00676038,RESP,Respite Services,19.05,Revenue,Petty Cash
Brighton & Hove City Council,http://statistics.data.gov.uk/id/local-authority/00ML,Adult Social Care,BVASOC,ASC Learning Disabilities,ALD,Supplies and Services,E,Catering,EB,02/07/2014,PAY00676038,RESP,Respite Services,417.68,Revenue,Petty Cash
Brighton & Hove City Council,http://statistics.data.gov.uk/id/local-authority/00ML,Adult Social Care,BVASOC,ASC Learning Disabilities,ALD,Supplies and Services,E,Equip't Furniture n Materials,EA,02/07/2014,PAY00676038,RESP,Respite Services,69.02,Revenue,Petty Cash
Brighton & Hove City Council,http://statistics.data.gov.uk/id/local-authority/00ML,Adult Social Care,BVASOC,ASC Learning Disabilities,ALD,Supplies and Services,E,Expenses,EJ,02/07/2014,PAY00676038,RESP,Respite Services,184.73,Revenue,Petty Cash
Brighton & Hove City Council,http://statistics.data.gov.uk/id/local-authority/00ML,Adult Social Care,BVASOC,ASC Learning Disabilities,ALD,Transport Related,D,Public Transport,DD,02/07/2014,PAY00676038,RESP,Respite Services,49.50,Revenue,Petty Cash
Brighton & Hove City Council,http://statistics.data.gov.uk/id/local-authority/00ML,Non I&E,BVANON,Trusts,TRT,Supplies and Services,E,Miscellaneous Expenses,EM,02/07/2014,PAY00676038,NBHC,Non Council,15.43,Revenue,Petty Cash
Brighton & Hove City Council,http://statistics.data.gov.uk/id/local-authority/00ML,Adult Social Care,BVASOC,ASC Learning Disabilities,ALD,Supplies and Services,E,Catering,EB,02/07/2014,PAY00676040,RESP,Respite Services,273.04,Revenue,Tastables
Brighton & Hove City Council,http://statistics.data.gov.uk/id/local-authority/00ML,Adult Social Care,BVASOC,ASC Physical Support,PHY,Supplies and Services,E,Catering,EB,02/07/2014,PAY00676040,DAYS,Day Services,34.04,Revenue,Tastables
Brighton & Hove City Council,http://statistics.data.gov.uk/id/local-authority/00ML,Adult Social Care,BVASOC,ASC Physical Support,PHY,Supplies and Services,E,Catering,EB,02/07/2014,PAY00676040,RCOP,Resource Centres Older People,199.56,Revenue,Tastables
Brighton & Hove City Council,http://statistics.data.gov.uk/id/local-authority/00ML,Children`s & Education Serv,BVAEDU,Ed EY PVI,ENP,Supplies and Services,E,Grants n Subscriptions,EK,02/07/2014,PAY00676042,EYRS,Early Years,7465.00,Revenue,Little Ducklings Pre-School
Brighton & Hove City Council,http://statistics.data.gov.uk/id/local-authority/00ML,Highways and Transportation,BVAHRT,Parking Services,PRK,Third Party Payments,F,Private Contractors,FJ,02/07/2014,PAY00676045,PARK,Parking,210566.87,Revenue,NSL Ltd
Brighton & Hove City Council,http://statistics.data.gov.uk/id/local-authority/00ML,Central Support and Overheads,BVACEN,Support Services (SSC),PPT,Supplies and Services,E,Communications n Computing,EH,02/07/2014,PAY00676046,SFPR,Strategic Finance and Proc,8673.88,Revenue,Figtree Systems (Europe) Ltd
Brighton & Hove City Council,http://statistics.data.gov.uk/id/local-authority/00ML,Housing General Fund,BVAHOG,Homelessness,HML,Supplies and Services,E,Print Stat & Gen Office Exps,ED,02/07/2014,PAY00676048,TAAS,Temp Accom and Allocations,12.00,Revenue,Portsdown Office Ltd
Brighton & Hove City Council,http://statistics.data.gov.uk/id/local-authority/00ML,Non I&E,BVANON,CAP Mgmnt and Suppt Services,4PT,New Construction n Conversion,PB,New Construction n Conversion,PBL5,02/07/2014,PAY00676048,PROP,Property and Design,25783.01,Capital,Portsdown Office Ltd
Brighton & Hove City Council,http://statistics.data.gov.uk/id/local-authority/00ML,Children`s & Education Serv,BVAEDU,Ed EY PVI,ENP,Supplies and Services,E,Grants n Subscriptions,EK,02/07/2014,PAY00676050,EYRS,Early Years,8664.00,Revenue,Brighton & Hove High School
Brighton & Hove City Council,http://statistics.data.gov.uk/id/local-authority/00ML,Library Services,BVACUL,Library Service,LBR,Supplies and Services,E,Goods for Resale,EG,02/07/2014,PAY00676052,LIBS,Libraries,541.16,Revenue,International Greetings UK Ltd
Brighton & Hove City Council,http://statistics.data.gov.uk/id/local-authority/00ML,Central Support and Overheads,BVACEN,Support Services (SSC),PPT,Indirect Employees,B,Training,BM,02/07/2014,PAY00676053,POLI,Policy and Initiatives,1581.36,Revenue,Solace Enterprises Ltd
Brighton & Hove City Council,http://statistics.data.gov.uk/id/local-authority/00ML,Adult Social Care,BVASOC,ASC Memory Cognition Support,MEM,Customer n Client Receipts,M,Fees n Charges,MB,02/07/2014,PAY00676054,COGN,Memory Cognition Support,-202.64,Revenue,Partridge House
Brighton & Hove City Council,http://statistics.data.gov.uk/id/local-authority/00ML,Adult Social Care,BVASOC,ASC Memory Cognition Support,MEM,Third Party Payments,F,Other Establishments,FH,02/07/2014,PAY00676054,COGN,Memory Cognition Support,1245.97,Revenue,Partridge House
Brighton & Hove City Council,http://statistics.data.gov.uk/id/local-authority/00ML,Adult Social Care,BVASOC,ASC Learning Disabilities,ALD,Third Party Payments,F,Other Establishments,FH,02/07/2014,PAY00676056,LDIS,Learning Disabilities,615.04,Revenue,Southdown Housing Association
Brighton & Hove City Council,http://statistics.data.gov.uk/id/local-authority/00ML,Adult Social Care,BVASOC,ASC Memory Cognition Support,MEM,Customer n Client Receipts,M,Fees n Charges,MB,02/07/2014,PAY00676057,COGN,Memory Cognition Support,-416.23,Revenue,Macleod Pinsent Care Ltd
Brighton & Hove City Council,http://statistics.data.gov.uk/id/local-authority/00ML,Adult Social Care,BVASOC,ASC Memory Cognition Support,MEM,Third Party Payments,F,Other Establishments,FH,02/07/2014,PAY00676057,COGN,Memory Cognition Support,3781.29,Revenue,Macleod Pinsent Care Ltd
Brighton & Hove City Council,http://statistics.data.gov.uk/id/local-authority/00ML,Housing General Fund,BVAHOG,Hsing Benefits,HGB,Transport Related,D,Other Transport Costs,DG,02/07/2014,PAY00676058,AUDB,Audit and Business Risk,287.13,Revenue,Payment to Individual
Brighton & Hove City Council,http://statistics.data.gov.uk/id/local-authority/00ML,Adult Social Care,BVASOC,ASC Learning Disabilities,ALD,Premises Related,C,Cleaning n Domestic Supps,CH,02/07/2014,PAY00676059,LDAS,LD Accommodation Services,110.23,Revenue,Petty Cash
Brighton & Hove City Council,http://statistics.data.gov.uk/id/local-authority/00ML,Adult Social Care,BVASOC,ASC Learning Disabilities,ALD,Supplies and Services,E,Catering,EB,02/07/2014,PAY00676059,LDAS,LD Accommodation Services,669.11,Revenue,Petty Cash
Brighton & Hove City Council,http://statistics.data.gov.uk/id/local-authority/00ML,Adult Social Care,BVASOC,ASC Learning Disabilities,ALD,Supplies and Services,E,Equip't Furniture n Materials,EA,02/07/2014,PAY00676059,LDAS,LD Accommodation Services,41.58,Revenue,Petty Cash
Brighton & Hove City Council,http://statistics.data.gov.uk/id/local-authority/00ML,Adult Social Care,BVASOC,ASC Learning Disabilities,ALD,Supplies and Services,E,Print Stat & Gen Office Exps,ED,02/07/2014,PAY00676059,LDAS,LD Accommodation Services,17.11,Revenue,Petty Cash
Brighton & Hove City Council,http://statistics.data.gov.uk/id/local-authority/00ML,Adult Social Care,BVASOC,ASC Learning Disabilities,ALD,Transport Related,D,Public Transport,DD,02/07/2014,PAY00676059,LDAS,LD Accommodation Services,35.30,Revenue,Petty Cash
Brighton & Hove City Council,http://statistics.data.gov.uk/id/local-authority/00ML,Adult Social Care,BVASOC,ASC Learning Disabilities,ALD,Customer n Client Receipts,M,Fees n Charges,MB,02/07/2014,PAY00676060,LDIS,Learning Disabilities,-112.00,Revenue,Payment to Individual
Brighton & Hove City Council,http://statistics.data.gov.uk/id/local-authority/00ML,Adult Social Care,BVASOC,ASC Learning Disabilities,ALD,Third Party Payments,F,Other Establishments,FH,02/07/2014,PAY00676060,LDIS,Learning Disabilities,4486.44,Revenue,Payment to Individual
Brighton & Hove City Council,http://statistics.data.gov.uk/id/local-authority/00ML,Environment & Regulatory Serv,BVAERS,Flood Drainage and Coast Prtn,FDC,Premises Related,C,Repair Maint n Alterations,CA,02/07/2014,PAY00676061,HWEN,Highways Engineering,5175.00,Revenue,High-Point Rendel Ltd
Brighton & Hove City Council,http://statistics.data.gov.uk/id/local-authority/00ML,Housing General Fund,BVAHOG,Homelessness,HML,Premises Related,C,Rents Payable,CC,02/07/2014,PAY00676062,TAAS,Temp Accom and Allocations,850.00,Revenue,Payment to Individual
Brighton & Hove City Council,http://statistics.data.gov.uk/id/local-authority/00ML,Highways and Transportation,BVAHRT,Traffic Mgmnt and Road Safety,TMR,Third Party Payments,F,Other Establishments,FH,02/07/2014,PAY00676063,TPRS,Transport Plan and Road Safety,67000.00,Revenue,The Police and Crime Commissioner for Sussex
Brighton & Hove City Council,http://statistics.data.gov.uk/id/local-authority/00ML,Housing General Fund,BVAHOG,Homelessness,HML,Premises Related,C,Rents Payable,CC,02/07/2014,PAY00676067,HOSS,Housing Supports Services,2260.13,Revenue,Forward Properties Limited
Brighton & Hove City Council,http://statistics.data.gov.uk/id/local-authority/00ML,Housing General Fund,BVAHOG,Homelessness,HML,Premises Related,C,Rents Payable,CC,02/07/2014,PAY00676067,TAAS,Temp Accom and Allocations,1250.00,Revenue,Forward Properties Limited
Brighton & Hove City Council,http://statistics.data.gov.uk/id/local-authority/00ML,Children`s & Education Serv,BVAEDU,Ed EY PVI,ENP,Supplies and Services,E,Grants n Subscriptions,EK,02/07/2014,PAY00676068,EYRS,Early Years,5355.00,Revenue,Sunshine Day Nursery
Brighton & Hove City Council,http://statistics.data.gov.uk/id/local-authority/00ML,Environment & Regulatory Serv,BVAERS,Management Services (DEC),MGT,Transport Related,D,Direct Transport Costs,DA,02/07/2014,PAY00676069,CICL,City Clean,313.00,Revenue,BTR Brakes (Sussex) Ltd
Brighton & Hove City Council,http://statistics.data.gov.uk/id/local-authority/00ML,Adult Social Care,BVASOC,Assistive Equipment & Tech,AET,Supplies and Services,E,Equip't Furniture n Materials,EA,02/07/2014,PAY00676070,SSCT,S75 SCT,278.00,Revenue,Alsford Timber Ltd
Brighton & Hove City Council,http://statistics.data.gov.uk/id/local-authority/00ML,Environment & Regulatory Serv,BVAERS,Environmental Health,EVH,Third Party Payments,F,Private Contractors,FJ,02/07/2014,PAY00676071,CICL,City Clean,71220.13,Revenue,Wetton Cleaning Services Ltd
Brighton & Hove City Council,http://statistics.data.gov.uk/id/local-authority/00ML,Adult Social Care,BVASOC,ASC Memory Cognition Support,MEM,Customer n Client Receipts,M,Fees n Charges,MB,02/07/2014,PAY00676072,COGN,Memory Cognition Support,-2267.44,Revenue,Clifden House Nursing Home
Brighton & Hove City Council,http://statistics.data.gov.uk/id/local-authority/00ML,Adult Social Care,BVASOC,ASC Memory Cognition Support,MEM,Third Party Payments,F,Other Establishments,FH,02/07/2014,PAY00676072,COGN,Memory Cognition Support,3202.32,Revenue,Clifden House Nursing Home
Brighton & Hove City Council,http://statistics.data.gov.uk/id/local-authority/00ML,Highways and Transportation,BVAHRT,Parking Services,PRK,Premises Related,C,Cleaning n Domestic Supps,CH,02/07/2014,PAY00676073,PARK,Parking,5129.50,Revenue,Peake Cleaning & Hygiene Services Ltd
Brighton & Hove City Council,http://statistics.data.gov.uk/id/local-authority/00ML,Housing General Fund,BVAHOG,Homelessness,HML,Premises Related,C,Repair Maint n Alterations,CA,02/07/2014,PAY00676073,TAAS,Temp Accom and Allocations,3436.00,Revenue,Peake Cleaning & Hygiene Services Ltd
Brighton & Hove City Council,http://statistics.data.gov.uk/id/local-authority/00ML,Adult Social Care,BVASOC,ASC Mental Health Support,MHP,Third Party Payments,F,Other Establishments,FH,02/07/2014,PAY00676075,MENH,Mental Health Support,2957.28,Revenue,Payment to Individual
Brighton & Hove City Council,http://statistics.data.gov.uk/id/local-authority/00ML,Adult Social Care,BVASOC,ASC Learning Disabilities,ALD,Third Party Payments,F,Other Establishments,FH,02/07/2014,PAY00676077,LDIS,Learning Disabilities,1348.00,Revenue,Payment to Individual
Brighton & Hove City Council,http://statistics.data.gov.uk/id/local-authority/00ML,Central Support and Overheads,BVACEN,Support Services (SSC),PPT,Indirect Employees,B,Training,BM,02/07/2014,PAY00676078,ICTA,ICT,445.00,Revenue,GovNet Communications
Brighton & Hove City Council,http://statistics.data.gov.uk/id/local-authority/00ML,Adult Social Care,BVASOC,ASC Mental Health Support,MHP,Customer n Client Receipts,M,Fees n Charges,MB,02/07/2014,PAY00676079,MENH,Mental Health Support,-896.00,Revenue,Payment to Individual
Brighton & Hove City Council,http://statistics.data.gov.uk/id/local-authority/00ML,Adult Social Care,BVASOC,ASC Mental Health Support,MHP,Third Party Payments,F,Other Establishments,FH,02/07/2014,PAY00676079,MENH,Mental Health Support,4435.92,Revenue,Payment to Individual
Brighton & Hove City Council,http://statistics.data.gov.uk/id/local-authority/00ML,Central Support and Overheads,BVACEN,Support Services (SSC),PPT,Supplies and Services,E,Communications n Computing,EH,02/07/2014,PAY00676080,ICTA,ICT,5052.93,Revenue,Virgin Media Business Ltd
Brighton & Hove City Council,http://statistics.data.gov.uk/id/local-authority/00ML,Housing Revenue Account,BVAHOU,Hsing Management - HRA,HGM,Supplies and Services,E,Communications n Computing,EH,02/07/2014,PAY00676080,HTEN,Tenancy Services,24.99,Revenue,Virgin Media Business Ltd
Brighton & Hove City Council,http://statistics.data.gov.uk/id/local-authority/00ML,Adult Social Care,BVASOC,ASC Memory Cognition Support,MEM,Third Party Payments,F,Other Establishments,FH,02/07/2014,PAY00676081,COGN,Memory Cognition Support,339.65,Revenue,Westholme Clinic Ltd
Brighton & Hove City Council,http://statistics.data.gov.uk/id/local-authority/00ML,Children`s & Education Serv,BVAEDU,Ed EY PVI,ENP,Supplies and Services,E,Grants n Subscriptions,EK,02/07/2014,PAY00676082,EYRS,Early Years,5711.00,Revenue,Brighton Day Nursery
Brighton & Hove City Council,http://statistics.data.gov.uk/id/local-authority/00ML,Non I&E,BVANON,CAP Mgmnt and Suppt Services,4PT,Intangible Fixed Assets,PI,Intangible Fixed Assets,PIL5,02/07/2014,PAY00676083,ICTA,ICT,1725.00,Capital,Hands-Free Computing Limited
Brighton & Hove City Council,http://statistics.data.gov.uk/id/local-authority/00ML,Public Health,BVAPHE,Public Health,PHE,Third Party Payments,F,Voluntary Associations,FG,02/07/2014,PAY00676084,PHCM,PH Commissioning,8750.00,Revenue,Carers Centre for Brighton & Hove Ltd
Brighton & Hove City Council,http://statistics.data.gov.uk/id/local-authority/00ML,Housing General Fund,BVAHOG,Homelessness,HML,Premises Related,C,Rents Payable,CC,02/07/2014,PAY00676085,TAAS,Temp Accom and Allocations,825.00,Revenue,Payment to Individual
Brighton & Hove City Council,http://statistics.data.gov.uk/id/local-authority/00ML,Adult Social Care,BVASOC,Assistive Equipment & Tech,AET,Supplies and Services,E,Communications n Computing,EH,02/07/2014,PAY00676087,SSCT,S75 SCT,58.50,Revenue,Silvalea Ltd
Brighton & Hove City Council,http://statistics.data.gov.uk/id/local-authority/00ML,Adult Social Care,BVASOC,Assistive Equipment & Tech,AET,Supplies and Services,E,Equip't Furniture n Materials,EA,02/07/2014,PAY00676087,SSCT,S75 SCT,350.00,Revenue,Silvalea Ltd
Brighton & Hove City Council,http://statistics.data.gov.uk/id/local-authority/00ML,Adult Social Care,BVASOC,ASC Learning Disabilities,ALD,Customer n Client Receipts,M,Fees n Charges,MB,02/07/2014,PAY00676088,LDIS,Learning Disabilities,-152.00,Revenue,Sanctuary Carr-Gomm
Brighton & Hove City Council,http://statistics.data.gov.uk/id/local-authority/00ML,Adult Social Care,BVASOC,ASC Learning Disabilities,ALD,Third Party Payments,F,Other Establishments,FH,02/07/2014,PAY00676088,LDIS,Learning Disabilities,2835.68,Revenue,Sanctuary Carr-Gomm
Brighton & Hove City Council,http://statistics.data.gov.uk/id/local-authority/00ML,Library Services,BVACUL,Library Service,LBR,Indirect Employees,B,Training,BM,02/07/2014,PAY00676089,LIBS,Libraries,99.00,Revenue,Petty Cash
Brighton & Hove City Council,http://statistics.data.gov.uk/id/local-authority/00ML,Library Services,BVACUL,Library Service,LBR,Supplies and Services,E,Catering,EB,02/07/2014,PAY00676089,LIBS,Libraries,1.00,Revenue,Petty Cash
Brighton & Hove City Council,http://statistics.data.gov.uk/id/local-authority/00ML,Library Services,BVACUL,Library Service,LBR,Supplies and Services,E,Equip't Furniture n Materials,EA,02/07/2014,PAY00676089,LIBS,Libraries,130.76,Revenue,Petty Cash
Brighton & Hove City Council,http://statistics.data.gov.uk/id/local-authority/00ML,Library Services,BVACUL,Library Service,LBR,Supplies and Services,E,Miscellaneous Expenses,EM,02/07/2014,PAY00676089,LIBS,Libraries,125.97,Revenue,Petty Cash
Brighton & Hove City Council,http://statistics.data.gov.uk/id/local-authority/00ML,Library Services,BVACUL,Library Service,LBR,Transport Related,D,Car Allowances,DE,02/07/2014,PAY00676089,LIBS,Libraries,21.93,Revenue,Petty Cash
Brighton & Hove City Council,http://statistics.data.gov.uk/id/local-authority/00ML,Library Services,BVACUL,Library Service,LBR,Transport Related,D,Other Transport Costs,DG,02/07/2014,PAY00676089,LIBS,Libraries,23.50,Revenue,Petty Cash
Brighton & Hove City Council,http://statistics.data.gov.uk/id/local-authority/00ML,Non I&E,BVANON,CAP Libs Culture and Hertage,4LH,Plant Machinery n Equipment,PE2,Plant Machinery n Equipment,PE2L5,02/07/2014,PAY00676089,LIBS,Libraries,33.16,Capital,Petty Cash
Brighton & Hove City Council,http://statistics.data.gov.uk/id/local-authority/00ML,Central Support and Overheads,BVACEN,Holding Accounts,PPH,Supplies and Services,E,Communications n Computing,EH,02/07/2014,PAY00676090,PROP,Property and Design,2710.57,Revenue,Royal Mail Group Ltd
Brighton & Hove City Council,http://statistics.data.gov.uk/id/local-authority/00ML,Adult Social Care,BVASOC,ASC Learning Disabilities,ALD,Customer n Client Receipts,M,Fees n Charges,MB,02/07/2014,PAY00676091,LDIS,Learning Disabilities,-456.00,Revenue,Payment to Individual
Brighton & Hove City Council,http://statistics.data.gov.uk/id/local-authority/00ML,Adult Social Care,BVASOC,ASC Learning Disabilities,ALD,Third Party Payments,F,Other Establishments,FH,02/07/2014,PAY00676091,LDIS,Learning Disabilities,8213.92,Revenue,Payment to Individual
Brighton & Hove City Council,http://statistics.data.gov.uk/id/local-authority/00ML,Children`s & Education Serv,BVAEDU,Child Srvcs - Other Fam Supp,FFX,Transfer Payments,G,Other Transfer Payments,GD,02/07/2014,PAY00676092,DISS,Disability Services,6481.50,Revenue,Barnardo`s
Brighton & Hove City Council,http://statistics.data.gov.uk/id/local-authority/00ML,Housing General Fund,BVAHOG,Homelessness,HML,Premises Related,C,Rents Payable,CC,02/07/2014,PAY00676098,TAAS,Temp Accom and Allocations,925.00,Revenue,Payment to Individual
Brighton & Hove City Council,http://statistics.data.gov.uk/id/local-authority/00ML,Children`s & Education Serv,BVAEDU,Ed EY Central,EAE,Supplies and Services,E,Miscellaneous Expenses,EM,02/07/2014,PAY00676100,EYRS,Early Years,700.00,Revenue,Safety Net Ltd
Brighton & Hove City Council,http://statistics.data.gov.uk/id/local-authority/00ML,Central Support and Overheads,BVACEN,Support Services (SSC),PPT,Premises Related,C,Repair Maint n Alterations,CA,02/07/2014,PAY00676101,PROP,Property and Design,34213.16,Revenue,Lansdowne Specialist Contractors Ltd
Brighton & Hove City Council,http://statistics.data.gov.uk/id/local-authority/00ML,Children`s & Education Serv,BVAEDU,Ed EY PVI,ENP,Supplies and Services,E,Grants n Subscriptions,EK,02/07/2014,PAY00676102,EYRS,Early Years,10755.00,Revenue,Home From Home Nursery
Brighton & Hove City Council,http://statistics.data.gov.uk/id/local-authority/00ML,Central Support and Overheads,BVACEN,Support Services (SSC),PPT,Premises Related,C,Repair Maint n Alterations,CA,02/07/2014,PAY00676104,PROP,Property and Design,617.50,Revenue,Water Solutions (GB) Ltd
Brighton & Hove City Council,http://statistics.data.gov.uk/id/local-authority/00ML,Cultural and Related Serv,BVACUL,Culture and Heritage,CHG,Supplies and Services,E,Miscellaneous Expenses,EM,02/07/2014,PAY00676105,ODEV,Outdoor Events,1000.00,Revenue,EDSF 1st Aid Team
Brighton & Hove City Council,http://statistics.data.gov.uk/id/local-authority/00ML,Environment & Regulatory Serv,BVAERS,Community Safety,CMY,Third Party Payments,F,Other Establishments,FH,02/07/2014,PAY00676108,CSTP,Comm Safety Team & Partnership,28715.00,Revenue,Survivors` Network Limited
Brighton & Hove City Council,http://statistics.data.gov.uk/id/local-authority/00ML,Adult Social Care,BVASOC,ASC Physical Support,PHY,Customer n Client Receipts,M,Fees n Charges,MB,02/07/2014,PAY00676109,PHYS,Physical Support,-188.00,Revenue,Care UK Homecare
Brighton & Hove City Council,http://statistics.data.gov.uk/id/local-authority/00ML,Adult Social Care,BVASOC,ASC Physical Support,PHY,Third Party Payments,F,Other Establishments,FH,02/07/2014,PAY00676109,PHYS,Physical Support,10048.52,Revenue,Care UK Homecare
Brighton & Hove City Council,http://statistics.data.gov.uk/id/local-authority/00ML,Housing Revenue Account,BVAHOU,Hsing Management - HRA,HGM,Premises Related,C,Repair Maint n Alterations,CA,02/07/2014,PAY00676110,HIII,Income Involvement Improvement,675.00,Revenue,Greenacre Recycling Ltd
Brighton & Hove City Council,http://statistics.data.gov.uk/id/local-authority/00ML,Housing Revenue Account,BVAHOU,Hsing Management - HRA,HGM,Supplies and Services,E,Miscellaneous Expenses,EM,02/07/2014,PAY00676110,HTEN,Tenancy Services,620.00,Revenue,Greenacre Recycling Ltd
Brighton & Hove City Council,http://statistics.data.gov.uk/id/local-authority/00ML,Non I&E,BVANON,CAP Other Env Services,4EV,New Construction n Conversion,PB,New Construction n Conversion,PBL5,02/07/2014,PAY00676111,PROP,Property and Design,209.00,Capital,Action on Hearing Loss (Products)
Brighton & Hove City Council,http://statistics.data.gov.uk/id/local-authority/00ML,Children`s & Education Serv,BVAEDU,Child Srvcs - Othr LAC Svcs,FLX,Transfer Payments,G,Other Transfer Payments,GD,02/07/2014,PAY00676112,CHIC,Children In Care,549.38,Revenue,YMCA Downslink Group
Brighton & Hove City Council,http://statistics.data.gov.uk/id/local-authority/00ML,Children`s & Education Serv,BVAEDU,Ed EY PVI,ENP,Supplies and Services,E,Grants n Subscriptions,EK,02/07/2014,PAY00676113,EYRS,Early Years,17302.00,Revenue,Boomerang Kids
Brighton & Hove City Council,http://statistics.data.gov.uk/id/local-authority/00ML,Children`s & Education Serv,BVAEDU,Ed EY PVI,ENP,Supplies and Services,E,Grants n Subscriptions,EK,02/07/2014,PAY00676114,EYRS,Early Years,2039.00,Revenue,New Road Montessori Nursery School
Brighton & Hove City Council,http://statistics.data.gov.uk/id/local-authority/00ML,Children`s & Education Serv,BVAEDU,Ed EY Central,EAE,Supplies and Services,E,Grants n Subscriptions,EK,02/07/2014,PAY00676115,EYRS,Early Years,1496.25,Revenue,Class Of Their Own Ltd
Brighton & Hove City Council,http://statistics.data.gov.uk/id/local-authority/00ML,Children`s & Education Serv,BVAEDU,Ed EY PVI,ENP,Supplies and Services,E,Grants n Subscriptions,EK,02/07/2014,PAY00676116,EYRS,Early Years,12110.00,Revenue,Honeycroft
Brighton & Hove City Council,http://statistics.data.gov.uk/id/local-authority/00ML,Children`s & Education Serv,BVAEDU,Ed EY PVI,ENP,Supplies and Services,E,Grants n Subscriptions,EK,02/07/2014,PAY00676118,EYRS,Early Years,4137.00,Revenue,Wonder Years Ltd
Brighton & Hove City Council,http://statistics.data.gov.uk/id/local-authority/00ML,Central Support and Overheads,BVACEN,Support Services (SSC),PPT,Indirect Employees,B,Training,BM,02/07/2014,PAY00676119,PROP,Property and Design,2701.50,Revenue,Silicon Beach Training Ltd
Brighton & Hove City Council,http://statistics.data.gov.uk/id/local-authority/00ML,Children`s & Education Serv,BVAEDU,Ed EY PVI,ENP,Supplies and Services,E,Grants n Subscriptions,EK,02/07/2014,PAY00676120,EYRS,Early Years,2671.00,Revenue,The Childrens House
Brighton & Hove City Council,http://statistics.data.gov.uk/id/local-authority/00ML,Adult Social Care,BVASOC,ASC Physical Support,PHY,Customer n Client Receipts,M,Fees n Charges,MB,02/07/2014,PAY00676121,PHYS,Physical Support,-252.00,Revenue,Payment to Individual
Brighton & Hove City Council,http://statistics.data.gov.uk/id/local-authority/00ML,Adult Social Care,BVASOC,ASC Physical Support,PHY,Third Party Payments,F,Other Establishments,FH,02/07/2014,PAY00676121,PHYS,Physical Support,1678.88,Revenue,Payment to Individual
Brighton & Hove City Council,http://statistics.data.gov.uk/id/local-authority/00ML,Cultural and Related Serv,BVACUL,Highways and Roads - Mntnce,HRM,Premises Related,C,Repair Maint n Alterations,CA,02/07/2014,PAY00676122,PROP,Property and Design,5981.00,Revenue,FJS Building & Property Maintenance Ltd
Brighton & Hove City Council,http://statistics.data.gov.uk/id/local-authority/00ML,Environment & Regulatory Serv,BVAERS,Management Services (DEC),MGT,Premises Related,C,Repair Maint n Alterations,CA,02/07/2014,PAY00676122,CICL,City Clean,738.00,Revenue,FJS Building & Property Maintenance Ltd
Brighton & Hove City Council,http://statistics.data.gov.uk/id/local-authority/00ML,Adult Social Care,BVASOC,ASC Mental Health Support,MHP,Customer n Client Receipts,M,Fees n Charges,MB,02/07/2014,PAY00676123,MENH,Mental Health Support,-112.00,Revenue,Victoria Lodge Care Home
Brighton & Hove City Council,http://statistics.data.gov.uk/id/local-authority/00ML,Adult Social Care,BVASOC,ASC Mental Health Support,MHP,Third Party Payments,F,Other Establishments,FH,02/07/2014,PAY00676123,MENH,Mental Health Support,4435.92,Revenue,Victoria Lodge Care Home
Brighton & Hove City Council,http://statistics.data.gov.uk/id/local-authority/00ML,Library Services,BVACUL,Library Service,LBR,Supplies and Services,E,Goods for Resale,EG,02/07/2014,PAY00676124,LIBS,Libraries,494.64,Revenue,Hype Associates Ltd
Brighton & Hove City Council,http://statistics.data.gov.uk/id/local-authority/00ML,Central Support and Overheads,BVACEN,Support Services (SSC),PPT,Indirect Employees,B,Training,BM,02/07/2014,PAY00676125,ORGD,Organisational Development,8547.00,Revenue,Freedom Leisure
Brighton & Hove City Council,http://statistics.data.gov.uk/id/local-authority/00ML,Central Support and Overheads,BVACEN,Holding Accounts,PPH,Premises Related,C,Repair Maint n Alterations,CA,02/07/2014,PAY00676127,PROP,Property and Design,363.70,Revenue,Plumbase
Brighton & Hove City Council,http://statistics.data.gov.uk/id/local-authority/00ML,Children`s & Education Serv,BVAEDU,Ed EY Central,EAE,Supplies and Services,E,Miscellaneous Expenses,EM,02/07/2014,PAY00676128,EYRS,Early Years,975.00,Revenue,Sussex Wildlife Trust
Brighton & Hove City Council,http://statistics.data.gov.uk/id/local-authority/00ML,Children`s & Education Serv,BVAEDU,Ed EY PVI,ENP,Supplies and Services,E,Grants n Subscriptions,EK,02/07/2014,PAY00676129,EYRS,Early Years,3668.00,Revenue,The Ark Pre-School
Brighton & Hove City Council,http://statistics.data.gov.uk/id/local-authority/00ML,Children`s & Education Serv,BVAEDU,Ed Ed Other LA Attrib Sch,ELA,Transport Related,D,Public Transport,DD,02/07/2014,PAY00676130,OEDS,Other Education Support,1232.65,Revenue,Southern Railway Ltd
Brighton & Hove City Council,http://statistics.data.gov.uk/id/local-authority/00ML,Adult Social Care,BVASOC,ASC Mental Health Support,MHP,Customer n Client Receipts,M,Fees n Charges,MB,02/07/2014,PAY00676131,MENH,Mental Health Support,-397.20,Revenue,Clifton Court Development Company
Brighton & Hove City Council,http://statistics.data.gov.uk/id/local-authority/00ML,Adult Social Care,BVASOC,ASC Mental Health Support,MHP,Third Party Payments,F,Other Establishments,FH,02/07/2014,PAY00676131,MENH,Mental Health Support,1486.72,Revenue,Clifton Court Development Company
Brighton & Hove City Council,http://statistics.data.gov.uk/id/local-authority/00ML,Children`s & Education Serv,BVAEDU,Ed EY PVI,ENP,Supplies and Services,E,Grants n Subscriptions,EK,02/07/2014,PAY00676132,EYRS,Early Years,5897.00,Revenue,Church Hill Playgroup
Brighton & Hove City Council,http://statistics.data.gov.uk/id/local-authority/00ML,Housing General Fund,BVAHOG,Homelessness,HML,Premises Related,C,Rents Payable,CC,02/07/2014,PAY00676133,TAAS,Temp Accom and Allocations,670.00,Revenue,Payment to Individual
Brighton & Hove City Council,http://statistics.data.gov.uk/id/local-authority/00ML,Children`s & Education Serv,BVAEDU,Ed EY PVI,ENP,Supplies and Services,E,Grants n Subscriptions,EK,02/07/2014,PAY00676136,EYRS,Early Years,8200.00,Revenue,Robins Nursery School Ltd
Brighton & Hove City Council,http://statistics.data.gov.uk/id/local-authority/00ML,Housing Revenue Account,BVAHOU,Hsing Management - HRA,HGM,Premises Related,C,Repair Maint n Alterations,CA,02/07/2014,PAY00676137,HTEN,Tenancy Services,1354.74,Revenue,Homebase Limited
Brighton & Hove City Council,http://statistics.data.gov.uk/id/local-authority/00ML,Children`s & Education Serv,BVAEDU,Ed EY PVI,ENP,Supplies and Services,E,Grants n Subscriptions,EK,02/07/2014,PAY00676138,EYRS,Early Years,4283.00,Revenue,Lancing College
Brighton & Hove City Council,http://statistics.data.gov.uk/id/local-authority/00ML,Children`s & Education Serv,BVAEDU,Child Srvcs - Other Fam Supp,FFX,Transfer Payments,G,Other Transfer Payments,GD,02/07/2014,PAY00676140,DISS,Disability Services,1265.00,Revenue,Extratime Ltd
Brighton & Hove City Council,http://statistics.data.gov.uk/id/local-authority/00ML,Adult Social Care,BVASOC,ASC Learning Disabilities,ALD,Third Party Payments,F,Other Establishments,FH,02/07/2014,PAY00676142,LDIS,Learning Disabilities,7.40,Revenue,Saga Homecare
Brighton & Hove City Council,http://statistics.data.gov.uk/id/local-authority/00ML,Adult Social Care,BVASOC,ASC Memory Cognition Support,MEM,Customer n Client Receipts,M,Fees n Charges,MB,02/07/2014,PAY00676142,COGN,Memory Cognition Support,-198.00,Revenue,Saga Homecare
Brighton & Hove City Council,http://statistics.data.gov.uk/id/local-authority/00ML,Adult Social Care,BVASOC,ASC Memory Cognition Support,MEM,Third Party Payments,F,Other Establishments,FH,02/07/2014,PAY00676142,COGN,Memory Cognition Support,1043.70,Revenue,Saga Homecare
Brighton & Hove City Council,http://statistics.data.gov.uk/id/local-authority/00ML,Adult Social Care,BVASOC,ASC Mental Health Support,MHP,Customer n Client Receipts,M,Fees n Charges,MB,02/07/2014,PAY00676142,MENH,Mental Health Support,-144.00,Revenue,Saga Homecare
Brighton & Hove City Council,http://statistics.data.gov.uk/id/local-authority/00ML,Adult Social Care,BVASOC,ASC Mental Health Support,MHP,Third Party Payments,F,Other Establishments,FH,02/07/2014,PAY00676142,MENH,Mental Health Support,634.30,Revenue,Saga Homecare
Brighton & Hove City Council,http://statistics.data.gov.uk/id/local-authority/00ML,Adult Social Care,BVASOC,ASC Physical Support,PHY,Customer n Client Receipts,M,Fees n Charges,MB,02/07/2014,PAY00676142,PHYS,Physical Support,-1212.57,Revenue,Saga Homecare
Brighton & Hove City Council,http://statistics.data.gov.uk/id/local-authority/00ML,Adult Social Care,BVASOC,ASC Physical Support,PHY,Third Party Payments,F,Other Establishments,FH,02/07/2014,PAY00676142,PHYS,Physical Support,10471.01,Revenue,Saga Homecare
Brighton & Hove City Council,http://statistics.data.gov.uk/id/local-authority/00ML,Adult Social Care,BVASOC,ASC Learning Disabilities,ALD,Customer n Client Receipts,M,Fees n Charges,MB,02/07/2014,PAY00676143,LDIS,Learning Disabilities,-1616.00,Revenue,CMG Limited
Brighton & Hove City Council,http://statistics.data.gov.uk/id/local-authority/00ML,Adult Social Care,BVASOC,ASC Learning Disabilities,ALD,Third Party Payments,F,Other Establishments,FH,02/07/2014,PAY00676143,LDIS,Learning Disabilities,96085.92,Revenue,CMG Limited
Brighton & Hove City Council,http://statistics.data.gov.uk/id/local-authority/00ML,Children`s & Education Serv,BVAEDU,Ed EY PVI,ENP,Supplies and Services,E,Grants n Subscriptions,EK,02/07/2014,PAY00676144,EYRS,Early Years,16799.00,Revenue,Footsteps Day Nursery
Brighton & Hove City Council,http://statistics.data.gov.uk/id/local-authority/00ML,Adult Social Care,BVASOC,ASC Physical Support,PHY,Supplies and Services,E,Catering,EB,02/07/2014,PAY00676145,RCOP,Resource Centres Older People,317.00,Revenue,K D Catering Butchers Ltd
Brighton & Hove City Council,http://statistics.data.gov.uk/id/local-authority/00ML,Children`s & Education Serv,BVAEDU,Ed EY PVI,ENP,Supplies and Services,E,Grants n Subscriptions,EK,02/07/2014,PAY00676146,EYRS,Early Years,18014.00,Revenue,Pumpkin Patch Nursery (Hove)
Brighton & Hove City Council,http://statistics.data.gov.uk/id/local-authority/00ML,Children`s & Education Serv,BVAEDU,Child Srvcs Direct Pymts,FFD,Third Party Payments,F,Other Establishments,FH,02/07/2014,PAY00676147,DISS,Disability Services,309.00,Revenue,Payment to Individual
Brighton & Hove City Council,http://statistics.data.gov.uk/id/local-authority/00ML,Central Support and Overheads,BVACEN,Support Services (SSC),PPT,Supplies and Services,E,Miscellaneous Expenses,EM,02/07/2014,PAY00676149,POLY,Policy,447.52,Revenue,Impamark
Brighton & Hove City Council,http://statistics.data.gov.uk/id/local-authority/00ML,Planning and Development,BVAPLA,Development Control,DEV,Transport Related,D,Public Transport,DD,02/07/2014,PAY00676150,DEVP,Development Planning,536.60,Revenue,City Car Club Ltd
Brighton & Hove City Council,http://statistics.data.gov.uk/id/local-authority/00ML,Housing General Fund,BVAHOG,Homelessness,HML,Premises Related,C,Rents Payable,CC,02/07/2014,PAY00676151,TAAS,Temp Accom and Allocations,12268.27,Revenue,Sanctuary Housing Association
Brighton & Hove City Council,http://statistics.data.gov.uk/id/local-authority/00ML,Housing General Fund,BVAHOG,Homelessness,HML,Premises Related,C,Rents Payable,CC,02/07/2014,PAY00676152,TAAS,Temp Accom and Allocations,75553.14,Revenue,KEM Property Services Ltd
Brighton & Hove City Council,http://statistics.data.gov.uk/id/local-authority/00ML,Adult Social Care,BVASOC,ASC Learning Disabilities,ALD,Direct Employees,A,Salaries,AA,02/07/2014,PAY00676154,DAYS,Day Services,39.22,Revenue,Guidant Group
Brighton & Hove City Council,http://statistics.data.gov.uk/id/local-authority/00ML,Adult Social Care,BVASOC,ASC Learning Disabilities,ALD,Direct Employees,A,Salaries,AA,02/07/2014,PAY00676154,LDAS,LD Accommodation Services,940.95,Revenue,Guidant Group
Brighton & Hove City Council,http://statistics.data.gov.uk/id/local-authority/00ML,Adult Social Care,BVASOC,ASC Learning Disabilities,ALD,Direct Employees,A,Salaries,AA,02/07/2014,PAY00676154,RESP,Respite Services,726.19,Revenue,Guidant Group
Brighton & Hove City Council,http://statistics.data.gov.uk/id/local-authority/00ML,Adult Social Care,BVASOC,ASC Learning Disabilities,ALD,Direct Employees,A,Salaries,AA,02/07/2014,PAY00676154,SUPE,Supported Employment,2.75,Revenue,Guidant Group
Brighton & Hove City Council,http://statistics.data.gov.uk/id/local-authority/00ML,Adult Social Care,BVASOC,ASC Memory Cognition Support,MEM,Direct Employees,A,Salaries,AA,02/07/2014,PAY00676154,RCOP,Resource Centres Older People,4845.27,Revenue,Guidant Group
Brighton & Hove City Council,http://statistics.data.gov.uk/id/local-authority/00ML,Adult Social Care,BVASOC,ASC Physical Support,PHY,Direct Employees,A,Salaries,AA,02/07/2014,PAY00676154,DAYS,Day Services,108.58,Revenue,Guidant Group
Brighton & Hove City Council,http://statistics.data.gov.uk/id/local-authority/00ML,Adult Social Care,BVASOC,ASC Physical Support,PHY,Direct Employees,A,Salaries,AA,02/07/2014,PAY00676154,HOME,Home Care,1349.54,Revenue,Guidant Group
Brighton & Hove City Council,http://statistics.data.gov.uk/id/local-authority/00ML,Adult Social Care,BVASOC,ASC Physical Support,PHY,Direct Employees,A,Salaries,AA,02/07/2014,PAY00676154,RCOP,Resource Centres Older People,4720.30,Revenue,Guidant Group
Brighton & Hove City Council,http://statistics.data.gov.uk/id/local-authority/00ML,Adult Social Care,BVASOC,Commission & Service Delivery,CMM,Direct Employees,A,Salaries,AA,02/07/2014,PAY00676154,COMM,Commissioning,22.26,Revenue,Guidant Group
Brighton & Hove City Council,http://statistics.data.gov.uk/id/local-authority/00ML,Adult Social Care,BVASOC,Social Care Activities,ACM,Direct Employees,A,Salaries,AA,02/07/2014,PAY00676154,ASIT,Assessment and SIT,5592.50,Revenue,Guidant Group
Brighton & Hove City Council,http://statistics.data.gov.uk/id/local-authority/00ML,Adult Social Care,BVASOC,Social Care Activities,ACM,Direct Employees,A,Salaries,AA,02/07/2014,PAY00676154,MGMT,Management,14.31,Revenue,Guidant Group
Brighton & Hove City Council,http://statistics.data.gov.uk/id/local-authority/00ML,Adult Social Care,BVASOC,S Svcs - Older People Svcs,PPL,Direct Employees,A,Salaries,AA,02/07/2014,PAY00676154,ASIT,Assessment and SIT,1323.69,Revenue,Guidant Group
Brighton & Hove City Council,http://statistics.data.gov.uk/id/local-authority/00ML,Central Services to the Public,BVACEN,Reg - Birth Death and Marriage,RBD,Direct Employees,A,Salaries,AA,02/07/2014,PAY00676154,LIFE,Life Events,708.30,Revenue,Guidant Group
Brighton & Hove City Council,http://statistics.data.gov.uk/id/local-authority/00ML,Central Support and Overheads,BVACEN,Support Services (SSC),PPT,Direct Employees,A,Salaries,AA,02/07/2014,PAY00676154,FINS,Financial Services,5164.32,Revenue,Guidant Group
Brighton & Hove City Council,http://statistics.data.gov.uk/id/local-authority/00ML,Central Support and Overheads,BVACEN,Support Services (SSC),PPT,Direct Employees,A,Salaries,AA,02/07/2014,PAY00676154,ICTA,ICT,28509.91,Revenue,Guidant Group
Brighton & Hove City Council,http://statistics.data.gov.uk/id/local-authority/00ML,Central Support and Overheads,BVACEN,Support Services (SSC),PPT,Direct Employees,A,Salaries,AA,02/07/2014,PAY00676154,LEGS,Legal Services,1996.70,Revenue,Guidant Group
Brighton & Hove City Council,http://statistics.data.gov.uk/id/local-authority/00ML,Central Support and Overheads,BVACEN,Support Services (SSC),PPT,Direct Employees,A,Salaries,AA,02/07/2014,PAY00676154,ORGD,Organisational Development,344.15,Revenue,Guidant Group
Brighton & Hove City Council,http://statistics.data.gov.uk/id/local-authority/00ML,Central Support and Overheads,BVACEN,Support Services (SSC),PPT,Direct Employees,A,Salaries,AA,02/07/2014,PAY00676154,PERR,Performance & Improvement,6786.88,Revenue,Guidant Group
Brighton & Hove City Council,http://statistics.data.gov.uk/id/local-authority/00ML,Central Support and Overheads,BVACEN,Support Services (SSC),PPT,Direct Employees,A,Salaries,AA,02/07/2014,PAY00676154,POLI,Policy and Initiatives,449.14,Revenue,Guidant Group
Brighton & Hove City Council,http://statistics.data.gov.uk/id/local-authority/00ML,Central Support and Overheads,BVACEN,Support Services (SSC),PPT,Direct Employees,A,Salaries,AA,02/07/2014,PAY00676154,POLY,Policy,456.48,Revenue,Guidant Group
Brighton & Hove City Council,http://statistics.data.gov.uk/id/local-authority/00ML,Central Support and Overheads,BVACEN,Support Services (SSC),PPT,Direct Employees,A,Salaries,AA,02/07/2014,PAY00676154,PROP,Property and Design,3883.58,Revenue,Guidant Group
Brighton & Hove City Council,http://statistics.data.gov.uk/id/local-authority/00ML,Central Support and Overheads,BVACEN,Support Services (SSC),PPT,Direct Employees,A,Salaries,AA,02/07/2014,PAY00676154,SFPR,Strategic Finance and Proc,258.40,Revenue,Guidant Group
Brighton & Hove City Council,http://statistics.data.gov.uk/id/local-authority/00ML,Children`s & Education Serv,BVAEDU,Child Srvcs Adoption,FAA,Direct Employees,A,Salaries,AA,02/07/2014,PAY00676154,CHIC,Children In Care,273.99,Revenue,Guidant Group
Brighton & Hove City Council,http://statistics.data.gov.uk/id/local-authority/00ML,Children`s & Education Serv,BVAEDU,Child Srvcs Asylum Seekers,FAY,Direct Employees,A,Salaries,AA,02/07/2014,PAY00676154,CHIC,Children In Care,16.63,Revenue,Guidant Group
Brighton & Hove City Council,http://statistics.data.gov.uk/id/local-authority/00ML,Children`s & Education Serv,BVAEDU,Child Srvcs Com and Scl Work,FCW,Direct Employees,A,Salaries,AA,02/07/2014,PAY00676154,DISS,Disability Services,332.60,Revenue,Guidant Group
Brighton & Hove City Council,http://statistics.data.gov.uk/id/local-authority/00ML,Children`s & Education Serv,BVAEDU,Child Srvcs Com and Scl Work,FCW,Direct Employees,A,Salaries,AA,02/07/2014,PAY00676154,SOCK,Social Work,14785.85,Revenue,Guidant Group
Brighton & Hove City Council,http://statistics.data.gov.uk/id/local-authority/00ML,Children`s & Education Serv,BVAEDU,Child Srvcs Com and Scl Work,FCW,Direct Employees,A,Salaries,AA,02/07/2014,PAY00676154,SPAS,Specialist Assessments,5.56,Revenue,Guidant Group
Brighton & Hove City Council,http://statistics.data.gov.uk/id/local-authority/00ML,Children`s & Education Serv,BVAEDU,Child Srvcs - Fostering,FLF,Direct Employees,A,Salaries,AA,02/07/2014,PAY00676154,CHIC,Children In Care,76.04,Revenue,Guidant Group
Brighton & Hove City Council,http://statistics.data.gov.uk/id/local-authority/00ML,Children`s & Education Serv,BVAEDU,Child Srvcs Leaving Care,FAL,Direct Employees,A,Salaries,AA,02/07/2014,PAY00676154,CHIC,Children In Care,3152.96,Revenue,Guidant Group
Brighton & Hove City Council,http://statistics.data.gov.uk/id/local-authority/00ML,Children`s & Education Serv,BVAEDU,Child Srvcs Other,FAX,Direct Employees,A,Salaries,AA,02/07/2014,PAY00676154,CHIP,Child Protection,825.30,Revenue,Guidant Group
Brighton & Hove City Council,http://statistics.data.gov.uk/id/local-authority/00ML,Children`s & Education Serv,BVAEDU,Child Srvcs - Other Fam Supp,FFX,Direct Employees,A,Salaries,AA,02/07/2014,PAY00676154,DISS,Disability Services,144.93,Revenue,Guidant Group
Brighton & Hove City Council,http://statistics.data.gov.uk/id/local-authority/00ML,Children`s & Education Serv,BVAEDU,Child Srvcs - Other Fam Supp,FFX,Direct Employees,A,Salaries,AA,02/07/2014,PAY00676154,FAMP,Families\Prevention,788.63,Revenue,Guidant Group
Brighton & Hove City Council,http://statistics.data.gov.uk/id/local-authority/00ML,Children`s & Education Serv,BVAEDU,Child Srvcs - Other Fam Supp,FFX,Direct Employees,A,Salaries,AA,02/07/2014,PAY00676154,SFSC,Stronger Families Stronger Com,610.88,Revenue,Guidant Group
Brighton & Hove City Council,http://statistics.data.gov.uk/id/local-authority/00ML,Children`s & Education Serv,BVAEDU,Child Srvcs - Residential Svcs,FLR,Direct Employees,A,Salaries,AA,02/07/2014,PAY00676154,DISS,Disability Services,2428.82,Revenue,Guidant Group
Brighton & Hove City Council,http://statistics.data.gov.uk/id/local-authority/00ML,Children`s & Education Serv,BVAEDU,Child Srvcs - Yth Offender Tm,FYY,Direct Employees,A,Salaries,AA,02/07/2014,PAY00676154,YOTS,Youth Service,444.30,Revenue,Guidant Group
Brighton & Hove City Council,http://statistics.data.gov.uk/id/local-authority/00ML,Children`s & Education Serv,BVAEDU,Ed Ed Other LA Attrib Sch,ELA,Direct Employees,A,Salaries,AA,02/07/2014,PAY00676154,OEDS,Other Education Support,7.50,Revenue,Guidant Group
Brighton & Hove City Council,http://statistics.data.gov.uk/id/local-authority/00ML,Children`s & Education Serv,BVAEDU,Ed EY Central,EAE,Direct Employees,A,Salaries,AA,02/07/2014,PAY00676154,EYRS,Early Years,1491.06,Revenue,Guidant Group
Brighton & Hove City Council,http://statistics.data.gov.uk/id/local-authority/00ML,Children`s & Education Serv,BVAEDU,Ed Mgmt and Support Services,EMG,Direct Employees,A,Salaries,AA,02/07/2014,PAY00676154,OEDS,Other Education Support,99.45,Revenue,Guidant Group
Brighton & Hove City Council,http://statistics.data.gov.uk/id/local-authority/00ML,Children`s & Education Serv,BVAEDU,Ed Mgmt and Support Services,EMG,Direct Employees,A,Salaries,AA,02/07/2014,PAY00676154,SACH,Standards and Achievement,529.06,Revenue,Guidant Group
Brighton & Hove City Council,http://statistics.data.gov.uk/id/local-authority/00ML,Children`s & Education Serv,BVAEDU,Ed Special Ed,EKE,Direct Employees,A,Salaries,AA,02/07/2014,PAY00676154,SEN,SEN,293.93,Revenue,Guidant Group
Brighton & Hove City Council,http://statistics.data.gov.uk/id/local-authority/00ML,Children`s & Education Serv,BVAEDU,Management Services (DEC),MGT,Direct Employees,A,Salaries,AA,02/07/2014,PAY00676154,OEDS,Other Education Support,388.80,Revenue,Guidant Group
Brighton & Hove City Council,http://statistics.data.gov.uk/id/local-authority/00ML,Children`s & Education Serv,BVAEDU,Management Services (DEC),MGT,Direct Employees,A,Salaries,AA,02/07/2014,PAY00676154,SOCK,Social Work,824.70,Revenue,Guidant Group
Brighton & Hove City Council,http://statistics.data.gov.uk/id/local-authority/00ML,Cultural and Related Serv,BVACUL,Culture and Heritage,CHG,Direct Employees,A,Salaries,AA,02/07/2014,PAY00676154,RPMU,Royal Pavilion and Museums,630.83,Revenue,Guidant Group
Brighton & Hove City Council,http://statistics.data.gov.uk/id/local-authority/00ML,Cultural and Related Serv,BVACUL,Culture and Heritage,CHG,Direct Employees,A,Wages,AB,02/07/2014,PAY00676154,VENU,Venues,45.32,Revenue,Guidant Group
Brighton & Hove City Council,http://statistics.data.gov.uk/id/local-authority/00ML,Cultural and Related Serv,BVACUL,Management Services (DEC),MGT,Direct Employees,A,Salaries,AA,02/07/2014,PAY00676154,CIPK,City Parks,22.52,Revenue,Guidant Group
Brighton & Hove City Council,http://statistics.data.gov.uk/id/local-authority/00ML,Cultural and Related Serv,BVACUL,Open Spaces,PEN,Direct Employees,A,Salaries,AA,02/07/2014,PAY00676154,CIPK,City Parks,7441.17,Revenue,Guidant Group
Brighton & Hove City Council,http://statistics.data.gov.uk/id/local-authority/00ML,Cultural and Related Serv,BVACUL,Recreation and Sport,REC,Direct Employees,A,Salaries,AA,02/07/2014,PAY00676154,SDEV,Sports Development,795.64,Revenue,Guidant Group
Brighton & Hove City Council,http://statistics.data.gov.uk/id/local-authority/00ML,Cultural and Related Serv,BVACUL,Recreation and Sport,REC,Direct Employees,A,Salaries,AA,02/07/2014,PAY00676154,SEAS,Seafront Services,659.62,Revenue,Guidant Group
Brighton & Hove City Council,http://statistics.data.gov.uk/id/local-authority/00ML,Environment & Regulatory Serv,BVAERS,Cem Crem and Mortuary Services,CCM,Direct Employees,A,Salaries,AA,02/07/2014,PAY00676154,LIFE,Life Events,7.00,Revenue,Guidant Group
Brighton & Hove City Council,http://statistics.data.gov.uk/id/local-authority/00ML,Environment & Regulatory Serv,BVAERS,Environmental Health,EVH,Direct Employees,A,Salaries,AA,02/07/2014,PAY00676154,HIGH,Highways,390.95,Revenue,Guidant Group
Brighton & Hove City Council,http://statistics.data.gov.uk/id/local-authority/00ML,Environment & Regulatory Serv,BVAERS,Management Services (DEC),MGT,Direct Employees,A,Salaries,AA,02/07/2014,PAY00676154,CICL,City Clean,7871.15,Revenue,Guidant Group
Brighton & Hove City Council,http://statistics.data.gov.uk/id/local-authority/00ML,Environment & Regulatory Serv,BVAERS,Street Cleansing,CLE,Direct Employees,A,Salaries,AA,02/07/2014,PAY00676154,CICL,City Clean,7582.46,Revenue,Guidant Group
Brighton & Hove City Council,http://statistics.data.gov.uk/id/local-authority/00ML,Environment & Regulatory Serv,BVAERS,Waste Management,WMT,Direct Employees,A,Salaries,AA,02/07/2014,PAY00676154,CICL,City Clean,19173.55,Revenue,Guidant Group
Brighton & Hove City Council,http://statistics.data.gov.uk/id/local-authority/00ML,Highways and Transportation,BVAHRT,Highways and Roads - Mntnce,HRM,Direct Employees,A,Salaries,AA,02/07/2014,PAY00676154,HIGH,Highways,965.56,Revenue,Guidant Group
Brighton & Hove City Council,http://statistics.data.gov.uk/id/local-authority/00ML,Highways and Transportation,BVAHRT,Management Services (DEC),MGT,Direct Employees,A,Salaries,AA,02/07/2014,PAY00676154,HOTR,Head of Transport,344.75,Revenue,Guidant Group
Brighton & Hove City Council,http://statistics.data.gov.uk/id/local-authority/00ML,Highways and Transportation,BVAHRT,Parking Services,PRK,Direct Employees,A,Salaries,AA,02/07/2014,PAY00676154,HIGH,Highways,512.00,Revenue,Guidant Group
Brighton & Hove City Council,http://statistics.data.gov.uk/id/local-authority/00ML,Highways and Transportation,BVAHRT,Parking Services,PRK,Direct Employees,A,Salaries,AA,02/07/2014,PAY00676154,PARK,Parking,751.99,Revenue,Guidant Group
Brighton & Hove City Council,http://statistics.data.gov.uk/id/local-authority/00ML,Highways and Transportation,BVAHRT,Traffic Mgmnt and Road Safety,TMR,Direct Employees,A,Salaries,AA,02/07/2014,PAY00676154,TPRS,Transport Plan and Road Safety,333.20,Revenue,Guidant Group
Brighton & Hove City Council,http://statistics.data.gov.uk/id/local-authority/00ML,Highways and Transportation,BVAHRT,Transport Plan Policy Strategy,TPP,Direct Employees,A,Salaries,AA,02/07/2014,PAY00676154,TPRS,Transport Plan and Road Safety,281.01,Revenue,Guidant Group
Brighton & Hove City Council,http://statistics.data.gov.uk/id/local-authority/00ML,Housing General Fund,BVAHOG,Homelessness,HML,Direct Employees,A,Salaries,AA,02/07/2014,PAY00676154,HOSS,Housing Supports Services,4032.74,Revenue,Guidant Group
Brighton & Hove City Council,http://statistics.data.gov.uk/id/local-authority/00ML,Housing General Fund,BVAHOG,Homelessness,HML,Direct Employees,A,Salaries,AA,02/07/2014,PAY00676154,SSHS,Seaside Homes (BHSCH),811.72,Revenue,Guidant Group
Brighton & Hove City Council,http://statistics.data.gov.uk/id/local-authority/00ML,Housing General Fund,BVAHOG,Homelessness,HML,Direct Employees,A,Salaries,AA,02/07/2014,PAY00676154,TAAS,Temp Accom and Allocations,931.46,Revenue,Guidant Group
Brighton & Hove City Council,http://statistics.data.gov.uk/id/local-authority/00ML,Housing General Fund,BVAHOG,Hsing Benefits,HGB,Direct Employees,A,Salaries,AA,02/07/2014,PAY00676154,AUDB,Audit and Business Risk,251.64,Revenue,Guidant Group
Brighton & Hove City Council,http://statistics.data.gov.uk/id/local-authority/00ML,Housing General Fund,BVAHOG,Hsing Benefits,HGB,Direct Employees,A,Salaries,AA,02/07/2014,PAY00676154,REVS,Revenues and Benefits,278.28,Revenue,Guidant Group
Brighton & Hove City Council,http://statistics.data.gov.uk/id/local-authority/00ML,Housing General Fund,BVAHOG,Hsing Strat Advice and RSLs,HGR,Direct Employees,A,Salaries,AA,02/07/2014,PAY00676154,HOSS,Housing Supports Services,114.84,Revenue,Guidant Group
Brighton & Hove City Council,http://statistics.data.gov.uk/id/local-authority/00ML,Housing General Fund,BVAHOG,Hsing Welfare,HGW,Direct Employees,A,Salaries,AA,02/07/2014,PAY00676154,SUPP,Supporting People,47.00,Revenue,Guidant Group
Brighton & Hove City Council,http://statistics.data.gov.uk/id/local-authority/00ML,Housing General Fund,BVAHOG,Management Services (DEC),MGT,Direct Employees,A,Salaries,AA,02/07/2014,PAY00676154,HOHG,Head of Housing GF,3018.61,Revenue,Guidant Group
Brighton & Hove City Council,http://statistics.data.gov.uk/id/local-authority/00ML,Housing General Fund,BVAHOG,Private Sector Hsing Renewal,PHR,Direct Employees,A,Salaries,AA,02/07/2014,PAY00676154,PSHG,Private Sector Housing,1016.69,Revenue,Guidant Group
Brighton & Hove City Council,http://statistics.data.gov.uk/id/local-authority/00ML,Housing Revenue Account,BVAHOU,Hsing Management - HRA,HGM,Direct Employees,A,Salaries,AA,02/07/2014,PAY00676154,HIII,Income Involvement Improvement,3577.34,Revenue,Guidant Group
Brighton & Hove City Council,http://statistics.data.gov.uk/id/local-authority/00ML,Housing Revenue Account,BVAHOU,Hsing Management - HRA,HGM,Direct Employees,A,Salaries,AA,02/07/2014,PAY00676154,HOHH,Head of Housing HRA,858.41,Revenue,Guidant Group
Brighton & Hove City Council,http://statistics.data.gov.uk/id/local-authority/00ML,Housing Revenue Account,BVAHOU,Hsing Management - HRA,HGM,Direct Employees,A,Salaries,AA,02/07/2014,PAY00676154,HPAI,Property & Investment,3499.55,Revenue,Guidant Group
Brighton & Hove City Council,http://statistics.data.gov.uk/id/local-authority/00ML,Housing Revenue Account,BVAHOU,Hsing Management - HRA,HGM,Direct Employees,A,Salaries,AA,02/07/2014,PAY00676154,HTEN,Tenancy Services,29768.30,Revenue,Guidant Group
Brighton & Hove City Council,http://statistics.data.gov.uk/id/local-authority/00ML,Planning and Development,BVAPLA,Building Control,BLD,Direct Employees,A,Salaries,AA,02/07/2014,PAY00676154,DEVP,Development Planning,245.07,Revenue,Guidant Group
Brighton & Hove City Council,http://statistics.data.gov.uk/id/local-authority/00ML,Planning and Development,BVAPLA,Development Control,DEV,Direct Employees,A,Salaries,AA,02/07/2014,PAY00676154,DEVP,Development Planning,2067.40,Revenue,Guidant Group
Brighton & Hove City Council,http://statistics.data.gov.uk/id/local-authority/00ML,Planning and Development,BVAPLA,Planning Policy,PLP,Direct Employees,A,Salaries,AA,02/07/2014,PAY00676154,DEVP,Development Planning,498.04,Revenue,Guidant Group
Brighton & Hove City Council,http://statistics.data.gov.uk/id/local-authority/00ML,Adult Social Care,BVASOC,ASC Learning Disabilities,ALD,Supplies and Services,E,Catering,EB,02/07/2014,PAY00676155,RESP,Respite Services,312.28,Revenue,Infinity Foods Co-Op Ltd
Brighton & Hove City Council,http://statistics.data.gov.uk/id/local-authority/00ML,Children`s & Education Serv,BVAEDU,Ed Srvcs YP Ad and Cmty Ln,ENA,Supplies and Services,E,Communications n Computing,EH,02/07/2014,PAY00676156,OEDS,Other Education Support,6450.00,Revenue,Monterpoint Technologies Ltd
Brighton & Hove City Council,http://statistics.data.gov.uk/id/local-authority/00ML,Adult Social Care,BVASOC,ASC Physical Support,PHY,Customer n Client Receipts,M,Fees n Charges,MB,02/07/2014,PAY00676157,PHYS,Physical Support,-161.00,Revenue,Allied Healthcare Brighton Domicillary
Brighton & Hove City Council,http://statistics.data.gov.uk/id/local-authority/00ML,Adult Social Care,BVASOC,ASC Physical Support,PHY,Third Party Payments,F,Other Establishments,FH,02/07/2014,PAY00676157,PHYS,Physical Support,1129.72,Revenue,Allied Healthcare Brighton Domicillary
Brighton & Hove City Council,http://statistics.data.gov.uk/id/local-authority/00ML,Housing General Fund,BVAHOG,Homelessness,HML,Premises Related,C,Repair Maint n Alterations,CA,02/07/2014,PAY00676158,TAAS,Temp Accom and Allocations,149.49,Revenue,Pennywise Hardware
Brighton & Hove City Council,http://statistics.data.gov.uk/id/local-authority/00ML,Housing General Fund,BVAHOG,Homelessness,HML,Supplies and Services,E,Catering,EB,02/07/2014,PAY00676158,HOSS,Housing Supports Services,60.48,Revenue,Pennywise Hardware
Brighton & Hove City Council,http://statistics.data.gov.uk/id/local-authority/00ML,Housing General Fund,BVAHOG,Homelessness,HML,Supplies and Services,E,Equip't Furniture n Materials,EA,02/07/2014,PAY00676158,HOSS,Housing Supports Services,105.78,Revenue,Pennywise Hardware
Brighton & Hove City Council,http://statistics.data.gov.uk/id/local-authority/00ML,Housing General Fund,BVAHOG,Hsing Benefits,HGB,Transfer Payments,G,Other Transfer Payments,GD,02/07/2014,PAY00676159,REVS,Revenues and Benefits,759.00,Revenue,Sussex Central YMCA (Trading) Ltd 
Brighton & Hove City Council,http://statistics.data.gov.uk/id/local-authority/00ML,Children`s & Education Serv,BVAEDU,Child Srvcs Direct Pymts,FFD,Third Party Payments,F,Other Establishments,FH,02/07/2014,PAY00676160,DISS,Disability Services,251.50,Revenue,Payment to Individual
Brighton & Hove City Council,http://statistics.data.gov.uk/id/local-authority/00ML,Cultural and Related Serv,BVACUL,Highways and Roads - Mntnce,HRM,Premises Related,C,Repair Maint n Alterations,CA,02/07/2014,PAY00676162,PROP,Property and Design,470.00,Revenue,Tilleys Stonemasons Ltd
Brighton & Hove City Council,http://statistics.data.gov.uk/id/local-authority/00ML,Central Support and Overheads,BVACEN,Support Services (SSC),PPT,Indirect Employees,B,Training,BM,02/07/2014,PAY00676163,ORGD,Organisational Development,800.00,Revenue,Spiral Training & Associates Ltd
Brighton & Hove City Council,http://statistics.data.gov.uk/id/local-authority/00ML,Children`s & Education Serv,BVAEDU,Ed EY PVI,ENP,Supplies and Services,E,Grants n Subscriptions,EK,02/07/2014,PAY00676165,EYRS,Early Years,6154.00,Revenue,Cbabiesafe
Brighton & Hove City Council,http://statistics.data.gov.uk/id/local-authority/00ML,Adult Social Care,BVASOC,ASC Physical Support,PHY,Customer n Client Receipts,M,Fees n Charges,MB,02/07/2014,PAY00676166,PHYS,Physical Support,-64.00,Revenue,Payment to Individual
Brighton & Hove City Council,http://statistics.data.gov.uk/id/local-authority/00ML,Adult Social Care,BVASOC,ASC Physical Support,PHY,Third Party Payments,F,Other Establishments,FH,02/07/2014,PAY00676166,PHYS,Physical Support,640.20,Revenue,Payment to Individual
Brighton & Hove City Council,http://statistics.data.gov.uk/id/local-authority/00ML,Cultural and Related Serv,BVACUL,Open Spaces,PEN,Third Party Payments,F,Private Contractors,FJ,02/07/2014,PAY00676168,CIPK,City Parks,1920.00,Revenue,Tim Jordan Grounds Maintenance Ltd
Brighton & Hove City Council,http://statistics.data.gov.uk/id/local-authority/00ML,Environment & Regulatory Serv,BVAERS,Waste Management,WMT,Supplies and Services,E,Equip't Furniture n Materials,EA,02/07/2014,PAY00676170,CICL,City Clean,4975.00,Revenue,SSI Schaefer Ltd
Brighton & Hove City Council,http://statistics.data.gov.uk/id/local-authority/00ML,Adult Social Care,BVASOC,ASC Learning Disabilities,ALD,Customer n Client Receipts,M,Fees n Charges,MB,02/07/2014,PAY00676172,LDIS,Learning Disabilities,-291.00,Revenue,B&H Home Care Service
Brighton & Hove City Council,http://statistics.data.gov.uk/id/local-authority/00ML,Adult Social Care,BVASOC,ASC Learning Disabilities,ALD,Third Party Payments,F,Other Establishments,FH,02/07/2014,PAY00676172,LDIS,Learning Disabilities,2410.25,Revenue,B&H Home Care Service
Brighton & Hove City Council,http://statistics.data.gov.uk/id/local-authority/00ML,Cultural and Related Serv,BVACUL,Recreation and Sport,REC,Supplies and Services,E,Miscellaneous Expenses,EM,02/07/2014,PAY00676175,SDEV,Sports Development,250.00,Revenue,Leisurejobs Ltd
Brighton & Hove City Council,http://statistics.data.gov.uk/id/local-authority/00ML,Adult Social Care,BVASOC,ASC Learning Disabilities,ALD,Third Party Payments,F,Other Establishments,FH,02/07/2014,PAY00676177,LDIS,Learning Disabilities,288.43,Revenue,The Well House
Brighton & Hove City Council,http://statistics.data.gov.uk/id/local-authority/00ML,Adult Social Care,BVASOC,ASC Physical Support,PHY,Customer n Client Receipts,M,Fees n Charges,MB,02/07/2014,PAY00676178,PHYS,Physical Support,-112.00,Revenue,Payment to Individual
Brighton & Hove City Council,http://statistics.data.gov.uk/id/local-authority/00ML,Adult Social Care,BVASOC,ASC Physical Support,PHY,Third Party Payments,F,Other Establishments,FH,02/07/2014,PAY00676178,PHYS,Physical Support,2243.92,Revenue,Payment to Individual
Brighton & Hove City Council,http://statistics.data.gov.uk/id/local-authority/00ML,Housing General Fund,BVAHOG,Homelessness,HML,Premises Related,C,Rents Payable,CC,02/07/2014,PAY00676179,TAAS,Temp Accom and Allocations,950.00,Revenue,Avon Estates (London) Ltd
Brighton & Hove City Council,http://statistics.data.gov.uk/id/local-authority/00ML,Children`s & Education Serv,BVAEDU,Ed EY PVI,ENP,Supplies and Services,E,Grants n Subscriptions,EK,02/07/2014,PAY00676180,EYRS,Early Years,14042.00,Revenue,Wishing Tree Nursery
Brighton & Hove City Council,http://statistics.data.gov.uk/id/local-authority/00ML,Central Support and Overheads,BVACEN,Support Services (SSC),PPT,Premises Related,C,Repair Maint n Alterations,CA,02/07/2014,PAY00676181,PROP,Property and Design,26362.28,Revenue,Team Waste Southern Ltd
Brighton & Hove City Council,http://statistics.data.gov.uk/id/local-authority/00ML,Central Support and Overheads,BVACEN,Support Services (SSC),PPT,Premises Related,C,Cleaning n Domestic Supps,CH,02/07/2014,PAY00676182,PROP,Property and Design,150737.40,Revenue,Nviro
Brighton & Hove City Council,http://statistics.data.gov.uk/id/local-authority/00ML,Central Support and Overheads,BVACEN,Support Services (SSC),PPT,Premises Related,C,Repair Maint n Alterations,CA,02/07/2014,PAY00676182,PROP,Property and Design,-6187.50,Revenue,Nviro
Brighton & Hove City Council,http://statistics.data.gov.uk/id/local-authority/00ML,Children`s & Education Serv,BVAEDU,Child Srvcs - Yth Offender Tm,FYY,Premises Related,C,Cleaning n Domestic Supps,CH,02/07/2014,PAY00676182,YOTS,Youth Service,87.50,Revenue,Nviro
Brighton & Hove City Council,http://statistics.data.gov.uk/id/local-authority/00ML,Children`s & Education Serv,BVAEDU,Child Srvcs Com and Scl Work,FCW,Indirect Employees,B,Misc Employee Costs,BP,02/07/2014,PAY00676183,SPAS,Specialist Assessments,720.00,Revenue,Payment to Individual
Brighton & Hove City Council,http://statistics.data.gov.uk/id/local-authority/00ML,Children`s & Education Serv,BVAEDU,Ed EY PVI,ENP,Supplies and Services,E,Grants n Subscriptions,EK,02/07/2014,PAY00676185,EYRS,Early Years,3961.00,Revenue,St George`s Neighbourhood Nursery
Brighton & Hove City Council,http://statistics.data.gov.uk/id/local-authority/00ML,Cultural and Related Serv,BVACUL,Culture and Heritage,CHG,Supplies and Services,E,Goods for Resale,EG,02/07/2014,PAY00676186,RPMU,Royal Pavilion and Museums,290.88,Revenue,IHR Ideal Home Range UK Ltd
Brighton & Hove City Council,http://statistics.data.gov.uk/id/local-authority/00ML,Environment & Regulatory Serv,BVAERS,Agricultural and Fisheries,AGF,Third Party Payments,F,Independent Units of Council,FA,02/07/2014,PAY00676187,PROP,Property and Design,336.64,Revenue,Smiths Gore
Brighton & Hove City Council,http://statistics.data.gov.uk/id/local-authority/00ML,Non I&E,BVANON,CAP Social Services,4RV,New Construction n Conversion,PB,New Construction n Conversion,PBL5,02/07/2014,PAY00676188,ASIT,Assessment and SIT,1055.53,Capital,Tectonic Digital Systems Ltd
Brighton & Hove City Council,http://statistics.data.gov.uk/id/local-authority/00ML,Children`s & Education Serv,BVAEDU,Ed EY PVI,ENP,Supplies and Services,E,Grants n Subscriptions,EK,02/07/2014,PAY00676190,EYRS,Early Years,5550.00,Revenue,My First Word
Brighton & Hove City Council,http://statistics.data.gov.uk/id/local-authority/00ML,Housing General Fund,BVAHOG,Homelessness,HML,Premises Related,C,Rents Payable,CC,02/07/2014,PAY00676191,HOSS,Housing Supports Services,23311.33,Revenue,West Pier Services Limited
Brighton & Hove City Council,http://statistics.data.gov.uk/id/local-authority/00ML,Housing General Fund,BVAHOG,Homelessness,HML,Premises Related,C,Rents Payable,CC,02/07/2014,PAY00676192,HOSS,Housing Supports Services,12821.23,Revenue,Adelphi Court Services Limited
Brighton & Hove City Council,http://statistics.data.gov.uk/id/local-authority/00ML,Non-BHC Organisations,BVANON,Trusts,TRT,Supplies and Services,E,Miscellaneous Expenses,EM,02/07/2014,PAY00676193,NBHC,Non Council,500.00,Revenue,Payment to Individual
Brighton & Hove City Council,http://statistics.data.gov.uk/id/local-authority/00ML,Central Support and Overheads,BVACEN,Holding Accounts,PPH,Premises Related,C,Repair Maint n Alterations,CA,02/07/2014,PAY00676194,PROP,Property and Design,349.00,Revenue,Lee Sullivan Contract Flooring Limited
Brighton & Hove City Council,http://statistics.data.gov.uk/id/local-authority/00ML,Central Support and Overheads,BVACEN,Support Services (SSC),PPT,Premises Related,C,Repair Maint n Alterations,CA,02/07/2014,PAY00676194,PROP,Property and Design,8367.40,Revenue,Lee Sullivan Contract Flooring Limited
Brighton & Hove City Council,http://statistics.data.gov.uk/id/local-authority/00ML,Central Support and Overheads,BVACEN,Support Services (SSC),PPT,Supplies and Services,E,Communications n Computing,EH,02/07/2014,PAY00676195,ICTA,ICT,49.99,Revenue,Posture People Ltd
Brighton & Hove City Council,http://statistics.data.gov.uk/id/local-authority/00ML,Central Support and Overheads,BVACEN,Support Services (SSC),PPT,Supplies and Services,E,Communications n Computing,EH,02/07/2014,PAY00676195,PROP,Property and Design,1870.05,Revenue,Posture People Ltd
Brighton & Hove City Council,http://statistics.data.gov.uk/id/local-authority/00ML,Adult Social Care,BVASOC,ASC Learning Disabilities,ALD,Customer n Client Receipts,M,Fees n Charges,MB,02/07/2014,PAY00676198,LDIS,Learning Disabilities,-50.00,Revenue,Scope
Brighton & Hove City Council,http://statistics.data.gov.uk/id/local-authority/00ML,Adult Social Care,BVASOC,ASC Learning Disabilities,ALD,Third Party Payments,F,Other Establishments,FH,02/07/2014,PAY00676198,LDIS,Learning Disabilities,2279.36,Revenue,Scope
Brighton & Hove City Council,http://statistics.data.gov.uk/id/local-authority/00ML,Adult Social Care,BVASOC,Commission & Service Delivery,CMM,Transport Related,D,Public Transport,DD,02/07/2014,PAY00676199,COMM,Commissioning,4.70,Revenue,Petty Cash
Brighton & Hove City Council,http://statistics.data.gov.uk/id/local-authority/00ML,Central Support and Overheads,BVACEN,Holding Accounts,PPH,Premises Related,C,Repair Maint n Alterations,CA,02/07/2014,PAY00676199,PROP,Property and Design,4.26,Revenue,Petty Cash
Brighton & Hove City Council,http://statistics.data.gov.uk/id/local-authority/00ML,Central Support and Overheads,BVACEN,Management Services (DEC),MGT,Supplies and Services,E,Miscellaneous Expenses,EM,02/07/2014,PAY00676199,ACEX,Assistant Chief Executive,60.69,Revenue,Petty Cash
Brighton & Hove City Council,http://statistics.data.gov.uk/id/local-authority/00ML,Central Support and Overheads,BVACEN,Support Services (SSC),PPT,Indirect Employees,B,Misc Employee Costs,BP,02/07/2014,PAY00676199,FINS,Financial Services,16.50,Revenue,Petty Cash
Brighton & Hove City Council,http://statistics.data.gov.uk/id/local-authority/00ML,Central Support and Overheads,BVACEN,Support Services (SSC),PPT,Indirect Employees,B,Misc Employee Costs,BP,02/07/2014,PAY00676199,POLI,Policy and Initiatives,90.00,Revenue,Petty Cash
Brighton & Hove City Council,http://statistics.data.gov.uk/id/local-authority/00ML,Central Support and Overheads,BVACEN,Support Services (SSC),PPT,Indirect Employees,B,Misc Employee Costs,BP,02/07/2014,PAY00676199,PROP,Property and Design,10.00,Revenue,Petty Cash
Brighton & Hove City Council,http://statistics.data.gov.uk/id/local-authority/00ML,Central Support and Overheads,BVACEN,Support Services (SSC),PPT,Premises Related,C,Repair Maint n Alterations,CA,02/07/2014,PAY00676199,PROP,Property and Design,0.78,Revenue,Petty Cash
Brighton & Hove City Council,http://statistics.data.gov.uk/id/local-authority/00ML,Central Support and Overheads,BVACEN,Support Services (SSC),PPT,Supplies and Services,E,Clothing Uniforms n Laundry,EC,02/07/2014,PAY00676199,POLY,Policy,8.33,Revenue,Petty Cash
Brighton & Hove City Council,http://statistics.data.gov.uk/id/local-authority/00ML,Central Support and Overheads,BVACEN,Support Services (SSC),PPT,Supplies and Services,E,Expenses,EJ,02/07/2014,PAY00676199,POLY,Policy,4.00,Revenue,Petty Cash
Brighton & Hove City Council,http://statistics.data.gov.uk/id/local-authority/00ML,Central Support and Overheads,BVACEN,Support Services (SSC),PPT,Supplies and Services,E,Miscellaneous Expenses,EM,02/07/2014,PAY00676199,POLY,Policy,1.24,Revenue,Petty Cash
Brighton & Hove City Council,http://statistics.data.gov.uk/id/local-authority/00ML,Central Support and Overheads,BVACEN,Support Services (SSC),PPT,Supplies and Services,E,Print Stat & Gen Office Exps,ED,02/07/2014,PAY00676199,PROP,Property and Design,13.32,Revenue,Petty Cash
Brighton & Hove City Council,http://statistics.data.gov.uk/id/local-authority/00ML,Central Support and Overheads,BVACEN,Support Services (SSC),PPT,Third Party Payments,F,Other Establishments,FH,02/07/2014,PAY00676199,FINS,Financial Services,120.00,Revenue,Petty Cash
Brighton & Hove City Council,http://statistics.data.gov.uk/id/local-authority/00ML,Central Support and Overheads,BVACEN,Support Services (SSC),PPT,Transport Related,D,Direct Transport Costs,DA,02/07/2014,PAY00676199,POLY,Policy,4.58,Revenue,Petty Cash
Brighton & Hove City Council,http://statistics.data.gov.uk/id/local-authority/00ML,Central Support and Overheads,BVACEN,Support Services (SSC),PPT,Transport Related,D,Other Transport Costs,DG,02/07/2014,PAY00676199,ORGD,Organisational Development,3.50,Revenue,Petty Cash
Brighton & Hove City Council,http://statistics.data.gov.uk/id/local-authority/00ML,Central Support and Overheads,BVACEN,Support Services (SSC),PPT,Transport Related,D,Other Transport Costs,DG,02/07/2014,PAY00676199,POLY,Policy,19.58,Revenue,Petty Cash
Brighton & Hove City Council,http://statistics.data.gov.uk/id/local-authority/00ML,Central Support and Overheads,BVACEN,Support Services (SSC),PPT,Transport Related,D,Public Transport,DD,02/07/2014,PAY00676199,COMU,Communications,63.50,Revenue,Petty Cash
Brighton & Hove City Council,http://statistics.data.gov.uk/id/local-authority/00ML,Central Support and Overheads,BVACEN,Support Services (SSC),PPT,Transport Related,D,Public Transport,DD,02/07/2014,PAY00676199,FINS,Financial Services,14.70,Revenue,Petty Cash
Brighton & Hove City Council,http://statistics.data.gov.uk/id/local-authority/00ML,Central Support and Overheads,BVACEN,Support Services (SSC),PPT,Transport Related,D,Public Transport,DD,02/07/2014,PAY00676199,LEGS,Legal Services,10.00,Revenue,Petty Cash
Brighton & Hove City Council,http://statistics.data.gov.uk/id/local-authority/00ML,Central Support and Overheads,BVACEN,Support Services (SSC),PPT,Transport Related,D,Public Transport,DD,02/07/2014,PAY00676199,POLY,Policy,29.30,Revenue,Petty Cash
Brighton & Hove City Council,http://statistics.data.gov.uk/id/local-authority/00ML,Central Support and Overheads,BVACEN,Support Services (SSC),PPT,Transport Related,D,Public Transport,DD,02/07/2014,PAY00676199,PROP,Property and Design,18.35,Revenue,Petty Cash
Brighton & Hove City Council,http://statistics.data.gov.uk/id/local-authority/00ML,Children`s & Education Serv,BVAEDU,Child Srvcs Other,FAX,Supplies and Services,E,Catering,EB,02/07/2014,PAY00676199,SEN,SEN,18.18,Revenue,Petty Cash
Brighton & Hove City Council,http://statistics.data.gov.uk/id/local-authority/00ML,Children`s & Education Serv,BVAEDU,Child Srvcs Other,FAX,Transport Related,D,Public Transport,DD,02/07/2014,PAY00676199,SEN,SEN,24.40,Revenue,Petty Cash
Brighton & Hove City Council,http://statistics.data.gov.uk/id/local-authority/00ML,Cultural and Related Serv,BVACUL,Recreation and Sport,REC,Supplies and Services,E,Miscellaneous Expenses,EM,02/07/2014,PAY00676199,SDEV,Sports Development,20.00,Revenue,Petty Cash
Brighton & Hove City Council,http://statistics.data.gov.uk/id/local-authority/00ML,Cultural and Related Serv,BVACUL,Recreation and Sport,REC,Transport Related,D,Public Transport,DD,02/07/2014,PAY00676199,SDEV,Sports Development,14.00,Revenue,Petty Cash
Brighton & Hove City Council,http://statistics.data.gov.uk/id/local-authority/00ML,Environment & Regulatory Serv,BVAERS,Environmental Health,EVH,Customer n Client Receipts,M,Fees n Charges,MB,02/07/2014,PAY00676199,PUPO,Public Protection,11.58,Revenue,Petty Cash
Brighton & Hove City Council,http://statistics.data.gov.uk/id/local-authority/00ML,Highways and Transportation,BVAHRT,Highways and Roads - Mntnce,HRM,Supplies and Services,E,Services,EF,02/07/2014,PAY00676199,HIGH,Highways,7.10,Revenue,Petty Cash
Brighton & Hove City Council,http://statistics.data.gov.uk/id/local-authority/00ML,Highways and Transportation,BVAHRT,Highways and Roads - Mntnce,HRM,Transport Related,D,Public Transport,DD,02/07/2014,PAY00676199,HIGH,Highways,32.60,Revenue,Petty Cash
Brighton & Hove City Council,http://statistics.data.gov.uk/id/local-authority/00ML,Highways and Transportation,BVAHRT,Traffic Mgmnt and Road Safety,TMR,Supplies and Services,E,Equip't Furniture n Materials,EA,02/07/2014,PAY00676199,TPRS,Transport Plan and Road Safety,5.92,Revenue,Petty Cash
Brighton & Hove City Council,http://statistics.data.gov.uk/id/local-authority/00ML,Highways and Transportation,BVAHRT,Traffic Mgmnt and Road Safety,TMR,Supplies and Services,E,Miscellaneous Expenses,EM,02/07/2014,PAY00676199,TPRS,Transport Plan and Road Safety,14.82,Revenue,Petty Cash
Brighton & Hove City Council,http://statistics.data.gov.uk/id/local-authority/00ML,Highways and Transportation,BVAHRT,Traffic Mgmnt and Road Safety,TMR,Transport Related,D,Other Transport Costs,DG,02/07/2014,PAY00676199,TPRS,Transport Plan and Road Safety,5.50,Revenue,Petty Cash
Brighton & Hove City Council,http://statistics.data.gov.uk/id/local-authority/00ML,Highways and Transportation,BVAHRT,Traffic Mgmnt and Road Safety,TMR,Transport Related,D,Public Transport,DD,02/07/2014,PAY00676199,TPRS,Transport Plan and Road Safety,49.45,Revenue,Petty Cash
Brighton & Hove City Council,http://statistics.data.gov.uk/id/local-authority/00ML,Highways and Transportation,BVAHRT,Transport Plan Policy Strategy,TPP,Transport Related,D,Public Transport,DD,02/07/2014,PAY00676199,TPRS,Transport Plan and Road Safety,32.50,Revenue,Petty Cash
Brighton & Hove City Council,http://statistics.data.gov.uk/id/local-authority/00ML,Housing General Fund,BVAHOG,Private Sector Hsing Renewal,PHR,Transport Related,D,Public Transport,DD,02/07/2014,PAY00676199,PSHG,Private Sector Housing,80.00,Revenue,Petty Cash
Brighton & Hove City Council,http://statistics.data.gov.uk/id/local-authority/00ML,Housing Revenue Account,BVAHOU,Hsing Management - HRA,HGM,Supplies and Services,E,Print Stat & Gen Office Exps,ED,02/07/2014,PAY00676199,HIII,Income Involvement Improvement,9.17,Revenue,Petty Cash
Brighton & Hove City Council,http://statistics.data.gov.uk/id/local-authority/00ML,Non-BHC Organisations,BVANON,Trusts,TRT,Supplies and Services,E,Miscellaneous Expenses,EM,02/07/2014,PAY00676199,NBHC,Non Council,900.00,Revenue,Petty Cash
Brighton & Hove City Council,http://statistics.data.gov.uk/id/local-authority/00ML,Planning and Development,BVAPLA,Building Control,BLD,Transport Related,D,Public Transport,DD,02/07/2014,PAY00676199,DEVP,Development Planning,54.40,Revenue,Petty Cash
Brighton & Hove City Council,http://statistics.data.gov.uk/id/local-authority/00ML,Planning and Development,BVAPLA,Community Development,CDV,Transport Related,D,Other Transport Costs,DG,02/07/2014,PAY00676199,CMNY,Communities and Equalities,21.37,Revenue,Petty Cash
Brighton & Hove City Council,http://statistics.data.gov.uk/id/local-authority/00ML,Planning and Development,BVAPLA,Economic Development,ECD,Transport Related,D,Public Transport,DD,02/07/2014,PAY00676199,MJPR,Major Projects,117.50,Revenue,Petty Cash
Brighton & Hove City Council,http://statistics.data.gov.uk/id/local-authority/00ML,Planning and Development,BVAPLA,Economic Development,ECD,Transport Related,D,Public Transport,DD,02/07/2014,PAY00676199,SUST,Sustainability,20.20,Revenue,Petty Cash
Brighton & Hove City Council,http://statistics.data.gov.uk/id/local-authority/00ML,Public Health,BVAPHE,Management Services (DEC),MGT,Transport Related,D,Other Transport Costs,DG,02/07/2014,PAY00676199,DIRO,Director Office,2.50,Revenue,Petty Cash
Brighton & Hove City Council,http://statistics.data.gov.uk/id/local-authority/00ML,Public Health,BVAPHE,Management Services (DEC),MGT,Transport Related,D,Public Transport,DD,02/07/2014,PAY00676199,DIRO,Director Office,34.10,Revenue,Petty Cash
Brighton & Hove City Council,http://statistics.data.gov.uk/id/local-authority/00ML,Central Support and Overheads,BVACEN,Trading Services,TRD,Premises Related,C,Rents Payable,CC,02/07/2014,PAY00676200,PROP,Property and Design,708.00,Revenue,Cluttons LLP
Brighton & Hove City Council,http://statistics.data.gov.uk/id/local-authority/00ML,Planning and Development,BVAPLA,Economic Development,ECD,Premises Related,C,Rents Payable,CC,02/07/2014,PAY00676200,PROP,Property and Design,50872.50,Revenue,Cluttons LLP
Brighton & Hove City Council,http://statistics.data.gov.uk/id/local-authority/00ML,Housing Revenue Account,BVAHOU,Hsing Management - HRA,HGM,Premises Related,C,Repair Maint n Alterations,CA,02/07/2014,PAY00676202,HPAI,Property & Investment,64367.04,Revenue,PH Jones
Brighton & Hove City Council,http://statistics.data.gov.uk/id/local-authority/00ML,Non I&E,BVANON,Cap - Housing Services - HRA,4HR,New Construction n Conversion,PB,New Construction n Conversion,PBL5,02/07/2014,PAY00676202,HPAI,Property & Investment,88494.05,Capital,PH Jones
Brighton & Hove City Council,http://statistics.data.gov.uk/id/local-authority/00ML,Children`s & Education Serv,BVAEDU,Child Srvcs Direct Pymts,FFD,Third Party Payments,F,Other Establishments,FH,02/07/2014,PAY00676203,DISS,Disability Services,297.90,Revenue,Payment to Individual
Brighton & Hove City Council,http://statistics.data.gov.uk/id/local-authority/00ML,Housing General Fund,BVAHOG,Homelessness,HML,Premises Related,C,Repair Maint n Alterations,CA,02/07/2014,PAY00676204,HOSS,Housing Supports Services,182.36,Revenue,Mears Limited
Brighton & Hove City Council,http://statistics.data.gov.uk/id/local-authority/00ML,Housing General Fund,BVAHOG,Homelessness,HML,Premises Related,C,Repair Maint n Alterations,CA,02/07/2014,PAY00676204,SSHS,Seaside Homes (BHSCH),144.42,Revenue,Mears Limited
Brighton & Hove City Council,http://statistics.data.gov.uk/id/local-authority/00ML,Housing General Fund,BVAHOG,Homelessness,HML,Premises Related,C,Repair Maint n Alterations,CA,02/07/2014,PAY00676204,TAAS,Temp Accom and Allocations,280.62,Revenue,Mears Limited
Brighton & Hove City Council,http://statistics.data.gov.uk/id/local-authority/00ML,Housing General Fund,BVAHOG,Homelessness,HML,Premises Related,C,Repair Maint n Alterations,CA,02/07/2014,PAY00676204,TRAV,Travellers,782.48,Revenue,Mears Limited
Brighton & Hove City Council,http://statistics.data.gov.uk/id/local-authority/00ML,Housing Revenue Account,BVAHOU,Hsing Management - HRA,HGM,Premises Related,C,Repair Maint n Alterations,CA,02/07/2014,PAY00676204,HPAI,Property & Investment,126389.51,Revenue,Mears Limited
Brighton & Hove City Council,http://statistics.data.gov.uk/id/local-authority/00ML,Non I&E,BVANON,CAP Housing Services GF,4HG,New Construction n Conversion,PB,New Construction n Conversion,PBL5,02/07/2014,PAY00676204,SSHS,Seaside Homes (BHSCH),6679.72,Capital,Mears Limited
Brighton & Hove City Council,http://statistics.data.gov.uk/id/local-authority/00ML,Children`s & Education Serv,BVAEDU,Ed EY PVI,ENP,Supplies and Services,E,Grants n Subscriptions,EK,02/07/2014,PAY00676205,EYRS,Early Years,16919.00,Revenue,Growing Up Green Day Nursery
Brighton & Hove City Council,http://statistics.data.gov.uk/id/local-authority/00ML,Children`s & Education Serv,BVAEDU,Ed EY PVI,ENP,Supplies and Services,E,Grants n Subscriptions,EK,02/07/2014,PAY00676206,EYRS,Early Years,12546.00,Revenue,Pixies Childcare Ltd
Brighton & Hove City Council,http://statistics.data.gov.uk/id/local-authority/00ML,Cultural and Related Serv,BVACUL,Open Spaces,PEN,Supplies and Services,E,Equip't Furniture n Materials,EA,02/07/2014,PAY00676207,CIPK,City Parks,841.50,Revenue,Bourne Amenity Ltd
Brighton & Hove City Council,http://statistics.data.gov.uk/id/local-authority/00ML,Non I&E,BVANON,CAP Social Services,4RV,New Construction n Conversion,PB,New Construction n Conversion,PBL5,02/07/2014,PAY00676209,ASIT,Assessment and SIT,678.00,Capital,In Touch 
Brighton & Hove City Council,http://statistics.data.gov.uk/id/local-authority/00ML,Children`s & Education Serv,BVAEDU,Ed EY PVI,ENP,Supplies and Services,E,Grants n Subscriptions,EK,02/07/2014,PAY00676210,EYRS,Early Years,6191.00,Revenue,Tinysaurus Nursery
Brighton & Hove City Council,http://statistics.data.gov.uk/id/local-authority/00ML,Housing General Fund,BVAHOG,Homelessness,HML,Premises Related,C,Rents Payable,CC,02/07/2014,PAY00676211,TAAS,Temp Accom and Allocations,1800.00,Revenue,Marchmont Estates Ltd
Brighton & Hove City Council,http://statistics.data.gov.uk/id/local-authority/00ML,Adult Social Care,BVASOC,ASC Memory Cognition Support,MEM,Supplies and Services,E,Catering,EB,02/07/2014,PAY00676212,RCOP,Resource Centres Older People,1373.02,Revenue,West Horsley Dairy Ltd
Brighton & Hove City Council,http://statistics.data.gov.uk/id/local-authority/00ML,Adult Social Care,BVASOC,ASC Physical Support,PHY,Supplies and Services,E,Catering,EB,02/07/2014,PAY00676212,RCOP,Resource Centres Older People,370.09,Revenue,West Horsley Dairy Ltd
Brighton & Hove City Council,http://statistics.data.gov.uk/id/local-authority/00ML,Children`s & Education Serv,BVAEDU,Ed EY PVI,ENP,Supplies and Services,E,Grants n Subscriptions,EK,02/07/2014,PAY00676215,EYRS,Early Years,1985.00,Revenue,Little Oaks Nursery
Brighton & Hove City Council,http://statistics.data.gov.uk/id/local-authority/00ML,Cultural and Related Serv,BVACUL,Tourism,TRM,Customer n Client Receipts,M,Fees n Charges,MB,02/07/2014,PAY00676217,TOMA,Tourism and Marketing,-65.17,Revenue,First Capital Connect Limited
Brighton & Hove City Council,http://statistics.data.gov.uk/id/local-authority/00ML,Cultural and Related Serv,BVACUL,Tourism,TRM,Supplies and Services,E,Miscellaneous Expenses,EM,02/07/2014,PAY00676217,TOMA,Tourism and Marketing,1563.90,Revenue,First Capital Connect Limited
Brighton & Hove City Council,http://statistics.data.gov.uk/id/local-authority/00ML,Adult Social Care,BVASOC,Support to Carer,CAR,Third Party Payments,F,Other Establishments,FH,02/07/2014,PAY00676220,CONT,Contracts,250.00,Revenue,Payment to Individual
Brighton & Hove City Council,http://statistics.data.gov.uk/id/local-authority/00ML,Children`s & Education Serv,BVAEDU,Child Srvcs Com and Scl Work,FCW,Indirect Employees,B,Advertising,BA,02/07/2014,PAY00676221,SOCK,Social Work,166.67,Revenue,Claremont House Hotel Ltd
Brighton & Hove City Council,http://statistics.data.gov.uk/id/local-authority/00ML,Environment & Regulatory Serv,BVAERS,Management Services (DEC),MGT,Indirect Employees,B,Advertising,BA,02/07/2014,PAY00676221,CICL,City Clean,350.00,Revenue,Claremont House Hotel Ltd
Brighton & Hove City Council,http://statistics.data.gov.uk/id/local-authority/00ML,Children`s & Education Serv,BVAEDU,Ed EY PVI,ENP,Supplies and Services,E,Grants n Subscriptions,EK,02/07/2014,PAY00676222,EYRS,Early Years,5005.00,Revenue,Baby Ducks Playgroup
Brighton & Hove City Council,http://statistics.data.gov.uk/id/local-authority/00ML,Non I&E,BVANON,CAP Transport,4TR,New Construction n Conversion,PB,New Construction n Conversion,PBL5,02/07/2014,PAY00676223,HWEN,Highways Engineering,3500.00,Capital,RPS Consultants Ltd
Brighton & Hove City Council,http://statistics.data.gov.uk/id/local-authority/00ML,Planning and Development,BVAPLA,Development Control,DEV,Supplies and Services,E,Miscellaneous Expenses,EM,02/07/2014,PAY00676226,DEVP,Development Planning,1401.70,Revenue,Alexander Advertising(International)Ltd
Brighton & Hove City Council,http://statistics.data.gov.uk/id/local-authority/00ML,Central Support and Overheads,BVACEN,Support Services (SSC),PPT,Premises Related,C,Repair Maint n Alterations,CA,02/07/2014,PAY00676227,PROP,Property and Design,209.94,Revenue,AM Fire & Security Group
Brighton & Hove City Council,http://statistics.data.gov.uk/id/local-authority/00ML,Environment & Regulatory Serv,BVAERS,Cem Crem and Mortuary Services,CCM,Premises Related,C,Repair Maint n Alterations,CA,02/07/2014,PAY00676228,LIFE,Life Events,822.00,Revenue,Arkell & Hurcombe (Bronzeworks)
Brighton & Hove City Council,http://statistics.data.gov.uk/id/local-authority/00ML,Central Support and Overheads,BVACEN,Support Services (SSC),PPT,Premises Related,C,Repair Maint n Alterations,CA,02/07/2014,PAY00676229,PROP,Property and Design,2000.00,Revenue,Austins Cradles Ltd
Brighton & Hove City Council,http://statistics.data.gov.uk/id/local-authority/00ML,Adult Social Care,BVASOC,ASC Memory Cognition Support,MEM,Supplies and Services,E,Catering,EB,02/07/2014,PAY00676233,RCOP,Resource Centres Older People,1262.86,Revenue,3663 BFS Group Ltd
Brighton & Hove City Council,http://statistics.data.gov.uk/id/local-authority/00ML,Adult Social Care,BVASOC,ASC Physical Support,PHY,Supplies and Services,E,Catering,EB,02/07/2014,PAY00676233,DAYS,Day Services,385.12,Revenue,3663 BFS Group Ltd
Brighton & Hove City Council,http://statistics.data.gov.uk/id/local-authority/00ML,Adult Social Care,BVASOC,ASC Physical Support,PHY,Supplies and Services,E,Catering,EB,02/07/2014,PAY00676233,RCOP,Resource Centres Older People,967.90,Revenue,3663 BFS Group Ltd
Brighton & Hove City Council,http://statistics.data.gov.uk/id/local-authority/00ML,Housing General Fund,BVAHOG,Homelessness,HML,Premises Related,C,Repair Maint n Alterations,CA,02/07/2014,PAY00676233,HOSS,Housing Supports Services,36.97,Revenue,3663 BFS Group Ltd
Brighton & Hove City Council,http://statistics.data.gov.uk/id/local-authority/00ML,Adult Social Care,BVASOC,Commission & Service Delivery,CMM,Transport Related,D,Public Transport,DD,02/07/2014,PAY00676235,COMM,Commissioning,35.86,Revenue,Brighton & Hove Streamline Taxis Ltd
Brighton & Hove City Council,http://statistics.data.gov.uk/id/local-authority/00ML,Children`s & Education Serv,BVAEDU,Ed Mgmt and Support Services,EMG,Transport Related,D,Public Transport,DD,02/07/2014,PAY00676235,SACH,Standards and Achievement,44.20,Revenue,Brighton & Hove Streamline Taxis Ltd
Brighton & Hove City Council,http://statistics.data.gov.uk/id/local-authority/00ML,Children`s & Education Serv,BVAEDU,Management Services (DEC),MGT,Transport Related,D,Public Transport,DD,02/07/2014,PAY00676235,OEDS,Other Education Support,103.86,Revenue,Brighton & Hove Streamline Taxis Ltd
Brighton & Hove City Council,http://statistics.data.gov.uk/id/local-authority/00ML,Cultural and Related Serv,BVACUL,Tourism,TRM,Supplies and Services,E,Miscellaneous Expenses,EM,02/07/2014,PAY00676235,TOMA,Tourism and Marketing,65.40,Revenue,Brighton & Hove Streamline Taxis Ltd
Brighton & Hove City Council,http://statistics.data.gov.uk/id/local-authority/00ML,Housing General Fund,BVAHOG,Management Services (DEC),MGT,Transport Related,D,Public Transport,DD,02/07/2014,PAY00676235,HOHG,Head of Housing GF,50.16,Revenue,Brighton & Hove Streamline Taxis Ltd
Brighton & Hove City Council,http://statistics.data.gov.uk/id/local-authority/00ML,Housing Revenue Account,BVAHOU,Hsing Management - HRA,HGM,Transport Related,D,Public Transport,DD,02/07/2014,PAY00676235,HIII,Income Involvement Improvement,888.70,Revenue,Brighton & Hove Streamline Taxis Ltd
Brighton & Hove City Council,http://statistics.data.gov.uk/id/local-authority/00ML,Library Services,BVACUL,Library Service,LBR,Transport Related,D,Public Transport,DD,02/07/2014,PAY00676235,LIBS,Libraries,14.74,Revenue,Brighton & Hove Streamline Taxis Ltd
Brighton & Hove City Council,http://statistics.data.gov.uk/id/local-authority/00ML,Cultural and Related Serv,BVACUL,Open Spaces,PEN,Transport Related,D,Direct Transport Costs,DA,02/07/2014,PAY00676236,CIPK,City Parks,107.91,Revenue,Northern Commercials (Mirfield) Limited
Brighton & Hove City Council,http://statistics.data.gov.uk/id/local-authority/00ML,Environment & Regulatory Serv,BVAERS,Management Services (DEC),MGT,Transport Related,D,Direct Transport Costs,DA,02/07/2014,PAY00676236,CICL,City Clean,507.92,Revenue,Northern Commercials (Mirfield) Limited
Brighton & Hove City Council,http://statistics.data.gov.uk/id/local-authority/00ML,Adult Social Care,BVASOC,Social Care Activities,ACM,Third Party Payments,F,Other Establishments,FH,02/07/2014,PAY00676237,ASIT,Assessment and SIT,1104.99,Revenue,Brighton & Sussex University Hospitals NHS Trust
Brighton & Hove City Council,http://statistics.data.gov.uk/id/local-authority/00ML,Children`s & Education Serv,BVAEDU,Ed EY PVI,ENP,Supplies and Services,E,Grants n Subscriptions,EK,02/07/2014,PAY00676237,EYRS,Early Years,3995.00,Revenue,Brighton & Sussex University Hospitals NHS Trust
Brighton & Hove City Council,http://statistics.data.gov.uk/id/local-authority/00ML,Environment & Regulatory Serv,BVAERS,Community Safety,CMY,Supplies and Services,E,Catering,EB,02/07/2014,PAY00676241,CSTP,Comm Safety Team & Partnership,403.50,Revenue,Brighthelm Trading Ltd
Brighton & Hove City Council,http://statistics.data.gov.uk/id/local-authority/00ML,Cultural and Related Serv,BVACUL,Culture and Heritage,CHG,Supplies and Services,E,Goods for Resale,EG,02/07/2014,PAY00676243,RPMU,Royal Pavilion and Museums,576.00,Revenue,Carole Group Ltd
Brighton & Hove City Council,http://statistics.data.gov.uk/id/local-authority/00ML,Central Support and Overheads,BVACEN,Trading Services,TRD,Supplies and Services,E,Services,EF,02/07/2014,PAY00676244,PROP,Property and Design,175.00,Revenue,Cluttons
Brighton & Hove City Council,http://statistics.data.gov.uk/id/local-authority/00ML,Children`s & Education Serv,BVAEDU,Ed Ed Other LA Attrib Sch,ELA,Transport Related,D,Other Transport Costs,DG,02/07/2014,PAY00676245,OEDS,Other Education Support,3632.25,Revenue,Community Transport (Bton Hove & Area) Ltd
Brighton & Hove City Council,http://statistics.data.gov.uk/id/local-authority/00ML,Highways and Transportation,BVAHRT,Public Transport,PTR,Third Party Payments,F,Private Contractors,FJ,02/07/2014,PAY00676245,TPRS,Transport Plan and Road Safety,9823.91,Revenue,Community Transport (Bton Hove & Area) Ltd
Brighton & Hove City Council,http://statistics.data.gov.uk/id/local-authority/00ML,Housing General Fund,BVAHOG,Homelessness,HML,Premises Related,C,Rents Payable,CC,02/07/2014,PAY00676246,TAAS,Temp Accom and Allocations,900.00,Revenue,Payment to Individual
Brighton & Hove City Council,http://statistics.data.gov.uk/id/local-authority/00ML,Housing General Fund,BVAHOG,Homelessness,HML,Premises Related,C,Rents Payable,CC,02/07/2014,PAY00676247,TAAS,Temp Accom and Allocations,845.00,Revenue,Payment to Individual
Brighton & Hove City Council,http://statistics.data.gov.uk/id/local-authority/00ML,Central Support and Overheads,BVACEN,Support Services (SSC),PPT,Premises Related,C,Repair Maint n Alterations,CA,02/07/2014,PAY00676251,PROP,Property and Design,2305.00,Revenue,Fowler Building Contractors Ltd
Brighton & Hove City Council,http://statistics.data.gov.uk/id/local-authority/00ML,Adult Social Care,BVASOC,ASC Learning Disabilities,ALD,Customer n Client Receipts,M,Fees n Charges,MB,02/07/2014,PAY00676252,LDIS,Learning Disabilities,-128.00,Revenue,Payment to Individual
Brighton & Hove City Council,http://statistics.data.gov.uk/id/local-authority/00ML,Adult Social Care,BVASOC,ASC Learning Disabilities,ALD,Third Party Payments,F,Other Establishments,FH,02/07/2014,PAY00676252,LDIS,Learning Disabilities,1570.76,Revenue,Payment to Individual
Brighton & Hove City Council,http://statistics.data.gov.uk/id/local-authority/00ML,Adult Social Care,BVASOC,ASC Learning Disabilities,ALD,Customer n Client Receipts,M,Fees n Charges,MB,02/07/2014,PAY00676253,LDIS,Learning Disabilities,-180.00,Revenue,Payment to Individual
Brighton & Hove City Council,http://statistics.data.gov.uk/id/local-authority/00ML,Adult Social Care,BVASOC,ASC Learning Disabilities,ALD,Third Party Payments,F,Other Establishments,FH,02/07/2014,PAY00676253,LDIS,Learning Disabilities,1571.56,Revenue,Payment to Individual
Brighton & Hove City Council,http://statistics.data.gov.uk/id/local-authority/00ML,Cultural and Related Serv,BVACUL,Highways and Roads - Mntnce,HRM,Premises Related,C,Repair Maint n Alterations,CA,02/07/2014,PAY00676255,PROP,Property and Design,6650.00,Revenue,Frost Brothers
Brighton & Hove City Council,http://statistics.data.gov.uk/id/local-authority/00ML,Central Support and Overheads,BVACEN,Support Services (SSC),PPT,Supplies and Services,E,Services,EF,02/07/2014,PAY00676256,PROP,Property and Design,1725.72,Revenue,F T Allen Limited
Brighton & Hove City Council,http://statistics.data.gov.uk/id/local-authority/00ML,Central Support and Overheads,BVACEN,Support Services (SSC),PPT,Supplies and Services,E,Services,EF,02/07/2014,PAY00676258,PROP,Property and Design,19004.00,Revenue,Hemsley Orrell P/ship
Brighton & Hove City Council,http://statistics.data.gov.uk/id/local-authority/00ML,Central Support and Overheads,BVACEN,Support Services (SSC),PPT,Premises Related,C,Cleaning n Domestic Supps,CH,02/07/2014,PAY00676259,PROP,Property and Design,793.81,Revenue,Rentokil Initial UK Ltd
Brighton & Hove City Council,http://statistics.data.gov.uk/id/local-authority/00ML,Cultural and Related Serv,BVACUL,Highways and Roads - Mntnce,HRM,Premises Related,C,Repair Maint n Alterations,CA,02/07/2014,PAY00676260,PROP,Property and Design,1160.00,Revenue,J Davies Building Ltd
Brighton & Hove City Council,http://statistics.data.gov.uk/id/local-authority/00ML,Adult Social Care,BVASOC,ASC Learning Disabilities,ALD,Premises Related,C,Cleaning n Domestic Supps,CH,02/07/2014,PAY00676261,LDAS,LD Accommodation Services,269.14,Revenue,Kent County Council (KCS)
Brighton & Hove City Council,http://statistics.data.gov.uk/id/local-authority/00ML,Adult Social Care,BVASOC,ASC Learning Disabilities,ALD,Premises Related,C,Energy Costs,CB,02/07/2014,PAY00676261,DAYS,Day Services,1238.41,Revenue,Kent County Council (KCS)
Brighton & Hove City Council,http://statistics.data.gov.uk/id/local-authority/00ML,Adult Social Care,BVASOC,ASC Learning Disabilities,ALD,Supplies and Services,E,Miscellaneous Expenses,EM,02/07/2014,PAY00676261,DAYS,Day Services,115.73,Revenue,Kent County Council (KCS)
Brighton & Hove City Council,http://statistics.data.gov.uk/id/local-authority/00ML,Central Support and Overheads,BVACEN,Holding Accounts,PPH,Premises Related,C,Energy Costs,CB,02/07/2014,PAY00676261,PROP,Property and Design,4631.32,Revenue,Kent County Council (KCS)
Brighton & Hove City Council,http://statistics.data.gov.uk/id/local-authority/00ML,Central Support and Overheads,BVACEN,Support Services (SSC),PPT,Premises Related,C,Energy Costs,CB,02/07/2014,PAY00676261,COMU,Communications,67.69,Revenue,Kent County Council (KCS)
Brighton & Hove City Council,http://statistics.data.gov.uk/id/local-authority/00ML,Central Support and Overheads,BVACEN,Support Services (SSC),PPT,Premises Related,C,Energy Costs,CB,02/07/2014,PAY00676261,PROP,Property and Design,20919.32,Revenue,Kent County Council (KCS)
Brighton & Hove City Council,http://statistics.data.gov.uk/id/local-authority/00ML,Central Support and Overheads,BVACEN,Trading Services,TRD,Premises Related,C,Energy Costs,CB,02/07/2014,PAY00676261,PROP,Property and Design,8.68,Revenue,Kent County Council (KCS)
Brighton & Hove City Council,http://statistics.data.gov.uk/id/local-authority/00ML,Children`s & Education Serv,BVAEDU,Child Srvcs - Family Centres,FFF,Premises Related,C,Energy Costs,CB,02/07/2014,PAY00676261,CHIC,Children In Care,135.01,Revenue,Kent County Council (KCS)
Brighton & Hove City Council,http://statistics.data.gov.uk/id/local-authority/00ML,Children`s & Education Serv,BVAEDU,Ed Nursery Schools,EAA,Premises Related,C,Energy Costs,CB,02/07/2014,PAY00676261,SCHL,Schools,194.14,Revenue,Kent County Council (KCS)
Brighton & Hove City Council,http://statistics.data.gov.uk/id/local-authority/00ML,Children`s & Education Serv,BVAEDU,Ed Primary Schools,EHH,Premises Related,C,Energy Costs,CB,02/07/2014,PAY00676261,SCHL,Schools,38768.30,Revenue,Kent County Council (KCS)
Brighton & Hove City Council,http://statistics.data.gov.uk/id/local-authority/00ML,Children`s & Education Serv,BVAEDU,Ed Secondary Ed,EJE,Premises Related,C,Energy Costs,CB,02/07/2014,PAY00676261,OEDS,Other Education Support,645.01,Revenue,Kent County Council (KCS)
Brighton & Hove City Council,http://statistics.data.gov.uk/id/local-authority/00ML,Children`s & Education Serv,BVAEDU,Ed Secondary Schools,EJJ,Premises Related,C,Energy Costs,CB,02/07/2014,PAY00676261,SCHL,Schools,46246.84,Revenue,Kent County Council (KCS)
Brighton & Hove City Council,http://statistics.data.gov.uk/id/local-authority/00ML,Children`s & Education Serv,BVAEDU,Ed Special Ed,EKE,Premises Related,C,Energy Costs,CB,02/07/2014,PAY00676261,OEDS,Other Education Support,84.92,Revenue,Kent County Council (KCS)
Brighton & Hove City Council,http://statistics.data.gov.uk/id/local-authority/00ML,Children`s & Education Serv,BVAEDU,Ed Special Ed,EKE,Premises Related,C,Energy Costs,CB,02/07/2014,PAY00676261,SCHL,Schools,393.92,Revenue,Kent County Council (KCS)
Brighton & Hove City Council,http://statistics.data.gov.uk/id/local-authority/00ML,Children`s & Education Serv,BVAEDU,Ed Special Ed,EKE,Premises Related,C,Energy Costs,CB,02/07/2014,PAY00676261,SENS,Special Educational Needs,98.27,Revenue,Kent County Council (KCS)
Brighton & Hove City Council,http://statistics.data.gov.uk/id/local-authority/00ML,Children`s & Education Serv,BVAEDU,Ed Special Ed,EKE,Supplies and Services,E,Print Stat & Gen Office Exps,ED,02/07/2014,PAY00676261,OEDS,Other Education Support,3.79,Revenue,Kent County Council (KCS)
Brighton & Hove City Council,http://statistics.data.gov.uk/id/local-authority/00ML,Children`s & Education Serv,BVAEDU,Ed Special Schools,EKK,Premises Related,C,Energy Costs,CB,02/07/2014,PAY00676261,SCHL,Schools,4241.54,Revenue,Kent County Council (KCS)
Brighton & Hove City Council,http://statistics.data.gov.uk/id/local-authority/00ML,Children`s & Education Serv,BVAEDU,Ed Srvcs YP Ad and Cmty Ln,ENA,Premises Related,C,Energy Costs,CB,02/07/2014,PAY00676261,OEDS,Other Education Support,376.90,Revenue,Kent County Council (KCS)
Brighton & Hove City Council,http://statistics.data.gov.uk/id/local-authority/00ML,Children`s & Education Serv,BVAEDU,Ed Srvcs YP Youth Srvcs,ENY,Premises Related,C,Cleaning n Domestic Supps,CH,02/07/2014,PAY00676261,YOTS,Youth Service,27.98,Revenue,Kent County Council (KCS)
Brighton & Hove City Council,http://statistics.data.gov.uk/id/local-authority/00ML,Cultural and Related Serv,BVACUL,Culture and Heritage,CHG,Premises Related,C,Energy Costs,CB,02/07/2014,PAY00676261,RPMU,Royal Pavilion and Museums,6925.93,Revenue,Kent County Council (KCS)
Brighton & Hove City Council,http://statistics.data.gov.uk/id/local-authority/00ML,Cultural and Related Serv,BVACUL,Culture and Heritage,CHG,Premises Related,C,Energy Costs,CB,02/07/2014,PAY00676261,VENU,Venues,28104.91,Revenue,Kent County Council (KCS)
Brighton & Hove City Council,http://statistics.data.gov.uk/id/local-authority/00ML,Cultural and Related Serv,BVACUL,Highways and Roads - Mntnce,HRM,Premises Related,C,Energy Costs,CB,02/07/2014,PAY00676261,PROP,Property and Design,171.71,Revenue,Kent County Council (KCS)
Brighton & Hove City Council,http://statistics.data.gov.uk/id/local-authority/00ML,Cultural and Related Serv,BVACUL,Recreation and Sport,REC,Premises Related,C,Energy Costs,CB,02/07/2014,PAY00676261,SFAC,Sports Facilities,-2703.04,Revenue,Kent County Council (KCS)
Brighton & Hove City Council,http://statistics.data.gov.uk/id/local-authority/00ML,Environment & Regulatory Serv,BVAERS,Management Services (DEC),MGT,Premises Related,C,Energy Costs,CB,02/07/2014,PAY00676261,CICL,City Clean,-493.98,Revenue,Kent County Council (KCS)
Brighton & Hove City Council,http://statistics.data.gov.uk/id/local-authority/00ML,Highways and Transportation,BVAHRT,Parking Services,PRK,Premises Related,C,Energy Costs,CB,02/07/2014,PAY00676261,PARK,Parking,4642.42,Revenue,Kent County Council (KCS)
Brighton & Hove City Council,http://statistics.data.gov.uk/id/local-authority/00ML,Housing General Fund,BVAHOG,Homelessness,HML,Premises Related,C,Energy Costs,CB,02/07/2014,PAY00676261,HOPT,Housing Options,58.80,Revenue,Kent County Council (KCS)
Brighton & Hove City Council,http://statistics.data.gov.uk/id/local-authority/00ML,Housing General Fund,BVAHOG,Homelessness,HML,Premises Related,C,Energy Costs,CB,02/07/2014,PAY00676261,HOSS,Housing Supports Services,1050.76,Revenue,Kent County Council (KCS)
Brighton & Hove City Council,http://statistics.data.gov.uk/id/local-authority/00ML,Housing General Fund,BVAHOG,Homelessness,HML,Premises Related,C,Energy Costs,CB,02/07/2014,PAY00676261,TAAS,Temp Accom and Allocations,400.69,Revenue,Kent County Council (KCS)
Brighton & Hove City Council,http://statistics.data.gov.uk/id/local-authority/00ML,Housing General Fund,BVAHOG,Homelessness,HML,Premises Related,C,Energy Costs,CB,02/07/2014,PAY00676261,TRAV,Travellers,801.59,Revenue,Kent County Council (KCS)
Brighton & Hove City Council,http://statistics.data.gov.uk/id/local-authority/00ML,Housing Revenue Account,BVAHOU,Hsing Management - HRA,HGM,Premises Related,C,Energy Costs,CB,02/07/2014,PAY00676261,HIII,Income Involvement Improvement,880.62,Revenue,Kent County Council (KCS)
Brighton & Hove City Council,http://statistics.data.gov.uk/id/local-authority/00ML,Housing Revenue Account,BVAHOU,Hsing Management - HRA,HGM,Premises Related,C,Energy Costs,CB,02/07/2014,PAY00676261,HPAI,Property & Investment,523.40,Revenue,Kent County Council (KCS)
Brighton & Hove City Council,http://statistics.data.gov.uk/id/local-authority/00ML,Housing Revenue Account,BVAHOU,Hsing Management - HRA,HGM,Premises Related,C,Energy Costs,CB,02/07/2014,PAY00676261,HTEN,Tenancy Services,28463.69,Revenue,Kent County Council (KCS)
Brighton & Hove City Council,http://statistics.data.gov.uk/id/local-authority/00ML,Housing Revenue Account,BVAHOU,Hsing Strategy - HRA,HGT,Premises Related,C,Energy Costs,CB,02/07/2014,PAY00676261,HSTR,Housing Strategy,124.97,Revenue,Kent County Council (KCS)
Brighton & Hove City Council,http://statistics.data.gov.uk/id/local-authority/00ML,Planning and Development,BVAPLA,Economic Development,ECD,Premises Related,C,Energy Costs,CB,02/07/2014,PAY00676261,PROP,Property and Design,55.46,Revenue,Kent County Council (KCS)
Brighton & Hove City Council,http://statistics.data.gov.uk/id/local-authority/00ML,Children`s & Education Serv,BVAEDU,Ed Ed Other LA Attrib Sch,ELA,Third Party Payments,F,Other Local Authorities,FB,02/07/2014,PAY00676262,OEDS,Other Education Support,613.76,Revenue,London Borough of Lambeth
Brighton & Hove City Council,http://statistics.data.gov.uk/id/local-authority/00ML,Environment & Regulatory Serv,BVAERS,Street Cleansing,CLE,Supplies and Services,E,Equip't Furniture n Materials,EA,02/07/2014,PAY00676264,CICL,City Clean,696.65,Revenue,Munitech
Brighton & Hove City Council,http://statistics.data.gov.uk/id/local-authority/00ML,Housing Revenue Account,BVAHOU,Hsing Management - HRA,HGM,Supplies and Services,E,Services,EF,02/07/2014,PAY00676266,HIII,Income Involvement Improvement,1600.00,Revenue,Parsons Son & Basley LLP
Brighton & Hove City Council,http://statistics.data.gov.uk/id/local-authority/00ML,Cultural and Related Serv,BVACUL,Culture and Heritage,CHG,Supplies and Services,E,Goods for Resale,EG,02/07/2014,PAY00676267,RPMU,Royal Pavilion and Museums,711.68,Revenue,Pomegranate Europe Ltd
Brighton & Hove City Council,http://statistics.data.gov.uk/id/local-authority/00ML,Environment & Regulatory Serv,BVAERS,Environmental Health,EVH,Supplies and Services,E,Equip't Furniture n Materials,EA,02/07/2014,PAY00676268,PUPO,Public Protection,525.00,Revenue,Radio Relay
Brighton & Hove City Council,http://statistics.data.gov.uk/id/local-authority/00ML,Central Support and Overheads,BVACEN,Support Services (SSC),PPT,Supplies and Services,E,Communications n Computing,EH,02/07/2014,PAY00676269,FINS,Financial Services,41377.00,Revenue,Civica UK Ltd
Brighton & Hove City Council,http://statistics.data.gov.uk/id/local-authority/00ML,Highways and Transportation,BVAHRT,Parking Services,PRK,Supplies and Services,E,Equip't Furniture n Materials,EA,02/07/2014,PAY00676270,PARK,Parking,1914.00,Revenue,Secondary Electrical Systems
Brighton & Hove City Council,http://statistics.data.gov.uk/id/local-authority/00ML,Central Support and Overheads,BVACEN,Holding Accounts,PPH,Premises Related,C,Repair Maint n Alterations,CA,02/07/2014,PAY00676272,PROP,Property and Design,289.25,Revenue,SELS Ltd
Brighton & Hove City Council,http://statistics.data.gov.uk/id/local-authority/00ML,Central Support and Overheads,BVACEN,Support Services (SSC),PPT,Premises Related,C,Repair Maint n Alterations,CA,02/07/2014,PAY00676272,PROP,Property and Design,261.95,Revenue,SELS Ltd
Brighton & Hove City Council,http://statistics.data.gov.uk/id/local-authority/00ML,Central Support and Overheads,BVACEN,Support Services (SSC),PPT,Premises Related,C,Repair Maint n Alterations,CA,02/07/2014,PAY00676275,PROP,Property and Design,385.00,Revenue,Thomas Door & Window Controls Ltd
Brighton & Hove City Council,http://statistics.data.gov.uk/id/local-authority/00ML,Adult Social Care,BVASOC,ASC Physical Support,PHY,Third Party Payments,F,Health Authorities,FC,02/07/2014,PAY00676276,HOME,Home Care,46829.00,Revenue,Sussex Community NHS Trust
Brighton & Hove City Council,http://statistics.data.gov.uk/id/local-authority/00ML,Adult Social Care,BVASOC,Social Care Activities,ACM,Third Party Payments,F,Health Authorities,FC,02/07/2014,PAY00676276,ASIT,Assessment and SIT,19672.50,Revenue,Sussex Community NHS Trust
Brighton & Hove City Council,http://statistics.data.gov.uk/id/local-authority/00ML,Children`s & Education Serv,BVAEDU,Ed EY PVI,ENP,Supplies and Services,E,Grants n Subscriptions,EK,02/07/2014,PAY00676276,EYRS,Early Years,7438.00,Revenue,Sussex Community NHS Trust
Brighton & Hove City Council,http://statistics.data.gov.uk/id/local-authority/00ML,Housing General Fund,BVAHOG,Homelessness,HML,Premises Related,C,Repair Maint n Alterations,CA,02/07/2014,PAY00676278,TAAS,Temp Accom and Allocations,445.01,Revenue,Stringer Appliances
Brighton & Hove City Council,http://statistics.data.gov.uk/id/local-authority/00ML,Cultural and Related Serv,BVACUL,Culture and Heritage,CHG,Supplies and Services,E,Miscellaneous Expenses,EM,02/07/2014,PAY00676279,ODEV,Outdoor Events,2950.00,Revenue,Technical Engineering Ltd
Brighton & Hove City Council,http://statistics.data.gov.uk/id/local-authority/00ML,Highways and Transportation,BVAHRT,Parking Services,PRK,Premises Related,C,Repair Maint n Alterations,CA,02/07/2014,PAY00676279,HIGH,Highways,149.00,Revenue,Technical Engineering Ltd
Brighton & Hove City Council,http://statistics.data.gov.uk/id/local-authority/00ML,Highways and Transportation,BVAHRT,Transport Plan Policy Strategy,TPP,Supplies and Services,E,Print Stat & Gen Office Exps,ED,02/07/2014,PAY00676279,TPRS,Transport Plan and Road Safety,796.00,Revenue,Technical Engineering Ltd
Brighton & Hove City Council,http://statistics.data.gov.uk/id/local-authority/00ML,Cultural and Related Serv,BVACUL,Culture and Heritage,CHG,Supplies and Services,E,Miscellaneous Expenses,EM,02/07/2014,PAY00676281,ODEV,Outdoor Events,400.00,Revenue,Westbourne Motors
Brighton & Hove City Council,http://statistics.data.gov.uk/id/local-authority/00ML,Adult Social Care,BVASOC,ASC Learning Disabilities,ALD,Premises Related,C,Cleaning n Domestic Supps,CH,02/07/2014,PAY00676282,DAYS,Day Services,98.63,Revenue,Wightman & Parrish Ltd
Brighton & Hove City Council,http://statistics.data.gov.uk/id/local-authority/00ML,Children`s & Education Serv,BVAEDU,Ed EY Central,EAE,Premises Related,C,Cleaning n Domestic Supps,CH,02/07/2014,PAY00676282,EYRS,Early Years,125.74,Revenue,Wightman & Parrish Ltd
Brighton & Hove City Council,http://statistics.data.gov.uk/id/local-authority/00ML,Housing General Fund,BVAHOG,Homelessness,HML,Premises Related,C,Energy Costs,CB,02/07/2014,PAY00676282,HOSS,Housing Supports Services,235.96,Revenue,Wightman & Parrish Ltd
Brighton & Hove City Council,http://statistics.data.gov.uk/id/local-authority/00ML,Children`s & Education Serv,BVAEDU,Child Srvcs - Fostering,FLF,Supplies and Services,E,Grants n Subscriptions,EK,02/07/2014,PAY00676284,CHIC,Children In Care,434.00,Revenue,BAAF Registered Charity
Brighton & Hove City Council,http://statistics.data.gov.uk/id/local-authority/00ML,Adult Social Care,BVASOC,ASC Physical Support,PHY,Customer n Client Receipts,M,Fees n Charges,MB,02/07/2014,PAY00676287,PHYS,Physical Support,-282.00,Revenue,Enara Community Care
Brighton & Hove City Council,http://statistics.data.gov.uk/id/local-authority/00ML,Adult Social Care,BVASOC,ASC Physical Support,PHY,Third Party Payments,F,Other Establishments,FH,02/07/2014,PAY00676287,PHYS,Physical Support,1325.80,Revenue,Enara Community Care
Brighton & Hove City Council,http://statistics.data.gov.uk/id/local-authority/00ML,Adult Social Care,BVASOC,ASC Mental Health Support,MHP,Customer n Client Receipts,M,Fees n Charges,MB,02/07/2014,PAY00676290,MENH,Mental Health Support,-2.20,Revenue,Davigdor Lodge Rest Home
Brighton & Hove City Council,http://statistics.data.gov.uk/id/local-authority/00ML,Adult Social Care,BVASOC,ASC Mental Health Support,MHP,Third Party Payments,F,Other Establishments,FH,02/07/2014,PAY00676290,MENH,Mental Health Support,8171.43,Revenue,Davigdor Lodge Rest Home
Brighton & Hove City Council,http://statistics.data.gov.uk/id/local-authority/00ML,Children`s & Education Serv,BVAEDU,Ed EY PVI,ENP,Supplies and Services,E,Grants n Subscriptions,EK,02/07/2014,PAY00676292,EYRS,Early Years,13475.00,Revenue,Fiveways Pre-School Playgroup
Brighton & Hove City Council,http://statistics.data.gov.uk/id/local-authority/00ML,Children`s & Education Serv,BVAEDU,Ed EY PVI,ENP,Supplies and Services,E,Grants n Subscriptions,EK,02/07/2014,PAY00676295,EYRS,Early Years,4404.00,Revenue,Hillbury House Nursery
Brighton & Hove City Council,http://statistics.data.gov.uk/id/local-authority/00ML,Children`s & Education Serv,BVAEDU,Ed EY PVI,ENP,Supplies and Services,E,Grants n Subscriptions,EK,02/07/2014,PAY00676296,EYRS,Early Years,10084.00,Revenue,Hollingbury Park Playgroup
Brighton & Hove City Council,http://statistics.data.gov.uk/id/local-authority/00ML,Children`s & Education Serv,BVAEDU,Ed EY PVI,ENP,Supplies and Services,E,Grants n Subscriptions,EK,02/07/2014,PAY00676297,EYRS,Early Years,24719.00,Revenue,Hopscotch Nursery
Brighton & Hove City Council,http://statistics.data.gov.uk/id/local-authority/00ML,Children`s & Education Serv,BVAEDU,Ed EY PVI,ENP,Supplies and Services,E,Grants n Subscriptions,EK,02/07/2014,PAY00676298,EYRS,Early Years,6161.00,Revenue,Amigos Pre-School Playgroup
Brighton & Hove City Council,http://statistics.data.gov.uk/id/local-authority/00ML,Adult Social Care,BVASOC,ASC Physical Support,PHY,Customer n Client Receipts,M,Fees n Charges,MB,02/07/2014,PAY00676299,PHYS,Physical Support,602.30,Revenue,Z & M Care Ltd
Brighton & Hove City Council,http://statistics.data.gov.uk/id/local-authority/00ML,Adult Social Care,BVASOC,ASC Memory Cognition Support,MEM,Premises Related,C,Cleaning n Domestic Supps,CH,02/07/2014,PAY00676301,RCOP,Resource Centres Older People,695.49,Revenue,Nursing & Hygiene Group
Brighton & Hove City Council,http://statistics.data.gov.uk/id/local-authority/00ML,Adult Social Care,BVASOC,ASC Memory Cognition Support,MEM,Supplies and Services,E,Clothing Uniforms n Laundry,EC,02/07/2014,PAY00676301,RCOP,Resource Centres Older People,321.50,Revenue,Nursing & Hygiene Group
Brighton & Hove City Council,http://statistics.data.gov.uk/id/local-authority/00ML,Adult Social Care,BVASOC,ASC Memory Cognition Support,MEM,Supplies and Services,E,Equip't Furniture n Materials,EA,02/07/2014,PAY00676301,RCOP,Resource Centres Older People,271.76,Revenue,Nursing & Hygiene Group
Brighton & Hove City Council,http://statistics.data.gov.uk/id/local-authority/00ML,Adult Social Care,BVASOC,ASC Physical Support,PHY,Premises Related,C,Cleaning n Domestic Supps,CH,02/07/2014,PAY00676301,RCOP,Resource Centres Older People,143.91,Revenue,Nursing & Hygiene Group
Brighton & Hove City Council,http://statistics.data.gov.uk/id/local-authority/00ML,Children`s & Education Serv,BVAEDU,Ed EY PVI,ENP,Supplies and Services,E,Grants n Subscriptions,EK,02/07/2014,PAY00676302,EYRS,Early Years,26559.00,Revenue,Oak Cottage Nursery
Brighton & Hove City Council,http://statistics.data.gov.uk/id/local-authority/00ML,Children`s & Education Serv,BVAEDU,Ed EY PVI,ENP,Supplies and Services,E,Grants n Subscriptions,EK,02/07/2014,PAY00676306,EYRS,Early Years,777.00,Revenue,Pepper-Pot Nursery Ltd
Brighton & Hove City Council,http://statistics.data.gov.uk/id/local-authority/00ML,Children`s & Education Serv,BVAEDU,Ed EY PVI,ENP,Supplies and Services,E,Grants n Subscriptions,EK,02/07/2014,PAY00676308,EYRS,Early Years,5687.00,Revenue,Playcare Nursery
Brighton & Hove City Council,http://statistics.data.gov.uk/id/local-authority/00ML,Children`s & Education Serv,BVAEDU,Ed EY PVI,ENP,Supplies and Services,E,Grants n Subscriptions,EK,02/07/2014,PAY00676314,EYRS,Early Years,3431.00,Revenue,St Andrews Community Pre-School
Brighton & Hove City Council,http://statistics.data.gov.uk/id/local-authority/00ML,Children`s & Education Serv,BVAEDU,Ed EY PVI,ENP,Supplies and Services,E,Grants n Subscriptions,EK,02/07/2014,PAY00676321,EYRS,Early Years,1293.00,Revenue,St Peters Church Playgroup
Brighton & Hove City Council,http://statistics.data.gov.uk/id/local-authority/00ML,Children`s & Education Serv,BVAEDU,Ed EY PVI,ENP,Supplies and Services,E,Grants n Subscriptions,EK,02/07/2014,PAY00676322,EYRS,Early Years,3381.00,Revenue,See Saw Pre-School
Brighton & Hove City Council,http://statistics.data.gov.uk/id/local-authority/00ML,Children`s & Education Serv,BVAEDU,Ed EY PVI,ENP,Supplies and Services,E,Grants n Subscriptions,EK,02/07/2014,PAY00676324,EYRS,Early Years,7168.00,Revenue,Strawberry Hill Nursery
Brighton & Hove City Council,http://statistics.data.gov.uk/id/local-authority/00ML,Children`s & Education Serv,BVAEDU,Ed EY PVI,ENP,Supplies and Services,E,Grants n Subscriptions,EK,02/07/2014,PAY00676326,EYRS,Early Years,5532.00,Revenue,Teddy Bears Day Nursery
Brighton & Hove City Council,http://statistics.data.gov.uk/id/local-authority/00ML,Children`s & Education Serv,BVAEDU,Ed EY PVI,ENP,Supplies and Services,E,Grants n Subscriptions,EK,02/07/2014,PAY00676327,EYRS,Early Years,4118.00,Revenue,Village Under Fives
Brighton & Hove City Council,http://statistics.data.gov.uk/id/local-authority/00ML,Children`s & Education Serv,BVAEDU,Ed EY PVI,ENP,Supplies and Services,E,Grants n Subscriptions,EK,02/07/2014,PAY00676330,EYRS,Early Years,1816.00,Revenue,Meadowview Pre-School
Brighton & Hove City Council,http://statistics.data.gov.uk/id/local-authority/00ML,Adult Social Care,BVASOC,ASC Mental Health Support,MHP,Customer n Client Receipts,M,Fees n Charges,MB,02/07/2014,PAY00676331,MENH,Mental Health Support,-640.00,Revenue,Payment to Individual
Brighton & Hove City Council,http://statistics.data.gov.uk/id/local-authority/00ML,Adult Social Care,BVASOC,ASC Mental Health Support,MHP,Third Party Payments,F,Other Establishments,FH,02/07/2014,PAY00676331,MENH,Mental Health Support,4435.92,Revenue,Payment to Individual
Brighton & Hove City Council,http://statistics.data.gov.uk/id/local-authority/00ML,Adult Social Care,BVASOC,ASC Learning Disabilities,ALD,Customer n Client Receipts,M,Fees n Charges,MB,02/07/2014,PAY00676332,LDIS,Learning Disabilities,-264.00,Revenue,Payment to Individual
Brighton & Hove City Council,http://statistics.data.gov.uk/id/local-authority/00ML,Adult Social Care,BVASOC,ASC Learning Disabilities,ALD,Third Party Payments,F,Other Establishments,FH,02/07/2014,PAY00676332,LDIS,Learning Disabilities,2676.12,Revenue,Payment to Individual
Brighton & Hove City Council,http://statistics.data.gov.uk/id/local-authority/00ML,Children`s & Education Serv,BVAEDU,Ed EY PVI,ENP,Supplies and Services,E,Grants n Subscriptions,EK,02/07/2014,PAY00676333,EYRS,Early Years,3370.00,Revenue,Southern Cross Pre-School
Brighton & Hove City Council,http://statistics.data.gov.uk/id/local-authority/00ML,Children`s & Education Serv,BVAEDU,Ed EY PVI,ENP,Supplies and Services,E,Grants n Subscriptions,EK,02/07/2014,PAY00676334,EYRS,Early Years,4308.00,Revenue,Puffin Pre-School Nursery
Brighton & Hove City Council,http://statistics.data.gov.uk/id/local-authority/00ML,Children`s & Education Serv,BVAEDU,Ed EY PVI,ENP,Supplies and Services,E,Grants n Subscriptions,EK,02/07/2014,PAY00676335,EYRS,Early Years,3290.00,Revenue,Orchard Day Nursery
Brighton & Hove City Council,http://statistics.data.gov.uk/id/local-authority/00ML,Children`s & Education Serv,BVAEDU,Ed EY PVI,ENP,Supplies and Services,E,Grants n Subscriptions,EK,02/07/2014,PAY00676338,EYRS,Early Years,6471.00,Revenue,Early Years Childcare/Busy Bees Brighton
Brighton & Hove City Council,http://statistics.data.gov.uk/id/local-authority/00ML,Children`s & Education Serv,BVAEDU,Ed EY PVI,ENP,Supplies and Services,E,Grants n Subscriptions,EK,02/07/2014,PAY00676339,EYRS,Early Years,3056.00,Revenue,St Anthonys Pre-School
Brighton & Hove City Council,http://statistics.data.gov.uk/id/local-authority/00ML,Children`s & Education Serv,BVAEDU,Ed EY PVI,ENP,Supplies and Services,E,Grants n Subscriptions,EK,02/07/2014,PAY00676340,EYRS,Early Years,1380.00,Revenue,Pumpkin Patch Nursery
Brighton & Hove City Council,http://statistics.data.gov.uk/id/local-authority/00ML,Children`s & Education Serv,BVAEDU,Ed EY PVI,ENP,Supplies and Services,E,Grants n Subscriptions,EK,02/07/2014,PAY00676341,EYRS,Early Years,8791.00,Revenue,Joyland
Brighton & Hove City Council,http://statistics.data.gov.uk/id/local-authority/00ML,Children`s & Education Serv,BVAEDU,Ed EY PVI,ENP,Supplies and Services,E,Grants n Subscriptions,EK,02/07/2014,PAY00676344,EYRS,Early Years,5728.00,Revenue,The Dharma Primary School
Brighton & Hove City Council,http://statistics.data.gov.uk/id/local-authority/00ML,Children`s & Education Serv,BVAEDU,Ed EY PVI,ENP,Supplies and Services,E,Grants n Subscriptions,EK,02/07/2014,PAY00676346,EYRS,Early Years,15287.00,Revenue,Blueberry Nursery & Early Learning Organisation Ld
Brighton & Hove City Council,http://statistics.data.gov.uk/id/local-authority/00ML,Adult Social Care,BVASOC,ASC Learning Disabilities,ALD,Third Party Payments,F,Other Establishments,FH,02/07/2014,PAY00676347,LDAS,LD Accommodation Services,630.96,Revenue,Aspirations Active
Brighton & Hove City Council,http://statistics.data.gov.uk/id/local-authority/00ML,Children`s & Education Serv,BVAEDU,Ed EY PVI,ENP,Supplies and Services,E,Grants n Subscriptions,EK,02/07/2014,PAY00676348,EYRS,Early Years,1246.00,Revenue,Happitots
Brighton & Hove City Council,http://statistics.data.gov.uk/id/local-authority/00ML,Children`s & Education Serv,BVAEDU,Ed EY PVI,ENP,Supplies and Services,E,Grants n Subscriptions,EK,02/07/2014,PAY00676349,EYRS,Early Years,6295.00,Revenue,Stepping Stones Pre School (Portslade)
Brighton & Hove City Council,http://statistics.data.gov.uk/id/local-authority/00ML,Children`s & Education Serv,BVAEDU,Ed EY PVI,ENP,Supplies and Services,E,Grants n Subscriptions,EK,02/07/2014,PAY00676350,EYRS,Early Years,7630.00,Revenue,Kipling Lions
Brighton & Hove City Council,http://statistics.data.gov.uk/id/local-authority/00ML,Adult Social Care,BVASOC,ASC Learning Disabilities,ALD,Customer n Client Receipts,M,Fees n Charges,MB,02/07/2014,PAY00676353,LDIS,Learning Disabilities,-100.00,Revenue,Payment to Individual
Brighton & Hove City Council,http://statistics.data.gov.uk/id/local-authority/00ML,Adult Social Care,BVASOC,ASC Learning Disabilities,ALD,Third Party Payments,F,Other Establishments,FH,02/07/2014,PAY00676353,LDIS,Learning Disabilities,1623.96,Revenue,Payment to Individual
Brighton & Hove City Council,http://statistics.data.gov.uk/id/local-authority/00ML,Children`s & Education Serv,BVAEDU,Ed EY PVI,ENP,Supplies and Services,E,Grants n Subscriptions,EK,02/07/2014,PAY00676354,EYRS,Early Years,7659.00,Revenue,Early Years Childcare/Busy Bees Hove
Brighton & Hove City Council,http://statistics.data.gov.uk/id/local-authority/00ML,Central Support and Overheads,BVACEN,Support Services (SSC),PPT,Supplies and Services,E,Print Stat & Gen Office Exps,ED,02/07/2014,PAY00676357,COMU,Communications,14694.24,Revenue,Copyright Licensing Agency Ltd
Brighton & Hove City Council,http://statistics.data.gov.uk/id/local-authority/00ML,Children`s & Education Serv,BVAEDU,Ed EY PVI,ENP,Supplies and Services,E,Grants n Subscriptions,EK,02/07/2014,PAY00676358,EYRS,Early Years,5684.00,Revenue,Happy Days Nursery
Brighton & Hove City Council,http://statistics.data.gov.uk/id/local-authority/00ML,Adult Social Care,BVASOC,ASC Physical Support,PHY,Customer n Client Receipts,M,Fees n Charges,MB,02/07/2014,PAY00676360,PHYS,Physical Support,-666.32,Revenue,Techcrown Ltd
Brighton & Hove City Council,http://statistics.data.gov.uk/id/local-authority/00ML,Adult Social Care,BVASOC,ASC Physical Support,PHY,Third Party Payments,F,Other Establishments,FH,02/07/2014,PAY00676360,PHYS,Physical Support,1812.68,Revenue,Techcrown Ltd
Brighton & Hove City Council,http://statistics.data.gov.uk/id/local-authority/00ML,Adult Social Care,BVASOC,ASC Learning Disabilities,ALD,Third Party Payments,F,Other Establishments,FH,02/07/2014,PAY00676361,LDIS,Learning Disabilities,2107.80,Revenue,Autism Sussex Ltd
Brighton & Hove City Council,http://statistics.data.gov.uk/id/local-authority/00ML,Children`s & Education Serv,BVAEDU,Child Srvcs - Other Fam Supp,FFX,Transfer Payments,G,Other Transfer Payments,GD,02/07/2014,PAY00676361,DISS,Disability Services,1000.35,Revenue,Autism Sussex Ltd
Brighton & Hove City Council,http://statistics.data.gov.uk/id/local-authority/00ML,Children`s & Education Serv,BVAEDU,Ed EY PVI,ENP,Supplies and Services,E,Grants n Subscriptions,EK,02/07/2014,PAY00676362,EYRS,Early Years,9093.00,Revenue,Brighton College Nursery & Pre-Prep School
Brighton & Hove City Council,http://statistics.data.gov.uk/id/local-authority/00ML,Non I&E,BVANON,CAP Transport,4TR,New Construction n Conversion,PB,New Construction n Conversion,PBL5,02/07/2014,PAY00676366,HWEN,Highways Engineering,1848.75,Capital,Clear Channel UK Ltd
Brighton & Hove City Council,http://statistics.data.gov.uk/id/local-authority/00ML,Non I&E,BVANON,CAP Transport,4TR,New Construction n Conversion,PB,New Construction n Conversion,PBL5,02/07/2014,PAY00676366,TPRS,Transport Plan and Road Safety,3248.00,Capital,Clear Channel UK Ltd
Brighton & Hove City Council,http://statistics.data.gov.uk/id/local-authority/00ML,Non I&E,BVANON,CAP Transport,4TR,New Construction n Conversion,PB,New Construction n Conversion,PBL5,02/07/2014,PAY00676368,HWEN,Highways Engineering,12126.82,Capital,Edburton Contractors Ltd
Brighton & Hove City Council,http://statistics.data.gov.uk/id/local-authority/00ML,Central Support and Overheads,BVACEN,Support Services (SSC),PPT,Premises Related,C,Repair Maint n Alterations,CA,02/07/2014,PAY00676370,PROP,Property and Design,3465.27,Revenue,P H Beck Ltd
Brighton & Hove City Council,http://statistics.data.gov.uk/id/local-authority/00ML,Highways and Transportation,BVAHRT,Highways and Roads - Mntnce,HRM,Premises Related,C,Repair Maint n Alterations,CA,02/07/2014,PAY00676371,HIGH,Highways,141655.99,Revenue,R J Dance (Contractors) Ltd
Brighton & Hove City Council,http://statistics.data.gov.uk/id/local-authority/00ML,Non I&E,BVANON,CAP Transport,4TR,New Construction n Conversion,PB,New Construction n Conversion,PBL5,02/07/2014,PAY00676371,HIGH,Highways,-1199.88,Capital,R J Dance (Contractors) Ltd
Brighton & Hove City Council,http://statistics.data.gov.uk/id/local-authority/00ML,Non I&E,BVANON,CAP Transport,4TR,New Construction n Conversion,PB,New Construction n Conversion,PBL5,02/07/2014,PAY00676371,HWEN,Highways Engineering,30876.40,Capital,R J Dance (Contractors) Ltd
Brighton & Hove City Council,http://statistics.data.gov.uk/id/local-authority/00ML,Adult Social Care,BVASOC,ASC Learning Disabilities,ALD,Customer n Client Receipts,M,Fees n Charges,MB,02/07/2014,PAY00676372,LDIS,Learning Disabilities,-120.00,Revenue,Mencap H & S Region 4
Brighton & Hove City Council,http://statistics.data.gov.uk/id/local-authority/00ML,Adult Social Care,BVASOC,ASC Learning Disabilities,ALD,Third Party Payments,F,Other Establishments,FH,02/07/2014,PAY00676372,LDIS,Learning Disabilities,782.00,Revenue,Mencap H & S Region 4
Brighton & Hove City Council,http://statistics.data.gov.uk/id/local-authority/00ML,Adult Social Care,BVASOC,Assistive Equipment & Tech,AET,Supplies and Services,E,Equip't Furniture n Materials,EA,02/07/2014,PAY00676375,SSCT,S75 SCT,401.30,Revenue,Mountway Ltd
Brighton & Hove City Council,http://statistics.data.gov.uk/id/local-authority/00ML,Central Support and Overheads,BVACEN,Support Services (SSC),PPT,Supplies and Services,E,Communications n Computing,EH,02/07/2014,PAY00676376,ICTA,ICT,785.56,Revenue,Specialist Computer Centres Plc
Brighton & Hove City Council,http://statistics.data.gov.uk/id/local-authority/00ML,Central Support and Overheads,BVACEN,Support Services (SSC),PPT,Supplies and Services,E,Communications n Computing,EH,02/07/2014,PAY00676376,PROP,Property and Design,10807.04,Revenue,Specialist Computer Centres Plc
Brighton & Hove City Council,http://statistics.data.gov.uk/id/local-authority/00ML,Non I&E,BVANON,CAP Mgmnt and Suppt Services,4PT,Plant Machinery n Equipment,PE2,Plant Machinery n Equipment,PE2L5,02/07/2014,PAY00676376,ICTA,ICT,98610.70,Capital,Specialist Computer Centres Plc
Brighton & Hove City Council,http://statistics.data.gov.uk/id/local-authority/00ML,Planning and Development,BVAPLA,Building Control,BLD,Supplies and Services,E,Communications n Computing,EH,02/07/2014,PAY00676376,DEVP,Development Planning,442.39,Revenue,Specialist Computer Centres Plc
Brighton & Hove City Council,http://statistics.data.gov.uk/id/local-authority/00ML,Adult Social Care,BVASOC,ASC Physical Support,PHY,Transport Related,D,Other Transport Costs,DG,02/07/2014,PAY00676378,HOME,Home Care,1080.00,Revenue,Brighton & Hove Bus and Coach Co Ltd
Brighton & Hove City Council,http://statistics.data.gov.uk/id/local-authority/00ML,Adult Social Care,BVASOC,Social Care Activities,ACM,Transport Related,D,Public Transport,DD,02/07/2014,PAY00676378,ASIT,Assessment and SIT,168.00,Revenue,Brighton & Hove Bus and Coach Co Ltd
Brighton & Hove City Council,http://statistics.data.gov.uk/id/local-authority/00ML,Children`s & Education Serv,BVAEDU,Ed Ed Other LA Attrib Sch,ELA,Transport Related,D,Public Transport,DD,02/07/2014,PAY00676378,OEDS,Other Education Support,173.00,Revenue,Brighton & Hove Bus and Coach Co Ltd
Brighton & Hove City Council,http://statistics.data.gov.uk/id/local-authority/00ML,Highways and Transportation,BVAHRT,Public Transport,PTR,Third Party Payments,F,Private Contractors,FJ,02/07/2014,PAY00676378,TPRS,Transport Plan and Road Safety,58033.46,Revenue,Brighton & Hove Bus and Coach Co Ltd
Brighton & Hove City Council,http://statistics.data.gov.uk/id/local-authority/00ML,Highways and Transportation,BVAHRT,Transport Plan Policy Strategy,TPP,Third Party Payments,F,Private Contractors,FJ,02/07/2014,PAY00676378,TPRS,Transport Plan and Road Safety,4147.54,Revenue,Brighton & Hove Bus and Coach Co Ltd
Brighton & Hove City Council,http://statistics.data.gov.uk/id/local-authority/00ML,Planning and Development,BVAPLA,Development Control,DEV,Transport Related,D,Public Transport,DD,02/07/2014,PAY00676378,DEVP,Development Planning,216.00,Revenue,Brighton & Hove Bus and Coach Co Ltd
Brighton & Hove City Council,http://statistics.data.gov.uk/id/local-authority/00ML,Children`s & Education Serv,BVAEDU,Ed EY PVI,ENP,Supplies and Services,E,Grants n Subscriptions,EK,02/07/2014,PAY00676379,EYRS,Early Years,10247.00,Revenue,University of Brighton
Brighton & Hove City Council,http://statistics.data.gov.uk/id/local-authority/00ML,Central Support and Overheads,BVACEN,Support Services (SSC),PPT,Premises Related,C,Water Services,CE,02/07/2014,PAY00676380,PROP,Property and Design,13501.82,Revenue,Southern Water Services Ltd
Brighton & Hove City Council,http://statistics.data.gov.uk/id/local-authority/00ML,Children`s & Education Serv,BVAEDU,Child Srvcs - Family Centres,FFF,Premises Related,C,Water Services,CE,02/07/2014,PAY00676380,CHIC,Children In Care,98.59,Revenue,Southern Water Services Ltd
Brighton & Hove City Council,http://statistics.data.gov.uk/id/local-authority/00ML,Children`s & Education Serv,BVAEDU,Ed Special Ed,EKE,Premises Related,C,Water Services,CE,02/07/2014,PAY00676380,SENS,Special Educational Needs,13.95,Revenue,Southern Water Services Ltd
Brighton & Hove City Council,http://statistics.data.gov.uk/id/local-authority/00ML,Cultural and Related Serv,BVACUL,Culture and Heritage,CHG,Premises Related,C,Water Services,CE,02/07/2014,PAY00676380,RPMU,Royal Pavilion and Museums,319.33,Revenue,Southern Water Services Ltd
Brighton & Hove City Council,http://statistics.data.gov.uk/id/local-authority/00ML,Cultural and Related Serv,BVACUL,Culture and Heritage,CHG,Premises Related,C,Water Services,CE,02/07/2014,PAY00676380,VENU,Venues,2648.12,Revenue,Southern Water Services Ltd
Brighton & Hove City Council,http://statistics.data.gov.uk/id/local-authority/00ML,Cultural and Related Serv,BVACUL,Highways and Roads - Mntnce,HRM,Premises Related,C,Water Services,CE,02/07/2014,PAY00676380,PROP,Property and Design,4895.69,Revenue,Southern Water Services Ltd
Brighton & Hove City Council,http://statistics.data.gov.uk/id/local-authority/00ML,Cultural and Related Serv,BVACUL,Recreation and Sport,REC,Premises Related,C,Water Services,CE,02/07/2014,PAY00676380,SEAS,Seafront Services,108.95,Revenue,Southern Water Services Ltd
Brighton & Hove City Council,http://statistics.data.gov.uk/id/local-authority/00ML,Environment & Regulatory Serv,BVAERS,Environmental Health,EVH,Premises Related,C,Water Services,CE,02/07/2014,PAY00676380,CICL,City Clean,4057.51,Revenue,Southern Water Services Ltd
Brighton & Hove City Council,http://statistics.data.gov.uk/id/local-authority/00ML,Housing Revenue Account,BVAHOU,Hsing Management - HRA,HGM,Premises Related,C,Water Services,CE,02/07/2014,PAY00676380,HIII,Income Involvement Improvement,600.83,Revenue,Southern Water Services Ltd
Brighton & Hove City Council,http://statistics.data.gov.uk/id/local-authority/00ML,Housing Revenue Account,BVAHOU,Hsing Management - HRA,HGM,Premises Related,C,Water Services,CE,02/07/2014,PAY00676380,HPAI,Property & Investment,650.20,Revenue,Southern Water Services Ltd
Brighton & Hove City Council,http://statistics.data.gov.uk/id/local-authority/00ML,Housing Revenue Account,BVAHOU,Hsing Management - HRA,HGM,Premises Related,C,Water Services,CE,02/07/2014,PAY00676380,HTEN,Tenancy Services,7.28,Revenue,Southern Water Services Ltd
Brighton & Hove City Council,http://statistics.data.gov.uk/id/local-authority/00ML,Children`s & Education Serv,BVAEDU,Ed EY PVI,ENP,Supplies and Services,E,Grants n Subscriptions,EK,02/07/2014,PAY00676384,EYRS,Early Years,7697.00,Revenue,St Joseph`s Pre-School Playgroup
Brighton & Hove City Council,http://statistics.data.gov.uk/id/local-authority/00ML,Children`s & Education Serv,BVAEDU,Ed EY PVI,ENP,Supplies and Services,E,Grants n Subscriptions,EK,02/07/2014,PAY00676386,EYRS,Early Years,5407.00,Revenue,Little Angels (Sussex) Ltd
Brighton & Hove City Council,http://statistics.data.gov.uk/id/local-authority/00ML,Children`s & Education Serv,BVAEDU,Child Srvcs Leaving Care,FAL,Transfer Payments,G,Other Transfer Payments,GD,02/07/2014,PAY00676387,CHIC,Children In Care,3214.20,Revenue,Time Out Fostering Ltd
Brighton & Hove City Council,http://statistics.data.gov.uk/id/local-authority/00ML,Adult Social Care,BVASOC,ASC Learning Disabilities,ALD,Customer n Client Receipts,M,Fees n Charges,MB,02/07/2014,PAY00676388,LDIS,Learning Disabilities,-13.96,Revenue,Payment to Individual
Brighton & Hove City Council,http://statistics.data.gov.uk/id/local-authority/00ML,Adult Social Care,BVASOC,ASC Learning Disabilities,ALD,Third Party Payments,F,Other Establishments,FH,02/07/2014,PAY00676388,LDIS,Learning Disabilities,423.68,Revenue,Payment to Individual
Brighton & Hove City Council,http://statistics.data.gov.uk/id/local-authority/00ML,Children`s & Education Serv,BVAEDU,Ed EY PVI,ENP,Supplies and Services,E,Grants n Subscriptions,EK,02/07/2014,PAY00676389,EYRS,Early Years,1683.00,Revenue,Brighthelm Pre-School 
Brighton & Hove City Council,http://statistics.data.gov.uk/id/local-authority/00ML,Housing General Fund,BVAHOG,Homelessness,HML,Premises Related,C,Rents Payable,CC,02/07/2014,PAY00676390,TAAS,Temp Accom and Allocations,850.00,Revenue,Payment to Individual
Brighton & Hove City Council,http://statistics.data.gov.uk/id/local-authority/00ML,Central Support and Overheads,BVACEN,Support Services (SSC),PPT,Supplies and Services,E,Miscellaneous Expenses,EM,02/07/2014,PAY00676392,BIPR,Bulk Insurance Premia,2280.75,Revenue,Philip Goacher Associates Limited
Brighton & Hove City Council,http://statistics.data.gov.uk/id/local-authority/00ML,Adult Social Care,BVASOC,ASC Physical Support,PHY,Third Party Payments,F,Other Establishments,FH,02/07/2014,PAY00676393,PHYS,Physical Support,4030.80,Revenue,Payment to Individual
Brighton & Hove City Council,http://statistics.data.gov.uk/id/local-authority/00ML,Adult Social Care,BVASOC,ASC Learning Disabilities,ALD,Customer n Client Receipts,M,Fees n Charges,MB,02/07/2014,PAY00676395,LDIS,Learning Disabilities,-1672.00,Revenue,Payment to Individual
Brighton & Hove City Council,http://statistics.data.gov.uk/id/local-authority/00ML,Adult Social Care,BVASOC,ASC Learning Disabilities,ALD,Third Party Payments,F,Other Establishments,FH,02/07/2014,PAY00676395,LDIS,Learning Disabilities,5163.36,Revenue,Payment to Individual
Brighton & Hove City Council,http://statistics.data.gov.uk/id/local-authority/00ML,Housing General Fund,BVAHOG,Homelessness,HML,Premises Related,C,Rents Payable,CC,02/07/2014,PAY00676397,TAAS,Temp Accom and Allocations,930.00,Revenue,Payment to Individual
Brighton & Hove City Council,http://statistics.data.gov.uk/id/local-authority/00ML,Children`s & Education Serv,BVAEDU,Ed EY PVI,ENP,Supplies and Services,E,Grants n Subscriptions,EK,02/07/2014,PAY00676398,EYRS,Early Years,951.00,Revenue,A & A Childcare
Brighton & Hove City Council,http://statistics.data.gov.uk/id/local-authority/00ML,Children`s & Education Serv,BVAEDU,Ed EY PVI,ENP,Supplies and Services,E,Grants n Subscriptions,EK,02/07/2014,PAY00676400,EYRS,Early Years,1033.00,Revenue,Payment to Individual
Brighton & Hove City Council,http://statistics.data.gov.uk/id/local-authority/00ML,Children`s & Education Serv,BVAEDU,Child Srvcs - Fostering,FLF,Supplies and Services,E,Miscellaneous Expenses,EM,02/07/2014,PAY00676401,CHIC,Children In Care,360.00,Revenue,Truly Local Advertising Ltd
Brighton & Hove City Council,http://statistics.data.gov.uk/id/local-authority/00ML,Housing Revenue Account,BVAHOU,Hsing Management - HRA,HGM,Supplies and Services,E,Services,EF,02/07/2014,PAY00676403,HIII,Income Involvement Improvement,350.00,Revenue,Healys LLP
Brighton & Hove City Council,http://statistics.data.gov.uk/id/local-authority/00ML,Housing General Fund,BVAHOG,Homelessness,HML,Premises Related,C,Rents Payable,CC,02/07/2014,PAY00676404,TAAS,Temp Accom and Allocations,1730.00,Revenue,Payment to Individual
Brighton & Hove City Council,http://statistics.data.gov.uk/id/local-authority/00ML,Children`s & Education Serv,BVAEDU,Ed EY PVI,ENP,Supplies and Services,E,Grants n Subscriptions,EK,02/07/2014,PAY00676406,EYRS,Early Years,2604.00,Revenue,Kidz Korner
Brighton & Hove City Council,http://statistics.data.gov.uk/id/local-authority/00ML,Children`s & Education Serv,BVAEDU,Ed EY PVI,ENP,Supplies and Services,E,Grants n Subscriptions,EK,02/07/2014,PAY00676407,EYRS,Early Years,8576.00,Revenue,My First Friends Nursery
Brighton & Hove City Council,http://statistics.data.gov.uk/id/local-authority/00ML,Adult Social Care,BVASOC,ASC Learning Disabilities,ALD,Third Party Payments,F,Other Establishments,FH,02/07/2014,PAY00676411,LDIS,Learning Disabilities,268.40,Revenue,Payment to Individual
Brighton & Hove City Council,http://statistics.data.gov.uk/id/local-authority/00ML,Adult Social Care,BVASOC,ASC Learning Disabilities,ALD,Third Party Payments,F,Other Establishments,FH,02/07/2014,PAY00676412,LDIS,Learning Disabilities,8711.24,Revenue,Livability
Brighton & Hove City Council,http://statistics.data.gov.uk/id/local-authority/00ML,Adult Social Care,BVASOC,ASC Physical Support,PHY,Customer n Client Receipts,M,Fees n Charges,MB,02/07/2014,PAY00676412,PHYS,Physical Support,-319.40,Revenue,Livability
Brighton & Hove City Council,http://statistics.data.gov.uk/id/local-authority/00ML,Adult Social Care,BVASOC,ASC Physical Support,PHY,Third Party Payments,F,Other Establishments,FH,02/07/2014,PAY00676412,PHYS,Physical Support,4400.00,Revenue,Livability
Brighton & Hove City Council,http://statistics.data.gov.uk/id/local-authority/00ML,Housing General Fund,BVAHOG,Homelessness,HML,Premises Related,C,Rents Payable,CC,02/07/2014,PAY00676414,TAAS,Temp Accom and Allocations,880.00,Revenue,Payment to Individual
Brighton & Hove City Council,http://statistics.data.gov.uk/id/local-authority/00ML,Children`s & Education Serv,BVAEDU,Ed EY PVI,ENP,Supplies and Services,E,Grants n Subscriptions,EK,02/07/2014,PAY00676415,EYRS,Early Years,356.00,Revenue,Reeves Hill Childminders
Brighton & Hove City Council,http://statistics.data.gov.uk/id/local-authority/00ML,Children`s & Education Serv,BVAEDU,Ed EY PVI,ENP,Supplies and Services,E,Grants n Subscriptions,EK,02/07/2014,PAY00676416,EYRS,Early Years,1978.00,Revenue,Ovingdean Nursery School
Brighton & Hove City Council,http://statistics.data.gov.uk/id/local-authority/00ML,Non I&E,BVANON,CAP Transport,4TR,New Construction n Conversion,PB,New Construction n Conversion,PBL5,02/07/2014,PAY00676417,HWEN,Highways Engineering,2800.00,Capital,Thermotor
Brighton & Hove City Council,http://statistics.data.gov.uk/id/local-authority/00ML,Children`s & Education Serv,BVAEDU,Child Srvcs Direct Pymts,FFD,Third Party Payments,F,Other Establishments,FH,02/07/2014,PAY00676418,DISS,Disability Services,586.34,Revenue,Payment to Individual
Brighton & Hove City Council,http://statistics.data.gov.uk/id/local-authority/00ML,Children`s & Education Serv,BVAEDU,Ed Mgmt and Support Services,EMG,Premises Related,C,Rents Payable,CC,02/07/2014,PAY00676419,SACH,Standards and Achievement,480.00,Revenue,Oasis Christian Fellowship
Brighton & Hove City Council,http://statistics.data.gov.uk/id/local-authority/00ML,Adult Social Care,BVASOC,ASC Learning Disabilities,ALD,Transport Related,D,Direct Transport Costs,DA,02/07/2014,PAY00676420,SUPE,Supported Employment,757.25,Revenue,Alphabet (UK) Fleet Management Ltd
Brighton & Hove City Council,http://statistics.data.gov.uk/id/local-authority/00ML,Housing General Fund,BVAHOG,Homelessness,HML,Premises Related,C,Rents Payable,CC,02/07/2014,PAY00676422,TAAS,Temp Accom and Allocations,650.00,Revenue,Payment to Individual
Brighton & Hove City Council,http://statistics.data.gov.uk/id/local-authority/00ML,Adult Social Care,BVASOC,ASC Learning Disabilities,ALD,Customer n Client Receipts,M,Fees n Charges,MB,02/07/2014,PAY00676426,LDIS,Learning Disabilities,-108.00,Revenue,Payment to Individual
Brighton & Hove City Council,http://statistics.data.gov.uk/id/local-authority/00ML,Adult Social Care,BVASOC,ASC Learning Disabilities,ALD,Third Party Payments,F,Other Establishments,FH,02/07/2014,PAY00676426,LDIS,Learning Disabilities,2844.92,Revenue,Payment to Individual
Brighton & Hove City Council,http://statistics.data.gov.uk/id/local-authority/00ML,Children`s & Education Serv,BVAEDU,Child Srvcs Com and Scl Work,FCW,Indirect Employees,B,Misc Employee Costs,BP,02/07/2014,PAY00676428,DISS,Disability Services,16.50,Revenue,Petty Cash
Brighton & Hove City Council,http://statistics.data.gov.uk/id/local-authority/00ML,Children`s & Education Serv,BVAEDU,Child Srvcs Com and Scl Work,FCW,Supplies and Services,E,Communications n Computing,EH,02/07/2014,PAY00676428,DISS,Disability Services,37.22,Revenue,Petty Cash
Brighton & Hove City Council,http://statistics.data.gov.uk/id/local-authority/00ML,Children`s & Education Serv,BVAEDU,Child Srvcs Com and Scl Work,FCW,Supplies and Services,E,Expenses,EJ,02/07/2014,PAY00676428,DISS,Disability Services,231.76,Revenue,Petty Cash
Brighton & Hove City Council,http://statistics.data.gov.uk/id/local-authority/00ML,Children`s & Education Serv,BVAEDU,Child Srvcs Com and Scl Work,FCW,Supplies and Services,E,Miscellaneous Expenses,EM,02/07/2014,PAY00676428,DISS,Disability Services,33.33,Revenue,Petty Cash
Brighton & Hove City Council,http://statistics.data.gov.uk/id/local-authority/00ML,Children`s & Education Serv,BVAEDU,Child Srvcs Com and Scl Work,FCW,Transport Related,D,Other Transport Costs,DG,02/07/2014,PAY00676428,DISS,Disability Services,3.00,Revenue,Petty Cash
Brighton & Hove City Council,http://statistics.data.gov.uk/id/local-authority/00ML,Children`s & Education Serv,BVAEDU,Child Srvcs Com and Scl Work,FCW,Transport Related,D,Public Transport,DD,02/07/2014,PAY00676428,DISS,Disability Services,4.70,Revenue,Petty Cash
Brighton & Hove City Council,http://statistics.data.gov.uk/id/local-authority/00ML,Children`s & Education Serv,BVAEDU,Child Srvcs - Fostering,FLF,Third Party Payments,F,Other Establishments,FH,02/07/2014,PAY00676428,CHIC,Children In Care,224.37,Revenue,Petty Cash
Brighton & Hove City Council,http://statistics.data.gov.uk/id/local-authority/00ML,Children`s & Education Serv,BVAEDU,Child Srvcs - Other Fam Supp,FFX,Transfer Payments,G,Other Transfer Payments,GD,02/07/2014,PAY00676428,DISS,Disability Services,43.75,Revenue,Petty Cash
Brighton & Hove City Council,http://statistics.data.gov.uk/id/local-authority/00ML,Children`s & Education Serv,BVAEDU,Ed EY PVI,ENP,Supplies and Services,E,Grants n Subscriptions,EK,02/07/2014,PAY00676429,EYRS,Early Years,5786.00,Revenue,St Lukes Pre-School
Brighton & Hove City Council,http://statistics.data.gov.uk/id/local-authority/00ML,Cultural and Related Serv,BVACUL,Open Spaces,PEN,Supplies and Services,E,Equip't Furniture n Materials,EA,02/07/2014,PAY00676430,CIPK,City Parks,730.70,Revenue,Collier Turf Care Ltd
Brighton & Hove City Council,http://statistics.data.gov.uk/id/local-authority/00ML,Children`s & Education Serv,BVAEDU,Child Srvcs Leaving Care,FAL,Transfer Payments,G,Other Transfer Payments,GD,02/07/2014,PAY00676431,CHIC,Children In Care,224.00,Revenue,The Wolsey Hotel (Worthing) Ltd
Brighton & Hove City Council,http://statistics.data.gov.uk/id/local-authority/00ML,Adult Social Care,BVASOC,ASC Memory Cognition Support,MEM,Supplies and Services,E,Catering,EB,02/07/2014,PAY00676435,RCOP,Resource Centres Older People,728.33,Revenue,Payment to Individual
Brighton & Hove City Council,http://statistics.data.gov.uk/id/local-authority/00ML,Environment & Regulatory Serv,BVAERS,Management Services (DEC),MGT,Third Party Payments,F,Private Contractors,FJ,02/07/2014,PAY00676437,CICL,City Clean,11843.49,Revenue,F M Conway Ltd
Brighton & Hove City Council,http://statistics.data.gov.uk/id/local-authority/00ML,Children`s & Education Serv,BVAEDU,Child Srvcs Direct Pymts,FFD,Third Party Payments,F,Other Establishments,FH,02/07/2014,PAY00676438,DISS,Disability Services,345.00,Revenue,Payment to Individual
Brighton & Hove City Council,http://statistics.data.gov.uk/id/local-authority/00ML,Children`s & Education Serv,BVAEDU,Child Srvcs Direct Pymts,FFD,Third Party Payments,F,Other Establishments,FH,02/07/2014,PAY00676441,DISS,Disability Services,332.42,Revenue,Payment to Individual
Brighton & Hove City Council,http://statistics.data.gov.uk/id/local-authority/00ML,Housing General Fund,BVAHOG,Homelessness,HML,Premises Related,C,Rents Payable,CC,02/07/2014,PAY00676443,TAAS,Temp Accom and Allocations,775.00,Revenue,Payment to Individual
Brighton & Hove City Council,http://statistics.data.gov.uk/id/local-authority/00ML,Non I&E,BVANON,CAP Libs Culture and Hertage,4LH,Plant Machinery n Equipment,PE2,Plant Machinery n Equipment,PE2L5,02/07/2014,PAY00676444,LIBS,Libraries,579.00,Capital,Payment to Individual
Brighton & Hove City Council,http://statistics.data.gov.uk/id/local-authority/00ML,Central Support and Overheads,BVACEN,Support Services (SSC),PPT,Premises Related,C,Repair Maint n Alterations,CA,02/07/2014,PAY00676445,PROP,Property and Design,13879.96,Revenue,The Recycling Partnership
Brighton & Hove City Council,http://statistics.data.gov.uk/id/local-authority/00ML,Housing General Fund,BVAHOG,Homelessness,HML,Supplies and Services,E,Miscellaneous Expenses,EM,02/07/2014,PAY00676448,TAAS,Temp Accom and Allocations,4498.00,Revenue,Bishop`s Move
Brighton & Hove City Council,http://statistics.data.gov.uk/id/local-authority/00ML,Environment & Regulatory Serv,BVAERS,Waste Management,WMT,Third Party Payments,F,Private Contractors,FJ,02/07/2014,PAY00676449,CICL,City Clean,115.61,Revenue,Brighton & Hove Food Partnership
Brighton & Hove City Council,http://statistics.data.gov.uk/id/local-authority/00ML,Public Health,BVAPHE,Public Health,PHE,Third Party Payments,F,Voluntary Associations,FG,02/07/2014,PAY00676449,PHCM,PH Commissioning,131722.50,Revenue,Brighton & Hove Food Partnership
Brighton & Hove City Council,http://statistics.data.gov.uk/id/local-authority/00ML,Cultural and Related Serv,BVACUL,Open Spaces,PEN,Third Party Payments,F,Private Contractors,FJ,02/07/2014,PAY00676450,CIPK,City Parks,243.00,Revenue,Triple A Event Security
Brighton & Hove City Council,http://statistics.data.gov.uk/id/local-authority/00ML,Children`s & Education Serv,BVAEDU,Ed EY PVI,ENP,Supplies and Services,E,Grants n Subscriptions,EK,02/07/2014,PAY00676451,EYRS,Early Years,414.00,Revenue,Payment to Individual
Brighton & Hove City Council,http://statistics.data.gov.uk/id/local-authority/00ML,Children`s & Education Serv,BVAEDU,Child Srvcs Direct Pymts,FFD,Third Party Payments,F,Other Establishments,FH,02/07/2014,PAY00676452,DISS,Disability Services,250.70,Revenue,Payment to Individual
Brighton & Hove City Council,http://statistics.data.gov.uk/id/local-authority/00ML,Housing General Fund,BVAHOG,Homelessness,HML,Premises Related,C,Rents Payable,CC,02/07/2014,PAY00676453,TAAS,Temp Accom and Allocations,900.00,Revenue,Payment to Individual
Brighton & Hove City Council,http://statistics.data.gov.uk/id/local-authority/00ML,Adult Social Care,BVASOC,ASC Memory Cognition Support,MEM,Transport Related,D,Direct Transport Costs,DA,02/07/2014,PAY00676454,RCOP,Resource Centres Older People,276.13,Revenue,Lifestyle Ford Ltd
Brighton & Hove City Council,http://statistics.data.gov.uk/id/local-authority/00ML,Cultural and Related Serv,BVACUL,Management Services (DEC),MGT,Transport Related,D,Direct Transport Costs,DA,02/07/2014,PAY00676454,CIPK,City Parks,98.97,Revenue,Lifestyle Ford Ltd
Brighton & Hove City Council,http://statistics.data.gov.uk/id/local-authority/00ML,Environment & Regulatory Serv,BVAERS,Management Services (DEC),MGT,Transport Related,D,Direct Transport Costs,DA,02/07/2014,PAY00676454,CICL,City Clean,74.44,Revenue,Lifestyle Ford Ltd
Brighton & Hove City Council,http://statistics.data.gov.uk/id/local-authority/00ML,Housing General Fund,BVAHOG,Homelessness,HML,Premises Related,C,Rents Payable,CC,02/07/2014,PAY00676457,TAAS,Temp Accom and Allocations,2020.00,Revenue,Payment to Individual
Brighton & Hove City Council,http://statistics.data.gov.uk/id/local-authority/00ML,Children`s & Education Serv,BVAEDU,Child Srvcs Leaving Care,FAL,Transfer Payments,G,Other Transfer Payments,GD,02/07/2014,PAY00676458,CHIC,Children In Care,275.00,Revenue,Child First Ltd
Brighton & Hove City Council,http://statistics.data.gov.uk/id/local-authority/00ML,Adult Social Care,BVASOC,ASC Mental Health Support,MHP,Third Party Payments,F,Other Establishments,FH,02/07/2014,PAY00676463,MENH,Mental Health Support,1680.00,Revenue,Warwick House Residential Home
Brighton & Hove City Council,http://statistics.data.gov.uk/id/local-authority/00ML,Children`s & Education Serv,BVAEDU,Ed EY PVI,ENP,Supplies and Services,E,Grants n Subscriptions,EK,02/07/2014,PAY00676464,EYRS,Early Years,770.00,Revenue,Payment to Individual
Brighton & Hove City Council,http://statistics.data.gov.uk/id/local-authority/00ML,Adult Social Care,BVASOC,ASC Learning Disabilities,ALD,Customer n Client Receipts,M,Fees n Charges,MB,02/07/2014,PAY00676465,LDIS,Learning Disabilities,-108.00,Revenue,Payment to Individual
Brighton & Hove City Council,http://statistics.data.gov.uk/id/local-authority/00ML,Adult Social Care,BVASOC,ASC Learning Disabilities,ALD,Third Party Payments,F,Other Establishments,FH,02/07/2014,PAY00676465,LDIS,Learning Disabilities,1692.24,Revenue,Payment to Individual
Brighton & Hove City Council,http://statistics.data.gov.uk/id/local-authority/00ML,Children`s & Education Serv,BVAEDU,Ed EY PVI,ENP,Supplies and Services,E,Grants n Subscriptions,EK,02/07/2014,PAY00676466,EYRS,Early Years,6866.00,Revenue,Coral Pre School
Brighton & Hove City Council,http://statistics.data.gov.uk/id/local-authority/00ML,Housing General Fund,BVAHOG,Homelessness,HML,Premises Related,C,Rents Payable,CC,02/07/2014,PAY00676467,TAAS,Temp Accom and Allocations,2600.00,Revenue,Pepita Investments Ltd
Brighton & Hove City Council,http://statistics.data.gov.uk/id/local-authority/00ML,Adult Social Care,BVASOC,S Svcs - Learning Disability,LDY,Indirect Employees,B,Training,BM,02/07/2014,PAY00676468,ORGD,Organisational Development,19.00,Revenue,Payment to Individual
Brighton & Hove City Council,http://statistics.data.gov.uk/id/local-authority/00ML,Adult Social Care,BVASOC,S Svcs Other Adult Services,ADT,Indirect Employees,B,Training,BM,02/07/2014,PAY00676468,ORGD,Organisational Development,513.00,Revenue,Payment to Individual
Brighton & Hove City Council,http://statistics.data.gov.uk/id/local-authority/00ML,Central Support and Overheads,BVACEN,Support Services (SSC),PPT,Indirect Employees,B,Training,BM,02/07/2014,PAY00676468,ORGD,Organisational Development,18.00,Revenue,Payment to Individual
Brighton & Hove City Council,http://statistics.data.gov.uk/id/local-authority/00ML,Children`s & Education Serv,BVAEDU,Ed EY PVI,ENP,Supplies and Services,E,Grants n Subscriptions,EK,02/07/2014,PAY00676470,EYRS,Early Years,1519.00,Revenue,Payment to Individual
Brighton & Hove City Council,http://statistics.data.gov.uk/id/local-authority/00ML,Non-BHC Organisations,BVANON,Trusts,TRT,Supplies and Services,E,Miscellaneous Expenses,EM,02/07/2014,PAY00676473,NBHC,Non Council,419.29,Revenue,Homelands
Brighton & Hove City Council,http://statistics.data.gov.uk/id/local-authority/00ML,Adult Social Care,BVASOC,ASC Learning Disabilities,ALD,Customer n Client Receipts,M,Fees n Charges,MB,02/07/2014,PAY00676474,LDIS,Learning Disabilities,-268.00,Revenue,Payment to Individual
Brighton & Hove City Council,http://statistics.data.gov.uk/id/local-authority/00ML,Adult Social Care,BVASOC,ASC Learning Disabilities,ALD,Third Party Payments,F,Other Establishments,FH,02/07/2014,PAY00676474,LDIS,Learning Disabilities,2044.88,Revenue,Payment to Individual
Brighton & Hove City Council,http://statistics.data.gov.uk/id/local-authority/00ML,Children`s & Education Serv,BVAEDU,Child Srvcs Direct Pymts,FFD,Other Grants Reimbs n Conts,L,Contributions,LC,02/07/2014,PAY00676475,DISS,Disability Services,922.20,Revenue,Payment to Individual
Brighton & Hove City Council,http://statistics.data.gov.uk/id/local-authority/00ML,Housing General Fund,BVAHOG,Homelessness,HML,Premises Related,C,Rents Payable,CC,02/07/2014,PAY00676477,TAAS,Temp Accom and Allocations,875.00,Revenue,Payment to Individual
Brighton & Hove City Council,http://statistics.data.gov.uk/id/local-authority/00ML,Highways and Transportation,BVAHRT,Parking Services,PRK,Premises Related,C,Repair Maint n Alterations,CA,02/07/2014,PAY00676478,PARK,Parking,4911.37,Revenue,Wifi Spark Limited
Brighton & Hove City Council,http://statistics.data.gov.uk/id/local-authority/00ML,Housing General Fund,BVAHOG,Homelessness,HML,Premises Related,C,Rents Payable,CC,02/07/2014,PAY00676479,TAAS,Temp Accom and Allocations,1000.00,Revenue,Payment to Individual
Brighton & Hove City Council,http://statistics.data.gov.uk/id/local-authority/00ML,Adult Social Care,BVASOC,ASC Learning Disabilities,ALD,Third Party Payments,F,Other Establishments,FH,02/07/2014,PAY00676481,LDIS,Learning Disabilities,400.00,Revenue,Incolour Properties Limited
Brighton & Hove City Council,http://statistics.data.gov.uk/id/local-authority/00ML,Adult Social Care,BVASOC,ASC Physical Support,PHY,Third Party Payments,F,Other Establishments,FH,02/07/2014,PAY00676483,PHYS,Physical Support,3720.00,Revenue,Abi House
Brighton & Hove City Council,http://statistics.data.gov.uk/id/local-authority/00ML,Housing General Fund,BVAHOG,Homelessness,HML,Premises Related,C,Rents Payable,CC,02/07/2014,PAY00676485,TAAS,Temp Accom and Allocations,1100.00,Revenue,Payment to Individual
Brighton & Hove City Council,http://statistics.data.gov.uk/id/local-authority/00ML,Housing General Fund,BVAHOG,Homelessness,HML,Premises Related,C,Rents Payable,CC,02/07/2014,PAY00676487,TAAS,Temp Accom and Allocations,815.00,Revenue,Payment to Individual
Brighton & Hove City Council,http://statistics.data.gov.uk/id/local-authority/00ML,Adult Social Care,BVASOC,ASC Learning Disabilities,ALD,Customer n Client Receipts,M,Fees n Charges,MB,02/07/2014,PAY00676488,LDIS,Learning Disabilities,-608.00,Revenue,Arundel Domiciliary Care Services
Brighton & Hove City Council,http://statistics.data.gov.uk/id/local-authority/00ML,Adult Social Care,BVASOC,ASC Learning Disabilities,ALD,Third Party Payments,F,Other Establishments,FH,02/07/2014,PAY00676488,LDIS,Learning Disabilities,71861.52,Revenue,Arundel Domiciliary Care Services
Brighton & Hove City Council,http://statistics.data.gov.uk/id/local-authority/00ML,Children`s & Education Serv,BVAEDU,Ed EY Central,EAE,Supplies and Services,E,Catering,EB,02/07/2014,PAY00676489,EYRS,Early Years,308.79,Revenue,Petty Cash
Brighton & Hove City Council,http://statistics.data.gov.uk/id/local-authority/00ML,Children`s & Education Serv,BVAEDU,Ed EY Central,EAE,Supplies and Services,E,Equip't Furniture n Materials,EA,02/07/2014,PAY00676489,EYRS,Early Years,128.23,Revenue,Petty Cash
Brighton & Hove City Council,http://statistics.data.gov.uk/id/local-authority/00ML,Children`s & Education Serv,BVAEDU,Ed EY Central,EAE,Transport Related,D,Other Transport Costs,DG,02/07/2014,PAY00676489,EYRS,Early Years,2.00,Revenue,Petty Cash
Brighton & Hove City Council,http://statistics.data.gov.uk/id/local-authority/00ML,Children`s & Education Serv,BVAEDU,Ed EY Central,EAE,Transport Related,D,Public Transport,DD,02/07/2014,PAY00676489,EYRS,Early Years,20.10,Revenue,Petty Cash
Brighton & Hove City Council,http://statistics.data.gov.uk/id/local-authority/00ML,Housing General Fund,BVAHOG,Homelessness,HML,Premises Related,C,Rents Payable,CC,02/07/2014,PAY00676493,TAAS,Temp Accom and Allocations,880.00,Revenue,Payment to Individual
Brighton & Hove City Council,http://statistics.data.gov.uk/id/local-authority/00ML,Housing General Fund,BVAHOG,Homelessness,HML,Premises Related,C,Rents Payable,CC,02/07/2014,PAY00676494,TAAS,Temp Accom and Allocations,850.00,Revenue,Payment to Individual
Brighton & Hove City Council,http://statistics.data.gov.uk/id/local-authority/00ML,Adult Social Care,BVASOC,ASC Learning Disabilities,ALD,Premises Related,C,Cleaning n Domestic Supps,CH,02/07/2014,PAY00676495,LDAS,LD Accommodation Services,47.77,Revenue,SRCL Ltd
Brighton & Hove City Council,http://statistics.data.gov.uk/id/local-authority/00ML,Adult Social Care,BVASOC,ASC Memory Cognition Support,MEM,Premises Related,C,Repair Maint n Alterations,CA,02/07/2014,PAY00676495,RCOP,Resource Centres Older People,218.25,Revenue,SRCL Ltd
Brighton & Hove City Council,http://statistics.data.gov.uk/id/local-authority/00ML,Cultural and Related Serv,BVACUL,Highways and Roads - Mntnce,HRM,Premises Related,C,Repair Maint n Alterations,CA,02/07/2014,PAY00676498,PROP,Property and Design,320.00,Revenue,Parissi and Hall Ltd
Brighton & Hove City Council,http://statistics.data.gov.uk/id/local-authority/00ML,Environment & Regulatory Serv,BVAERS,Street Cleansing,CLE,Transport Related,D,Direct Transport Costs,DA,02/07/2014,PAY00676500,CICL,City Clean,554.50,Revenue,Tennant UK Cleaning Solutions Ltd
Brighton & Hove City Council,http://statistics.data.gov.uk/id/local-authority/00ML,Children`s & Education Serv,BVAEDU,Ed EY PVI,ENP,Supplies and Services,E,Grants n Subscriptions,EK,02/07/2014,PAY00676501,EYRS,Early Years,9617.00,Revenue,Brighton Steiner School Ltd
Brighton & Hove City Council,http://statistics.data.gov.uk/id/local-authority/00ML,Environment & Regulatory Serv,BVAERS,Environmental Health,EVH,Supplies and Services,E,Equip't Furniture n Materials,EA,02/07/2014,PAY00676502,PUPO,Public Protection,249.28,Revenue,Barrettine Environmental Health
Brighton & Hove City Council,http://statistics.data.gov.uk/id/local-authority/00ML,Housing General Fund,BVAHOG,Homelessness,HML,Premises Related,C,Rents Payable,CC,02/07/2014,PAY00676503,TAAS,Temp Accom and Allocations,850.00,Revenue,Payment to Individual
Brighton & Hove City Council,http://statistics.data.gov.uk/id/local-authority/00ML,Housing General Fund,BVAHOG,Homelessness,HML,Premises Related,C,Rents Payable,CC,02/07/2014,PAY00676505,TAAS,Temp Accom and Allocations,1025.00,Revenue,Payment to Individual
Brighton & Hove City Council,http://statistics.data.gov.uk/id/local-authority/00ML,Children`s & Education Serv,BVAEDU,Ed EY PVI,ENP,Supplies and Services,E,Grants n Subscriptions,EK,02/07/2014,PAY00676507,EYRS,Early Years,17169.00,Revenue,Footsteps Day Nursery (Hove)
Brighton & Hove City Council,http://statistics.data.gov.uk/id/local-authority/00ML,Adult Social Care,BVASOC,ASC Memory Cognition Support,MEM,Customer n Client Receipts,M,Fees n Charges,MB,02/07/2014,PAY00676509,COGN,Memory Cognition Support,-788.00,Revenue,Care Outlook
Brighton & Hove City Council,http://statistics.data.gov.uk/id/local-authority/00ML,Adult Social Care,BVASOC,ASC Memory Cognition Support,MEM,Third Party Payments,F,Other Establishments,FH,02/07/2014,PAY00676509,COGN,Memory Cognition Support,5257.31,Revenue,Care Outlook
Brighton & Hove City Council,http://statistics.data.gov.uk/id/local-authority/00ML,Adult Social Care,BVASOC,ASC Mental Health Support,MHP,Third Party Payments,F,Other Establishments,FH,02/07/2014,PAY00676509,MENH,Mental Health Support,1067.47,Revenue,Care Outlook
Brighton & Hove City Council,http://statistics.data.gov.uk/id/local-authority/00ML,Adult Social Care,BVASOC,ASC Physical Support,PHY,Customer n Client Receipts,M,Fees n Charges,MB,02/07/2014,PAY00676509,PHYS,Physical Support,-6380.29,Revenue,Care Outlook
Brighton & Hove City Council,http://statistics.data.gov.uk/id/local-authority/00ML,Adult Social Care,BVASOC,ASC Physical Support,PHY,Third Party Payments,F,Other Establishments,FH,02/07/2014,PAY00676509,PHYS,Physical Support,40439.18,Revenue,Care Outlook
Brighton & Hove City Council,http://statistics.data.gov.uk/id/local-authority/00ML,Adult Social Care,BVASOC,ASC Sensory Support,AHV,Customer n Client Receipts,M,Fees n Charges,MB,02/07/2014,PAY00676509,SORY,Sensory Support,-488.00,Revenue,Care Outlook
Brighton & Hove City Council,http://statistics.data.gov.uk/id/local-authority/00ML,Adult Social Care,BVASOC,ASC Sensory Support,AHV,Third Party Payments,F,Other Establishments,FH,02/07/2014,PAY00676509,SORY,Sensory Support,1432.45,Revenue,Care Outlook
Brighton & Hove City Council,http://statistics.data.gov.uk/id/local-authority/00ML,Children`s & Education Serv,BVAEDU,Ed EY PVI,ENP,Supplies and Services,E,Grants n Subscriptions,EK,02/07/2014,PAY00676511,EYRS,Early Years,8022.00,Revenue,Angmering Day Nurseries Ltd
Brighton & Hove City Council,http://statistics.data.gov.uk/id/local-authority/00ML,Children`s & Education Serv,BVAEDU,Ed EY Central,EAE,Supplies and Services,E,Miscellaneous Expenses,EM,02/07/2014,PAY00676513,EYRS,Early Years,1250.00,Revenue,Payment to Individual
Brighton & Hove City Council,http://statistics.data.gov.uk/id/local-authority/00ML,Housing General Fund,BVAHOG,Homelessness,HML,Premises Related,C,Rents Payable,CC,02/07/2014,PAY00676517,TAAS,Temp Accom and Allocations,1100.00,Revenue,Payment to Individual
Brighton & Hove City Council,http://statistics.data.gov.uk/id/local-authority/00ML,Housing General Fund,BVAHOG,Homelessness,HML,Premises Related,C,Rents Payable,CC,02/07/2014,PAY00676519,TAAS,Temp Accom and Allocations,850.00,Revenue,Payment to Individual
Brighton & Hove City Council,http://statistics.data.gov.uk/id/local-authority/00ML,Housing General Fund,BVAHOG,Homelessness,HML,Premises Related,C,Rents Payable,CC,02/07/2014,PAY00676520,TAAS,Temp Accom and Allocations,800.00,Revenue,Payment to Individual
Brighton & Hove City Council,http://statistics.data.gov.uk/id/local-authority/00ML,Central Support and Overheads,BVACEN,Support Services (SSC),PPT,Supplies and Services,E,Communications n Computing,EH,02/07/2014,PAY00676521,AUDB,Audit and Business Risk,1350.00,Revenue,Magique Galileo Software Ltd
Brighton & Hove City Council,http://statistics.data.gov.uk/id/local-authority/00ML,Adult Social Care,BVASOC,ASC Learning Disabilities,ALD,Customer n Client Receipts,M,Fees n Charges,MB,02/07/2014,PAY00676522,LDIS,Learning Disabilities,-460.00,Revenue,Payment to Individual
Brighton & Hove City Council,http://statistics.data.gov.uk/id/local-authority/00ML,Adult Social Care,BVASOC,ASC Learning Disabilities,ALD,Third Party Payments,F,Other Establishments,FH,02/07/2014,PAY00676522,LDIS,Learning Disabilities,2664.00,Revenue,Payment to Individual
Brighton & Hove City Council,http://statistics.data.gov.uk/id/local-authority/00ML,Housing General Fund,BVAHOG,Homelessness,HML,Premises Related,C,Rents Payable,CC,02/07/2014,PAY00676523,TAAS,Temp Accom and Allocations,975.00,Revenue,Payment to Individual
Brighton & Hove City Council,http://statistics.data.gov.uk/id/local-authority/00ML,Public Health,BVAPHE,Public Health,PHE,Supplies and Services,E,Miscellaneous Expenses,EM,02/07/2014,PAY00676524,PHCM,PH Commissioning,3676.66,Revenue,Payment to Individual
Brighton & Hove City Council,http://statistics.data.gov.uk/id/local-authority/00ML,Children`s & Education Serv,BVAEDU,Ed EY PVI,ENP,Supplies and Services,E,Grants n Subscriptions,EK,02/07/2014,PAY00676526,EYRS,Early Years,4695.00,Revenue,Little People by the Sea
Brighton & Hove City Council,http://statistics.data.gov.uk/id/local-authority/00ML,Housing General Fund,BVAHOG,Homelessness,HML,Premises Related,C,Rents Payable,CC,02/07/2014,PAY00676528,TAAS,Temp Accom and Allocations,950.00,Revenue,Payment to Individual
Brighton & Hove City Council,http://statistics.data.gov.uk/id/local-authority/00ML,Children`s & Education Serv,BVAEDU,Ed EY PVI,ENP,Supplies and Services,E,Grants n Subscriptions,EK,02/07/2014,PAY00676530,EYRS,Early Years,2276.00,Revenue,La Casita
Brighton & Hove City Council,http://statistics.data.gov.uk/id/local-authority/00ML,Children`s & Education Serv,BVAEDU,Ed EY PVI,ENP,Supplies and Services,E,Grants n Subscriptions,EK,02/07/2014,PAY00676531,EYRS,Early Years,1927.00,Revenue,Hungry Minds Childcare Ltd
Brighton & Hove City Council,http://statistics.data.gov.uk/id/local-authority/00ML,Children`s & Education Serv,BVAEDU,Ed EY PVI,ENP,Supplies and Services,E,Grants n Subscriptions,EK,02/07/2014,PAY00676532,EYRS,Early Years,14281.00,Revenue,Young Friends Nursery Ltd
Brighton & Hove City Council,http://statistics.data.gov.uk/id/local-authority/00ML,Children`s & Education Serv,BVAEDU,Ed EY PVI,ENP,Supplies and Services,E,Grants n Subscriptions,EK,02/07/2014,PAY00676533,EYRS,Early Years,8990.00,Revenue,Safe and Sound Daycare Ltd
Brighton & Hove City Council,http://statistics.data.gov.uk/id/local-authority/00ML,Cultural and Related Serv,BVACUL,Culture and Heritage,CHG,Supplies and Services,E,Goods for Resale,EG,02/07/2014,PAY00676534,RPMU,Royal Pavilion and Museums,216.00,Revenue,Joe Davies (Manchester) Ltd.
Brighton & Hove City Council,http://statistics.data.gov.uk/id/local-authority/00ML,Housing General Fund,BVAHOG,Homelessness,HML,Premises Related,C,Rents Payable,CC,02/07/2014,PAY00676535,TAAS,Temp Accom and Allocations,1434.00,Revenue,Payment to Individual
Brighton & Hove City Council,http://statistics.data.gov.uk/id/local-authority/00ML,Library Services,BVACUL,Library Service,LBR,Supplies and Services,E,Equip't Furniture n Materials,EA,02/07/2014,PAY00676536,LIBS,Libraries,328.00,Revenue,Office Furniture Online
Brighton & Hove City Council,http://statistics.data.gov.uk/id/local-authority/00ML,Non I&E,BVANON,CAP Libs Culture and Hertage,4LH,Plant Machinery n Equipment,PE2,Plant Machinery n Equipment,PE2L5,02/07/2014,PAY00676536,LIBS,Libraries,15.00,Capital,Office Furniture Online
Brighton & Hove City Council,http://statistics.data.gov.uk/id/local-authority/00ML,Housing General Fund,BVAHOG,Homelessness,HML,Premises Related,C,Rents Payable,CC,02/07/2014,PAY00676538,TAAS,Temp Accom and Allocations,880.00,Revenue,Payment to Individual
Brighton & Hove City Council,http://statistics.data.gov.uk/id/local-authority/00ML,Adult Social Care,BVASOC,ASC Learning Disabilities,ALD,Third Party Payments,F,Other Establishments,FH,02/07/2014,PAY00676539,LDIS,Learning Disabilities,19103.00,Revenue,Frances Taylor Foundation
Brighton & Hove City Council,http://statistics.data.gov.uk/id/local-authority/00ML,Adult Social Care,BVASOC,Social Care Activities,ACM,Supplies and Services,E,Equip't Furniture n Materials,EA,02/07/2014,PAY00676540,ASIT,Assessment and SIT,324.27,Revenue,Optelec Limited
Brighton & Hove City Council,http://statistics.data.gov.uk/id/local-authority/00ML,Housing General Fund,BVAHOG,Homelessness,HML,Premises Related,C,Rents Payable,CC,02/07/2014,PAY00676541,TAAS,Temp Accom and Allocations,625.00,Revenue,Payment to Individual
Brighton & Hove City Council,http://statistics.data.gov.uk/id/local-authority/00ML,Housing General Fund,BVAHOG,Homelessness,HML,Premises Related,C,Rents Payable,CC,02/07/2014,PAY00676543,TAAS,Temp Accom and Allocations,1300.00,Revenue,Payment to Individual
Brighton & Hove City Council,http://statistics.data.gov.uk/id/local-authority/00ML,Children`s & Education Serv,BVAEDU,Ed EY PVI,ENP,Supplies and Services,E,Grants n Subscriptions,EK,02/07/2014,PAY00676544,EYRS,Early Years,6803.00,Revenue,Pepper-Pot Pre-School and After School Club
Brighton & Hove City Council,http://statistics.data.gov.uk/id/local-authority/00ML,Central Support and Overheads,BVACEN,Support Services (SSC),PPT,Premises Related,C,Repair Maint n Alterations,CA,02/07/2014,PAY00676546,PROP,Property and Design,22525.07,Revenue,Hertel Solutions Ltd
Brighton & Hove City Council,http://statistics.data.gov.uk/id/local-authority/00ML,Non I&E,BVANON,CAP Other Env Services,4EV,New Construction n Conversion,PB,New Construction n Conversion,PBL5,02/07/2014,PAY00676546,PROP,Property and Design,15786.00,Capital,Hertel Solutions Ltd
Brighton & Hove City Council,http://statistics.data.gov.uk/id/local-authority/00ML,Adult Social Care,BVASOC,ASC Learning Disabilities,ALD,Customer n Client Receipts,M,Fees n Charges,MB,02/07/2014,PAY00676548,LDIS,Learning Disabilities,-192.00,Revenue,Small Opportunities Ltd
Brighton & Hove City Council,http://statistics.data.gov.uk/id/local-authority/00ML,Adult Social Care,BVASOC,ASC Learning Disabilities,ALD,Third Party Payments,F,Other Establishments,FH,02/07/2014,PAY00676548,LDIS,Learning Disabilities,5260.00,Revenue,Small Opportunities Ltd
Brighton & Hove City Council,http://statistics.data.gov.uk/id/local-authority/00ML,Children`s & Education Serv,BVAEDU,Ed EY PVI,ENP,Supplies and Services,E,Grants n Subscriptions,EK,02/07/2014,PAY00676549,EYRS,Early Years,1805.00,Revenue,Little Earthworms
Brighton & Hove City Council,http://statistics.data.gov.uk/id/local-authority/00ML,Children`s & Education Serv,BVAEDU,Ed EY Central,EAE,Supplies and Services,E,Catering,EB,02/07/2014,PAY00676550,EYRS,Early Years,1009.00,Revenue,Payment to Individual
Brighton & Hove City Council,http://statistics.data.gov.uk/id/local-authority/00ML,Adult Social Care,BVASOC,ASC Learning Disabilities,ALD,Transport Related,D,Contract Hire n Operating Leas,DB,02/07/2014,PAY00676551,DAYS,Day Services,1449.99,Revenue,London Hire Ltd
Brighton & Hove City Council,http://statistics.data.gov.uk/id/local-authority/00ML,Adult Social Care,BVASOC,ASC Memory Cognition Support,MEM,Transport Related,D,Contract Hire n Operating Leas,DB,02/07/2014,PAY00676551,RCOP,Resource Centres Older People,420.94,Revenue,London Hire Ltd
Brighton & Hove City Council,http://statistics.data.gov.uk/id/local-authority/00ML,Adult Social Care,BVASOC,ASC Physical Support,PHY,Transport Related,D,Contract Hire n Operating Leas,DB,02/07/2014,PAY00676551,DAYS,Day Services,841.86,Revenue,London Hire Ltd
Brighton & Hove City Council,http://statistics.data.gov.uk/id/local-authority/00ML,Adult Social Care,BVASOC,Commission & Service Delivery,CMM,Transport Related,D,Contract Hire n Operating Leas,DB,02/07/2014,PAY00676551,MGMT,Management,187.21,Revenue,London Hire Ltd
Brighton & Hove City Council,http://statistics.data.gov.uk/id/local-authority/00ML,Housing General Fund,BVAHOG,Homelessness,HML,Premises Related,C,Rents Payable,CC,02/07/2014,PAY00676554,TAAS,Temp Accom and Allocations,950.00,Revenue,Payment to Individual
Brighton & Hove City Council,http://statistics.data.gov.uk/id/local-authority/00ML,Children`s & Education Serv,BVAEDU,Child Srvcs Direct Pymts,FFD,Third Party Payments,F,Other Establishments,FH,02/07/2014,PAY00676555,DISS,Disability Services,258.28,Revenue,Payment to Individual
Brighton & Hove City Council,http://statistics.data.gov.uk/id/local-authority/00ML,Children`s & Education Serv,BVAEDU,Child Srvcs Direct Pymts,FFD,Third Party Payments,F,Other Establishments,FH,02/07/2014,PAY00676556,DISS,Disability Services,330.00,Revenue,Payment to Individual
Brighton & Hove City Council,http://statistics.data.gov.uk/id/local-authority/00ML,Housing General Fund,BVAHOG,Homelessness,HML,Premises Related,C,Rents Payable,CC,02/07/2014,PAY00676557,TAAS,Temp Accom and Allocations,830.00,Revenue,Payment to Individual
Brighton & Hove City Council,http://statistics.data.gov.uk/id/local-authority/00ML,Housing Revenue Account,BVAHOU,Hsing Management - HRA,HGM,Premises Related,C,Repair Maint n Alterations,CA,02/07/2014,PAY00676558,HPAI,Property & Investment,7210.00,Revenue,Millwood Servicing Ltd
Brighton & Hove City Council,http://statistics.data.gov.uk/id/local-authority/00ML,Housing General Fund,BVAHOG,Homelessness,HML,Premises Related,C,Rents Payable,CC,02/07/2014,PAY00676559,TAAS,Temp Accom and Allocations,850.00,Revenue,Payment to Individual
Brighton & Hove City Council,http://statistics.data.gov.uk/id/local-authority/00ML,Environment & Regulatory Serv,BVAERS,Waste Management,WMT,Third Party Payments,F,Private Contractors,FJ,02/07/2014,PAY00676561,CICL,City Clean,323.90,Revenue,Great Green Systems Limited
Brighton & Hove City Council,http://statistics.data.gov.uk/id/local-authority/00ML,Cultural and Related Serv,BVACUL,Culture and Heritage,CHG,Supplies and Services,E,Services,EF,02/07/2014,PAY00676563,RPMU,Royal Pavilion and Museums,2126.75,Revenue,DF Sales Ltd
Brighton & Hove City Council,http://statistics.data.gov.uk/id/local-authority/00ML,Non I&E,BVANON,CAP Libs Culture and Hertage,4LH,New Construction n Conversion,PB,New Construction n Conversion,PBL5,02/07/2014,PAY00676564,PROP,Property and Design,960.00,Capital,Colin Toms & Partners LLP
Brighton & Hove City Council,http://statistics.data.gov.uk/id/local-authority/00ML,Cultural and Related Serv,BVACUL,Culture and Heritage,CHG,Supplies and Services,E,Miscellaneous Expenses,EM,02/07/2014,PAY00676565,ODEV,Outdoor Events,456.00,Revenue,WC Hire Ltd
Brighton & Hove City Council,http://statistics.data.gov.uk/id/local-authority/00ML,Cultural and Related Serv,BVACUL,Open Spaces,PEN,Third Party Payments,F,Private Contractors,FJ,02/07/2014,PAY00676565,CIPK,City Parks,475.00,Revenue,WC Hire Ltd
Brighton & Hove City Council,http://statistics.data.gov.uk/id/local-authority/00ML,Highways and Transportation,BVAHRT,Traffic Mgmnt and Road Safety,TMR,Premises Related,C,Repair Maint n Alterations,CA,02/07/2014,PAY00676567,HIGH,Highways,560.44,Revenue,Smye-Rumsby Ltd
Brighton & Hove City Council,http://statistics.data.gov.uk/id/local-authority/00ML,Children`s & Education Serv,BVAEDU,Ed EY PVI,ENP,Supplies and Services,E,Grants n Subscriptions,EK,02/07/2014,PAY00676570,EYRS,Early Years,8054.00,Revenue,Early Explorers Limited
Brighton & Hove City Council,http://statistics.data.gov.uk/id/local-authority/00ML,Children`s & Education Serv,BVAEDU,Ed EY PVI,ENP,Supplies and Services,E,Grants n Subscriptions,EK,02/07/2014,PAY00676571,EYRS,Early Years,12920.00,Revenue,Supersaurus Nursery
Brighton & Hove City Council,http://statistics.data.gov.uk/id/local-authority/00ML,Children`s & Education Serv,BVAEDU,Ed EY PVI,ENP,Supplies and Services,E,Grants n Subscriptions,EK,02/07/2014,PAY00676573,EYRS,Early Years,1267.00,Revenue,Just Like Home Childcare
Brighton & Hove City Council,http://statistics.data.gov.uk/id/local-authority/00ML,Children`s & Education Serv,BVAEDU,Ed EY Central,EAE,Supplies and Services,E,Communications n Computing,EH,02/07/2014,PAY00676576,EYRS,Early Years,400.00,Revenue,Connect Technology Group
Brighton & Hove City Council,http://statistics.data.gov.uk/id/local-authority/00ML,Adult Social Care,BVASOC,ASC Mental Health Support,MHP,Third Party Payments,F,Other Establishments,FH,02/07/2014,PAY00676580,MENH,Mental Health Support,2020.00,Revenue,The Chase Care Home Ltd
Brighton & Hove City Council,http://statistics.data.gov.uk/id/local-authority/00ML,Children`s & Education Serv,BVAEDU,Child Srvcs Direct Pymts,FFD,Third Party Payments,F,Other Establishments,FH,02/07/2014,PAY00676583,DISS,Disability Services,302.15,Revenue,Payment to Individual
Brighton & Hove City Council,http://statistics.data.gov.uk/id/local-authority/00ML,Children`s & Education Serv,BVAEDU,Ed EY PVI,ENP,Supplies and Services,E,Grants n Subscriptions,EK,02/07/2014,PAY00676584,EYRS,Early Years,20187.00,Revenue,Growing Up Green Day Nursery
Brighton & Hove City Council,http://statistics.data.gov.uk/id/local-authority/00ML,Children`s & Education Serv,BVAEDU,Ed EY PVI,ENP,Supplies and Services,E,Grants n Subscriptions,EK,02/07/2014,PAY00676585,EYRS,Early Years,2718.00,Revenue,Little Lambs Kindergarten
Brighton & Hove City Council,http://statistics.data.gov.uk/id/local-authority/00ML,Cultural and Related Serv,BVACUL,Culture and Heritage,CHG,Supplies and Services,E,Equip't Furniture n Materials,EA,02/07/2014,PAY00676586,RPMU,Royal Pavilion and Museums,838.21,Revenue,Cirrus Laser Ltd
Brighton & Hove City Council,http://statistics.data.gov.uk/id/local-authority/00ML,Environment & Regulatory Serv,BVAERS,Street Cleansing,CLE,Supplies and Services,E,Equip't Furniture n Materials,EA,02/07/2014,PAY00676587,CICL,City Clean,590.60,Revenue,Safety Wear & Signs Ltd
Brighton & Hove City Council,http://statistics.data.gov.uk/id/local-authority/00ML,Adult Social Care,BVASOC,ASC Learning Disabilities,ALD,Customer n Client Receipts,M,Fees n Charges,MB,02/07/2014,PAY00676588,LDIS,Learning Disabilities,-304.00,Revenue,Payment to Individual
Brighton & Hove City Council,http://statistics.data.gov.uk/id/local-authority/00ML,Adult Social Care,BVASOC,ASC Learning Disabilities,ALD,Third Party Payments,F,Other Establishments,FH,02/07/2014,PAY00676588,LDIS,Learning Disabilities,2253.32,Revenue,Payment to Individual
Brighton & Hove City Council,http://statistics.data.gov.uk/id/local-authority/00ML,Adult Social Care,BVASOC,ASC Physical Support,PHY,Third Party Payments,F,Other Establishments,FH,02/07/2014,PAY00676590,PHYS,Physical Support,468.30,Revenue,Payment to Individual
Brighton & Hove City Council,http://statistics.data.gov.uk/id/local-authority/00ML,Adult Social Care,BVASOC,ASC Memory Cognition Support,MEM,Customer n Client Receipts,M,Fees n Charges,MB,02/07/2014,PAY00676592,COGN,Memory Cognition Support,-6883.20,Revenue,Salvation Army Social Services Finance
Brighton & Hove City Council,http://statistics.data.gov.uk/id/local-authority/00ML,Adult Social Care,BVASOC,ASC Memory Cognition Support,MEM,Third Party Payments,F,Other Establishments,FH,02/07/2014,PAY00676592,COGN,Memory Cognition Support,9682.00,Revenue,Salvation Army Social Services Finance
Brighton & Hove City Council,http://statistics.data.gov.uk/id/local-authority/00ML,Children`s & Education Serv,BVAEDU,Child Srvcs Direct Pymts,FFD,Third Party Payments,F,Other Establishments,FH,02/07/2014,PAY00676595,DISS,Disability Services,270.25,Revenue,Payment to Individual
Brighton & Hove City Council,http://statistics.data.gov.uk/id/local-authority/00ML,Children`s & Education Serv,BVAEDU,Child Srvcs Direct Pymts,FFD,Third Party Payments,F,Other Establishments,FH,02/07/2014,PAY00676596,DISS,Disability Services,272.80,Revenue,Payment to Individual
Brighton & Hove City Council,http://statistics.data.gov.uk/id/local-authority/00ML,Environment & Regulatory Serv,BVAERS,Street Cleansing,CLE,Supplies and Services,E,Equip't Furniture n Materials,EA,02/07/2014,PAY00676598,CICL,City Clean,1332.00,Revenue,Alpha Workwear Direct Ltd
Brighton & Hove City Council,http://statistics.data.gov.uk/id/local-authority/00ML,Adult Social Care,BVASOC,ASC Memory Cognition Support,MEM,Customer n Client Receipts,M,Fees n Charges,MB,02/07/2014,PAY00676599,COGN,Memory Cognition Support,-32.00,Revenue,Martlets Care
Brighton & Hove City Council,http://statistics.data.gov.uk/id/local-authority/00ML,Adult Social Care,BVASOC,ASC Memory Cognition Support,MEM,Third Party Payments,F,Other Establishments,FH,02/07/2014,PAY00676599,COGN,Memory Cognition Support,316.50,Revenue,Martlets Care
Brighton & Hove City Council,http://statistics.data.gov.uk/id/local-authority/00ML,Adult Social Care,BVASOC,ASC Physical Support,PHY,Customer n Client Receipts,M,Fees n Charges,MB,02/07/2014,PAY00676599,PHYS,Physical Support,-354.00,Revenue,Martlets Care
Brighton & Hove City Council,http://statistics.data.gov.uk/id/local-authority/00ML,Adult Social Care,BVASOC,ASC Physical Support,PHY,Third Party Payments,F,Other Establishments,FH,02/07/2014,PAY00676599,PHYS,Physical Support,1710.60,Revenue,Martlets Care
Brighton & Hove City Council,http://statistics.data.gov.uk/id/local-authority/00ML,Children`s & Education Serv,BVAEDU,Ed EY PVI,ENP,Supplies and Services,E,Grants n Subscriptions,EK,02/07/2014,PAY00676600,EYRS,Early Years,395.00,Revenue,Rain or Shine Childcare
Brighton & Hove City Council,http://statistics.data.gov.uk/id/local-authority/00ML,Housing Revenue Account,BVAHOU,Hsing Management - HRA,HGM,Premises Related,C,Repair Maint n Alterations,CA,02/07/2014,PAY00676602,HPAI,Property & Investment,6032.11,Revenue,Liftec Lifts Ltd
Brighton & Hove City Council,http://statistics.data.gov.uk/id/local-authority/00ML,Non I&E,BVANON,Cap - Housing Services - HRA,4HR,New Construction n Conversion,PB,New Construction n Conversion,PBL5,02/07/2014,PAY00676602,HPAI,Property & Investment,195060.40,Capital,Liftec Lifts Ltd
Brighton & Hove City Council,http://statistics.data.gov.uk/id/local-authority/00ML,Housing General Fund,BVAHOG,Homelessness,HML,Premises Related,C,Rents Payable,CC,02/07/2014,PAY00676603,TAAS,Temp Accom and Allocations,550.00,Revenue,Payment to Individual
Brighton & Hove City Council,http://statistics.data.gov.uk/id/local-authority/00ML,Housing General Fund,BVAHOG,Homelessness,HML,Premises Related,C,Rents Payable,CC,02/07/2014,PAY00676604,TAAS,Temp Accom and Allocations,775.00,Revenue,Payment to Individual
Brighton & Hove City Council,http://statistics.data.gov.uk/id/local-authority/00ML,Children`s & Education Serv,BVAEDU,Management Services (DEC),MGT,Supplies and Services,E,Services,EF,02/07/2014,PAY00676606,SOCK,Social Work,2055.00,Revenue,HMCTS - Brighton Family Centre
Brighton & Hove City Council,http://statistics.data.gov.uk/id/local-authority/00ML,Cultural and Related Serv,BVACUL,Culture and Heritage,CHG,Direct Employees,A,Wages,AB,02/07/2014,PAY00676608,RPMU,Royal Pavilion and Museums,178.35,Revenue,Payment to Individual
Brighton & Hove City Council,http://statistics.data.gov.uk/id/local-authority/00ML,Cultural and Related Serv,BVACUL,Culture and Heritage,CHG,Supplies and Services,E,Miscellaneous Expenses,EM,02/07/2014,PAY00676608,RPMU,Royal Pavilion and Museums,152.99,Revenue,Payment to Individual
Brighton & Hove City Council,http://statistics.data.gov.uk/id/local-authority/00ML,Environment & Regulatory Serv,BVAERS,Waste Management,WMT,Third Party Payments,F,Other Agencies,FL,02/07/2014,PAY00676612,CICL,City Clean,3611.75,Revenue,Magpie Recycling Co-Operative Ltd
Brighton & Hove City Council,http://statistics.data.gov.uk/id/local-authority/00ML,Children`s & Education Serv,BVAEDU,Ed EY PVI,ENP,Supplies and Services,E,Grants n Subscriptions,EK,02/07/2014,PAY00676614,EYRS,Early Years,1517.00,Revenue,Pebbles Childminder Simone Thorn
Brighton & Hove City Council,http://statistics.data.gov.uk/id/local-authority/00ML,Housing General Fund,BVAHOG,Homelessness,HML,Premises Related,C,Rents Payable,CC,02/07/2014,PAY00676617,TAAS,Temp Accom and Allocations,620.00,Revenue,Payment to Individual
Brighton & Hove City Council,http://statistics.data.gov.uk/id/local-authority/00ML,Central Support and Overheads,BVACEN,Holding Accounts,PPH,Indirect Employees,B,Advertising,BA,02/07/2014,PAY00676619,POLI,Policy and Initiatives,356.25,Revenue,TMP Worldwide
Brighton & Hove City Council,http://statistics.data.gov.uk/id/local-authority/00ML,Children`s & Education Serv,BVAEDU,Ed Special Ed,EKE,Supplies and Services,E,Communications n Computing,EH,02/07/2014,PAY00676620,SENS,Special Educational Needs,304.20,Revenue,Widget Software
Brighton & Hove City Council,http://statistics.data.gov.uk/id/local-authority/00ML,Children`s & Education Serv,BVAEDU,Child Srvcs Leaving Care,FAL,Transfer Payments,G,Other Transfer Payments,GD,02/07/2014,PAY00676621,CHIC,Children In Care,525.00,Revenue,Payment to Individual
Brighton & Hove City Council,http://statistics.data.gov.uk/id/local-authority/00ML,Housing General Fund,BVAHOG,Homelessness,HML,Premises Related,C,Rents Payable,CC,02/07/2014,PAY00676622,TAAS,Temp Accom and Allocations,900.00,Revenue,Payment to Individual
Brighton & Hove City Council,http://statistics.data.gov.uk/id/local-authority/00ML,Housing General Fund,BVAHOG,Homelessness,HML,Premises Related,C,Rents Payable,CC,02/07/2014,PAY00676625,TAAS,Temp Accom and Allocations,825.00,Revenue,Payment to Individual
Brighton & Hove City Council,http://statistics.data.gov.uk/id/local-authority/00ML,Children`s & Education Serv,BVAEDU,Ed EY PVI,ENP,Supplies and Services,E,Grants n Subscriptions,EK,02/07/2014,PAY00676627,EYRS,Early Years,4879.00,Revenue,The Montessori Place
Brighton & Hove City Council,http://statistics.data.gov.uk/id/local-authority/00ML,Housing General Fund,BVAHOG,Homelessness,HML,Premises Related,C,Rents Payable,CC,02/07/2014,PAY00676628,TAAS,Temp Accom and Allocations,825.00,Revenue,Payment to Individual
Brighton & Hove City Council,http://statistics.data.gov.uk/id/local-authority/00ML,Children`s & Education Serv,BVAEDU,Ed EY PVI,ENP,Supplies and Services,E,Grants n Subscriptions,EK,02/07/2014,PAY00676629,EYRS,Early Years,5523.00,Revenue,Officreche
Brighton & Hove City Council,http://statistics.data.gov.uk/id/local-authority/00ML,Adult Social Care,BVASOC,ASC Learning Disabilities,ALD,Customer n Client Receipts,M,Fees n Charges,MB,02/07/2014,PAY00676630,LDIS,Learning Disabilities,-200.00,Revenue,Payment to Individual
Brighton & Hove City Council,http://statistics.data.gov.uk/id/local-authority/00ML,Adult Social Care,BVASOC,ASC Learning Disabilities,ALD,Third Party Payments,F,Other Establishments,FH,02/07/2014,PAY00676630,LDIS,Learning Disabilities,1411.52,Revenue,Payment to Individual
Brighton & Hove City Council,http://statistics.data.gov.uk/id/local-authority/00ML,Children`s & Education Serv,BVAEDU,Child Srvcs - Other Fam Supp,FFX,Transfer Payments,G,Other Transfer Payments,GD,02/07/2014,PAY00676633,FAMP,Families\Prevention,352.00,Revenue,Payment to Individual
